Service Area,Service Division,Expense Type,Expense Code,Detailed Expense Type,Payment Date,Transaction Number,Amount Exc VAT,Supplier Name
Children and Young Peoples Services,Head of Education,Supplies and Services,384199,Miscellaneous Expenses,01/03/2018,3405882-1140,"1,360.00",AAA SPORTS.
Children and Young Peoples Services,Head of Looked After Provision Permanence and Care Leavers,Transport,230005,Contract Hire,01/03/2018,3405883-P51/ZA,"1,238.00",AABAT TAXIS.
Children and Young Peoples Services,Head of Early Help Assessment and Safeguarding,Transport,230005,Contract Hire,01/03/2018,3405883-P56/ZE,"1,290.00",AABAT TAXIS.
Resources,Digital and Customer Services,Supplies and Services,344132,Telephones,01/03/2018,3405885-15494,"2,920.00",ABM CRITICAL SOLUTIONS LTD.
Dedicated Schools Grant,Dedicated Schools Grant,Transfer Payments,510034,School Children,01/03/2018,3405890-LACPP1718 AUTUMN/SPRING,"1,800.00",ACRE RIGG ACADEMY.
Children and Young Peoples Services,Head of Education,Third Party Payments,440999,Other Third Party Payments,01/03/2018,3405891-INV02189,"2,590.26",ACUMEN COMMUNITY ENTERPRISE DEVELOPMENT TRUST LTD.
Regeneration and Local Services,Direct Services,Third Party Payments,430100,Rendered by Private Contractors,01/03/2018,3405895-37533024-61,647.00,ADT FIRE & SECURITY PLC.
Regeneration and Local Services,Technical Services,Employees,080025,Agency Staff,01/03/2018,3405896-28337139,"4,045.00",AECOM LTD.
Regeneration and Local Services,Technical Services,Supplies and Services,304221,Equipment and Materials,01/03/2018,3405898-26091892,528.68,AGGREGATE INDUSTRIES UK LTD.
Regeneration and Local Services,Technical Services,Supplies and Services,304221,Equipment and Materials,01/03/2018,3405898-26097807,528.94,AGGREGATE INDUSTRIES UK LTD.
Children and Young Peoples Services,Head of Looked After Provision Permanence and Care Leavers,Supplies and Services,304252,Equipment and Materials,01/03/2018,3405901-49889,"1,048.50",ALARM RADIO MONITORING LTD.
Regeneration and Local Services,Direct Services,Construction Work,908105,Construction work,01/03/2018,3405902-161104,"70,848.28",ALBANY OFFICE EQUIPMENT (WHOLESALE) LTD.
Regeneration and Local Services,Direct Services,Construction Work,908105,Construction work,01/03/2018,3405903-161222,"88,203.08",ALBANY OFFICE EQUIPMENT (WHOLESALE) LTD.
Regeneration and Local Services,Direct Services,Supplies and Services,304221,Equipment and Materials,01/03/2018,3405902-161054,"4,312.00",ALBANY OFFICE EQUIPMENT (WHOLESALE) LTD.
Adult and Health Services,Head of Adults,Supplies and Services,308011,Furniture,01/03/2018,3405903-161454,606.00,ALBANY OFFICE EQUIPMENT (WHOLESALE) LTD.
Regeneration and Local Services,Direct Services,Vehicles Equipment Furniture and Fittings,912529,Purchase-equipment,01/03/2018,3405903-161418,"4,991.00",ALBANY OFFICE EQUIPMENT (WHOLESALE) LTD.
Regeneration and Local Services,Culture & Sport,Vehicles Equipment Furniture and Fittings,912521,Purchase-furniture and fittings,01/03/2018,3405903-161423,"1,393.00",ALBANY OFFICE EQUIPMENT (WHOLESALE) LTD.
Regeneration and Local Services,Culture & Sport,Vehicles Equipment Furniture and Fittings,912521,Purchase-furniture and fittings,01/03/2018,3405903-161513,"1,582.00",ALBANY OFFICE EQUIPMENT (WHOLESALE) LTD.
Resources,Legal & Democratic Services,Supplies and Services,338057,Services,01/03/2018,3405904-0000029530,905.00,ALERE FORENSICS.
Resources,Legal & Democratic Services,Supplies and Services,338057,Services,01/03/2018,3405904-0000029590,805.00,ALERE FORENSICS.
Regeneration and Local Services,Economic Development and Housing,Construction Work,908105,Construction work,01/03/2018,3405914-488663,"2,612.50",AMH WORKSPACE LTD.
Children and Young Peoples Services,Head of Education,Supplies and Services,352001,Conference Expenses,01/03/2018,3405918-6511,"2,400.00",ANNA FREUD NATIONAL CENTRE FOR CHILDREN & FAMILIES.
Resources,Digital and Customer Services,Supplies and Services,304245,Equipment and Materials,01/03/2018,3405920-7493714,977.90,ANTALIS LTD.
Regeneration and Local Services,Direct Services,Third Party Payments,430100,Rendered by Private Contractors,01/03/2018,3405922-29421,"1,195.00",AQUAJET DRAIN CLEANING LTD.
Children and Young Peoples Services,Head of Education,Third Party Payments,440999,Other Third Party Payments,01/03/2018,3405927-5041,"8,676.90",ASPIRE LEARNING SUPPORT & WELLBEING CIC.
Regeneration and Local Services,Direct Services,Supplies and Services,304252,Equipment and Materials,01/03/2018,3405928-INV000673,550.00,ASSOCIATED MAINTENANCE SERVICES LTD.
Adult and Health Services,Central/Other,Supplies and Services,372009,Subscriptions,01/03/2018,3405893-2974,"1,881.00",ASSOCIATION OF DIRECTORS OF SOCIAL SERVICES (ADASS).
Regeneration and Local Services,Technical Services,Supplies and Services,338027,Services,01/03/2018,3405929-18005244,"45,812.00",ATKINS GLOBAL.
Regeneration and Local Services,Direct Services,Third Party Payments,430100,Rendered by Private Contractors,01/03/2018,3405933-1752,"4,276.00",AWR ROOFING & ALUMIN RAINWATER SYSTEMS LTD.
Children and Young Peoples Services,Head of Looked After Provision Permanence and Care Leavers,Supplies and Services,304259,Equipment and Materials,01/03/2018,3405940-7063,"1,195.20",BARRONS CONTRACTS.
Regeneration and Local Services,Technical Services,Supplies and Services,304221,Equipment and Materials,01/03/2018,3405942-INV-0291,"2,400.00",BEAVER BRIDGE HIRE LTD.
Regeneration and Local Services,Direct Services,Third Party Payments,430100,Rendered by Private Contractors,01/03/2018,3405943-6125,900.00,BELL CONTROL SOLUTIONS LTD.
Dedicated Schools Grant,Dedicated Schools Grant,Transfer Payments,510034,School Children,01/03/2018,3405947-LACPP1718 AUTUMN & SPRING,600.00,BIDDICK ACADEMY.
Regeneration and Local Services,Technical Services,Third Party Payments,430100,Rendered by Private Contractors,01/03/2018,3405950-BMPR/130/LW,600.00,BISHOP MIDDLEHAM PLANT & RECYCLING LTD.
Regeneration and Local Services,Technical Services,Third Party Payments,430100,Rendered by Private Contractors,01/03/2018,3405950-BMPR/131/LW,600.00,BISHOP MIDDLEHAM PLANT & RECYCLING LTD.
Regeneration and Local Services,Technical Services,Third Party Payments,430100,Rendered by Private Contractors,01/03/2018,3405950-BMPR/135/LW,"1,050.00",BISHOP MIDDLEHAM PLANT & RECYCLING LTD.
Regeneration and Local Services,Culture & Sport,Premises,145023,Cleaning and Domestic Supplies,01/03/2018,3405959-22SI2233748,503.00,BRENNTAG UK LTD.
Regeneration and Local Services,Direct Services,Supplies and Services,304221,Equipment and Materials,01/03/2018,3405962-INV223545,672.00,BROXAP LTD.
Regeneration and Local Services,Direct Services,Supplies and Services,304221,Equipment and Materials,01/03/2018,3405963-1660/0673247,"2,098.20",BSS GROUP PLC.
Regeneration and Local Services,Transport and Contracted Services,Supplies and Services,304245,Equipment and Materials,01/03/2018,3405965-53007,"1,500.00",BUDDI.
Regeneration and Local Services,Transport and Contracted Services,Construction Work,908105,Construction work,01/03/2018,3405966-NO24639,"2,733.48",BUS SHELTERS LTD.
Regeneration and Local Services,Culture & Sport,Premises,145023,Cleaning and Domestic Supplies,01/03/2018,3406380-CN19635270,998.40,CANNON HYGIENE LTD.
Regeneration and Local Services,Spatial Policy Planning Assets & Environment,Supplies and Services,338066,Services,01/03/2018,3405970-D016,"6,640.00",CAP-A-PIE ENGAGEMENTS.
Children and Young Peoples Services,Head of Education,Third Party Payments,440999,Other Third Party Payments,01/03/2018,3405972-204,"3,567.24",CAPITAL 4 TRAINING LTD
Children and Young Peoples Services,Head of Education,Third Party Payments,440999,Other Third Party Payments,01/03/2018,3405972-205,524.67,CAPITAL 4 TRAINING LTD
Dedicated Schools Grant,Dedicated Schools Grant,Transfer Payments,510034,School Children,01/03/2018,3405973-LACPP1718 AUTUMN,550.00,CARDINAL HUME CATHOLIC SCHOOL.
Adult and Health Services,Head of Adults,Supplies and Services,338366,Services,01/03/2018,3405975-47799,"1,097.35",CARE ABILITY.
Adult and Health Services,Head of Adults,Supplies and Services,338366,Services,01/03/2018,3405975-47847,"1,417.00",CARE ABILITY.
Adult and Health Services,Head of Adults,Supplies and Services,338366,Services,01/03/2018,3405975-47848,"1,417.00",CARE ABILITY.
Regeneration and Local Services,Direct Services,Supplies and Services,304221,Equipment and Materials,01/03/2018,3405977-851800329,"6,086.44",CARLISLE CONSTRUCTION MATERIALS LTD.
Regeneration and Local Services,Direct Services,Supplies and Services,304221,Equipment and Materials,01/03/2018,3405977-851800393,"1,743.00",CARLISLE CONSTRUCTION MATERIALS LTD.
Dedicated Schools Grant,Dedicated Schools Grant,Transfer Payments,510034,School Children,01/03/2018,3405978-LACPP1718 AUTUMN & SPRING,"2,200.00",CARMEL COLLEGE.*
Regeneration and Local Services,Technical Services,Supplies and Services,304221,Equipment and Materials,01/03/2018,3405982-483960,528.00,CARRS BILLINGTON AGRICULTURE.
Regeneration and Local Services,Direct Services,Third Party Payments,430100,Rendered by Private Contractors,01/03/2018,3405984-3807,"5,339.17",CATHEDRAL LOCK & SAFE SERVICES LTD.
Children and Young Peoples Services,Head of Looked After Provision Permanence and Care Leavers,Third Party Payments,440038,Other Third Party Payments,01/03/2018,3405988-S0041,"3,789.84",CENTREPOINT SOHO LTD.
Children and Young Peoples Services,Head of Looked After Provision Permanence and Care Leavers,Third Party Payments,440039,Other Third Party Payments,01/03/2018,3405988-S0042,"3,789.84",CENTREPOINT SOHO LTD.
Children and Young Peoples Services,Head of Looked After Provision Permanence and Care Leavers,Employees,080025,Agency Staff,01/03/2018,3405989-03977634,503.70,CER (A DIVISION OF MONARCH EDUCATION LTD).
Resources,Finance & Transactional Services,Supplies and Services,332029,Printing Stationery and Gen Off Exps,01/03/2018,3405990-CS62813201,"2,944.80",CFH TOTAL DOCUMENT MANAGEMENT LTD.
Resources,Finance & Transactional Services,Supplies and Services,332029,Printing Stationery and Gen Off Exps,01/03/2018,3405990-CS62813301,"3,067.50",CFH TOTAL DOCUMENT MANAGEMENT LTD.
Regeneration and Local Services,Direct Services,Premises,145052,Cleaning and Domestic Supplies,01/03/2018,3405999-CC113001,"1,150.00",CITY CLEAN NORTHERN LTD.
Children and Young Peoples Services,Head of Looked After Provision Permanence and Care Leavers,Third Party Payments,440038,Other Third Party Payments,01/03/2018,3406000-1737,857.90,CITY OF SUNDERLAND YMCA LTD.
Children and Young Peoples Services,Head of Looked After Provision Permanence and Care Leavers,Third Party Payments,440038,Other Third Party Payments,01/03/2018,3406001-1849,857.90,CITY OF SUNDERLAND YMCA LTD.
Children and Young Peoples Services,Head of Looked After Provision Permanence and Care Leavers,Third Party Payments,440038,Other Third Party Payments,01/03/2018,3406002-1836,857.90,CITY OF SUNDERLAND YMCA LTD.
Children and Young Peoples Services,Head of Looked After Provision Permanence and Care Leavers,Third Party Payments,440039,Other Third Party Payments,01/03/2018,3406000-1824,600.00,CITY OF SUNDERLAND YMCA LTD.
Children and Young Peoples Services,Head of Looked After Provision Permanence and Care Leavers,Third Party Payments,440039,Other Third Party Payments,01/03/2018,3406002-1844,700.00,CITY OF SUNDERLAND YMCA LTD.
Children and Young Peoples Services,Head of Looked After Provision Permanence and Care Leavers,Third Party Payments,440039,Other Third Party Payments,01/03/2018,3406002-1845,700.00,CITY OF SUNDERLAND YMCA LTD.
Adult and Health Services,EnvironmentHealth & Consumer Protection,Supplies and Services,342051,Computers and Communications,01/03/2018,3406003-M/CM049316,"17,099.31",CIVICA UK LTD.
Resources,Finance & Transactional Services,Supplies and Services,352001,Conference Expenses,01/03/2018,3406003-C/RB161803,500.00,CIVICA UK LTD.
Regeneration and Local Services,Economic Development and Housing,Supplies and Services,377015,County Durham Development,01/03/2018,3406006-0102657904,975.00,CLEAR CHANNEL UK LTD.
Children and Young Peoples Services,Head of Education,Supplies and Services,384540,Miscellaneous Expenses,01/03/2018,3406006-0102658112,850.00,CLEAR CHANNEL UK LTD.
Regeneration and Local Services,Technical Services,Stock,926004,Stock,01/03/2018,3406008-400006570,"18,609.57",CLEVELAND POTASH LTD T/A ICL FERTILIZERS.
Regeneration and Local Services,Technical Services,Stock,926004,Stock,01/03/2018,3406008-400006571,"14,818.86",CLEVELAND POTASH LTD T/A ICL FERTILIZERS.
Regeneration and Local Services,Technical Services,Stock,926004,Stock,01/03/2018,3406008-400006572,937.44,CLEVELAND POTASH LTD T/A ICL FERTILIZERS.
Regeneration and Local Services,Technical Services,Stock,926004,Stock,01/03/2018,3406008-400006573,"10,185.84",CLEVELAND POTASH LTD T/A ICL FERTILIZERS.
Regeneration and Local Services,Technical Services,Stock,926004,Stock,01/03/2018,3406008-400006574,"2,130.66",CLEVELAND POTASH LTD T/A ICL FERTILIZERS.
Regeneration and Local Services,Technical Services,Stock,926004,Stock,01/03/2018,3406008-400006575,"7,312.41",CLEVELAND POTASH LTD T/A ICL FERTILIZERS.
Regeneration and Local Services,Technical Services,Stock,926004,Stock,01/03/2018,3406008-400006576,"8,171.73",CLEVELAND POTASH LTD T/A ICL FERTILIZERS.
Regeneration and Local Services,Technical Services,Stock,926004,Stock,01/03/2018,3406008-400006578,"1,522.08",CLEVELAND POTASH LTD T/A ICL FERTILIZERS.
Regeneration and Local Services,Technical Services,Stock,926004,Stock,01/03/2018,3406008-400006579,"2,405.34",CLEVELAND POTASH LTD T/A ICL FERTILIZERS.
Regeneration and Local Services,Technical Services,Stock,926004,Stock,01/03/2018,3406008-400006580,"7,469.28",CLEVELAND POTASH LTD T/A ICL FERTILIZERS.
Regeneration and Local Services,Technical Services,Stock,926004,Stock,01/03/2018,3406008-400006581,893.97,CLEVELAND POTASH LTD T/A ICL FERTILIZERS.
Regeneration and Local Services,Technical Services,Stock,926004,Stock,01/03/2018,3406008-400006582,"1,791.09",CLEVELAND POTASH LTD T/A ICL FERTILIZERS.
Regeneration and Local Services,Technical Services,Stock,926004,Stock,01/03/2018,3406008-400006583,915.39,CLEVELAND POTASH LTD T/A ICL FERTILIZERS.
Regeneration and Local Services,Technical Services,Stock,926004,Stock,01/03/2018,3406008-400006760,"4,573.17",CLEVELAND POTASH LTD T/A ICL FERTILIZERS.
Regeneration and Local Services,Technical Services,Stock,926004,Stock,01/03/2018,3406008-400006761,"3,915.45",CLEVELAND POTASH LTD T/A ICL FERTILIZERS.
Regeneration and Local Services,Technical Services,Stock,926004,Stock,01/03/2018,3406008-400006762,909.09,CLEVELAND POTASH LTD T/A ICL FERTILIZERS.
Regeneration and Local Services,Technical Services,Stock,926004,Stock,01/03/2018,3406008-400006763,"1,782.27",CLEVELAND POTASH LTD T/A ICL FERTILIZERS.
Regeneration and Local Services,Technical Services,Stock,926004,Stock,01/03/2018,3406008-400006764,"12,904.92",CLEVELAND POTASH LTD T/A ICL FERTILIZERS.
Regeneration and Local Services,Technical Services,Stock,926004,Stock,01/03/2018,3406008-400006765,"5,969.25",CLEVELAND POTASH LTD T/A ICL FERTILIZERS.
Regeneration and Local Services,Technical Services,Stock,926004,Stock,01/03/2018,3406008-400006766,"9,780.75",CLEVELAND POTASH LTD T/A ICL FERTILIZERS.
Regeneration and Local Services,Technical Services,Stock,926004,Stock,01/03/2018,3406008-400006767,"2,687.58",CLEVELAND POTASH LTD T/A ICL FERTILIZERS.
Regeneration and Local Services,Technical Services,Stock,926004,Stock,01/03/2018,3406008-400006768,"10,916.01",CLEVELAND POTASH LTD T/A ICL FERTILIZERS.
Regeneration and Local Services,Technical Services,Stock,926004,Stock,01/03/2018,3406008-400006769,"13,524.21",CLEVELAND POTASH LTD T/A ICL FERTILIZERS.
Regeneration and Local Services,Technical Services,Stock,926004,Stock,01/03/2018,3406008-400006770,"1,821.33",CLEVELAND POTASH LTD T/A ICL FERTILIZERS.
Dedicated Schools Grant,Dedicated Schools Grant,Transfer Payments,510034,School Children,01/03/2018,3406009-LACPP1718 AUTUMN/SPRING,"1,760.00",CLEVES CROSS LEARNING TRUST T/A ROSA STREET PRIMARY SCHOOL.
Regeneration and Local Services,Direct Services,Third Party Payments,430100,Rendered by Private Contractors,01/03/2018,3406010-8118864,740.00,CLOVER CONTROLS LTD.
Regeneration and Local Services,Direct Services,Third Party Payments,430100,Rendered by Private Contractors,01/03/2018,3406010-8118877,814.00,CLOVER CONTROLS LTD.
Children and Young Peoples Services,Head of Early Help Assessment and Safeguarding,Transport,230005,Contract Hire,01/03/2018,3406011-CLUB1804B,570.00,CLUBMAN CABS.
Children and Young Peoples Services,Head of Early Help Assessment and Safeguarding,Transport,230005,Contract Hire,01/03/2018,3406011-CLUB1804P,800.00,CLUBMAN CABS.
Regeneration and Local Services,Technical Services,Stock,926900,Stock in hand-Inventory system,01/03/2018,3406014-206754,"1,967.76",COLAS LTD.
Regeneration and Local Services,Culture & Sport,Supplies and Services,338047,Services,01/03/2018,3406016-8957/M,"2,497.50",COMEDY STORE MANAGEMENT T/A THE COMEDY STORE LTD.
Resources,Legal & Democratic Services,Supplies and Services,338025,Services,01/03/2018,3406012-S44954-0U78,"1,080.00",CO-OPERATIVE FUNERAL CARE.
Resources,Legal & Democratic Services,Supplies and Services,338025,Services,01/03/2018,3406013-S44995-01487,"1,430.00",CO-OPERATIVE FUNERAL CARE.
Children and Young Peoples Services,Head of Education,Transfer Payments,510026,School Children,01/03/2018,3406024-F/SH194957,"1,134.00",CORECARE FISHBURN LTD.
Children and Young Peoples Services,Head of Education,Transfer Payments,510026,School Children,01/03/2018,3406024-F/SH194958,990.00,CORECARE FISHBURN LTD.
Regeneration and Local Services,Economic Development and Housing,Premises,120021,Energy Costs,01/03/2018,3406025-12839942,596.28,CORONA ENERGY RETAIL 2 LTD.
Regeneration and Local Services,Economic Development and Housing,Premises,120021,Energy Costs,01/03/2018,3406025-12839943,"1,024.92",CORONA ENERGY RETAIL 2 LTD.
Regeneration and Local Services,Economic Development and Housing,Premises,120021,Energy Costs,01/03/2018,3406025-12839984,"1,064.05",CORONA ENERGY RETAIL 2 LTD.
Regeneration and Local Services,Economic Development and Housing,Premises,120021,Energy Costs,01/03/2018,3406025-12840011,"1,710.54",CORONA ENERGY RETAIL 2 LTD.
Regeneration and Local Services,Economic Development and Housing,Premises,120021,Energy Costs,01/03/2018,3406025-12840782,838.56,CORONA ENERGY RETAIL 2 LTD.
Regeneration and Local Services,Economic Development and Housing,Premises,120021,Energy Costs,01/03/2018,3406025-12840833,838.53,CORONA ENERGY RETAIL 2 LTD.
Regeneration and Local Services,Economic Development and Housing,Premises,120021,Energy Costs,01/03/2018,3406025-12841059,"1,319.66",CORONA ENERGY RETAIL 2 LTD.
Transformation and Partnerships,Partnerships & Community Engagement Div.,Supplies and Services,368008,Incentives to Industrialists,01/03/2018,3406027-7945853,811.50,CPC (ELECTRICAL WHOLESALERS).
Children and Young Peoples Services,Head of Looked After Provision Permanence and Care Leavers,Transport,230005,Contract Hire,01/03/2018,3406028-107360,512.38,CROFT BUSINESS SERVICES (UK) LTD T/A CROFT TAXIS.
Regeneration and Local Services,Culture & Sport,Supplies and Services,304259,Equipment and Materials,01/03/2018,3406032-71388,"1,795.00",CYNTECH TRADING LTD T/A JUST PROJECTORS.
Regeneration and Local Services,Technical Services,Third Party Payments,430127,Rendered by Private Contractors,01/03/2018,3406033-49FEB18,"3,292.00",D & L HOPPS.
Regeneration and Local Services,Technical Services,Third Party Payments,430127,Rendered by Private Contractors,01/03/2018,3406033-50,"2,668.00",D & L HOPPS.
Adult and Health Services,Head of Adults,Third Party Payments,472101,Purchase of Care,01/03/2018,3406041-5117,631.20,DCS & D LTD T/A HERITAGE HEALTHCARE.
Regeneration and Local Services,Technical Services,Third Party Payments,430100,Rendered by Private Contractors,01/03/2018,3406034-N521662,620.80,D-DRILL (MASTER DRILLERS) LTD.
Children and Young Peoples Services,Head of Early Help Assessment and Safeguarding,Employees,080025,Agency Staff,01/03/2018,3406042-1045734,"112,759.74",DE POEL MANAGED SERVICES LTD.
Resources,Digital and Customer Services,Supplies and Services,342033,Computers and Communications,01/03/2018,3406045-7402420743,817.00,DELL COMPUTER CORPORATION LTD.
Resources,Digital and Customer Services,Supplies and Services,304303,Equipment and Materials,01/03/2018,3406045-7402420788,594.94,DELL COMPUTER CORPORATION LTD.
Resources,Digital and Customer Services,Stock,926900,Stock in hand-Inventory system,01/03/2018,3406045-7402420810,685.40,DELL COMPUTER CORPORATION LTD.
Resources,Digital and Customer Services,Stock,926900,Stock in hand-Inventory system,01/03/2018,3406045-7402421006,"5,132.56",DELL COMPUTER CORPORATION LTD.
Regeneration and Local Services,Economic Development and Housing,Fees,901002,Professional fees,01/03/2018,3406047-DCL/1843,800.00,DENDRA CONSULTING LTD.
Dedicated Schools Grant,Dedicated Schools Grant,Transfer Payments,510034,School Children,01/03/2018,3406049-LACPP1718 AUTUMN,"1,100.00",DENE HOUSE PRIMARY SCHOOL (ACADEMY).
Resources,Legal & Democratic Services,Supplies and Services,338042,Services,01/03/2018,3406052-335750/INVCSM339,"2,400.00",DERE STREET BARRISTERS.
Adult and Health Services,Commissioning inc Supporting People,Third Party Payments,440051,Other Third Party Payments,01/03/2018,3406053-JAN18,"3,841.67",DERIC YOUTH BUS PROJECT.
Resources,Digital and Customer Services,Supplies and Services,332029,Printing Stationery and Gen Off Exps,01/03/2018,3406054-21937,664.40,DESIGN X PRESS LTD.
Regeneration and Local Services,Direct Services,Third Party Payments,430101,Rendered by Private Contractors,01/03/2018,3406055-IV956871,"4,085.55",DIRECT TYRE MANAGEMENT (DTM).
Regeneration and Local Services,Direct Services,Third Party Payments,430101,Rendered by Private Contractors,01/03/2018,3406055-IV961006,766.06,DIRECT TYRE MANAGEMENT (DTM).
Regeneration and Local Services,Direct Services,Third Party Payments,430101,Rendered by Private Contractors,01/03/2018,3406055-IV963850,"2,146.05",DIRECT TYRE MANAGEMENT (DTM).
Regeneration and Local Services,Direct Services,Third Party Payments,430101,Rendered by Private Contractors,01/03/2018,3406055-IV963853,"2,082.58",DIRECT TYRE MANAGEMENT (DTM).
Regeneration and Local Services,Direct Services,Third Party Payments,430101,Rendered by Private Contractors,01/03/2018,3406055-IV963854,958.20,DIRECT TYRE MANAGEMENT (DTM).
Adult and Health Services,Head of Adults,Supplies and Services,338066,Services,01/03/2018,3406064-0202201807022018,"2,526.14",DR HEMANTH NAGARATHNAM.
Adult and Health Services,Head of Adults,Supplies and Services,338066,Services,01/03/2018,3406065-0202201807022018,"1,091.36",DR IMRAN MUNIR.
Adult and Health Services,Head of Adults,Supplies and Services,338066,Services,01/03/2018,3406066-0802201816022018,898.50,DR IPSITA MITRA.
Adult and Health Services,Head of Adults,Supplies and Services,338066,Services,01/03/2018,3406070-0802201816022018,525.94,DR STEPHEN WILKINSON.
Children and Young Peoples Services,Head of Education,Construction Work,908105,Construction work,01/03/2018,3406071-8119,"1,505.00",DUNELM GEOTECHNICAL & ENVIRONMENTAL LTD.
Dedicated Schools Grant,Dedicated Schools Grant,Transfer Payments,510034,School Children,01/03/2018,3406075-LACPP1718 AUTUMN,"1,400.00",DURHAM MARTYRS MULTI ACADEMY TRUST T/A ST LEONARD`S CATHOLIC SCHOOL.
Transformation and Partnerships,Partnerships & Community Engagement Div.,Supplies and Services,384086,Miscellaneous Expenses,01/03/2018,3406076-ALLJ10-16,600.00,DURHAM POLICE & CRIME COMMISSIONER.
Children and Young Peoples Services,Head of Education,Transfer Payments,510026,School Children,01/03/2018,3406080-316486,900.00,DURHAM UNIVERSITY.
Dedicated Schools Grant,Dedicated Schools Grant,Transfer Payments,510034,School Children,01/03/2018,3406082-LACPP1718 AUTUMN & SPRING,"2,200.00",EASINGTON LANE PRIMARY SCHOOL.
Children and Young Peoples Services,Head of Education,Third Party Payments,440999,Other Third Party Payments,01/03/2018,3406084-5702,"4,340.47",EAST DURHAM COMMUNITY DEVELOPMENT TRUST LTD.
Regeneration and Local Services,Direct Services,Supplies and Services,304221,Equipment and Materials,01/03/2018,3406086-0000006104,804.20,EAST RIDING HORTICULTURE LTD.
Regeneration and Local Services,Direct Services,Supplies and Services,304221,Equipment and Materials,01/03/2018,3406086-0000006530,"3,352.00",EAST RIDING HORTICULTURE LTD.
Regeneration and Local Services,Direct Services,Supplies and Services,304221,Equipment and Materials,01/03/2018,3406090-059-218935,612.00,EDMUNDSON ELECTRICAL LTD.
Regeneration and Local Services,Direct Services,Supplies and Services,304221,Equipment and Materials,01/03/2018,3406090-059-219065,749.10,EDMUNDSON ELECTRICAL LTD.
Regeneration and Local Services,Direct Services,Supplies and Services,304221,Equipment and Materials,01/03/2018,3406090-059-219083,558.17,EDMUNDSON ELECTRICAL LTD.
Regeneration and Local Services,Direct Services,Supplies and Services,304221,Equipment and Materials,01/03/2018,3406090-059-219200,645.70,EDMUNDSON ELECTRICAL LTD.
Regeneration and Local Services,Direct Services,Supplies and Services,304221,Equipment and Materials,01/03/2018,3406090-059-219213,"3,484.04",EDMUNDSON ELECTRICAL LTD.
Regeneration and Local Services,Culture & Sport,Supplies and Services,338047,Services,01/03/2018,3406097-60316961,"1,088.57",ENTERTAINMENT ONE UK LTD.
Dedicated Schools Grant,Dedicated Schools Grant,Transfer Payments,510034,School Children,01/03/2018,3406099-LACPP1718 AUTUMN/SPRING,"2,887.00",EXCEL ACADEMY PARTNERSHIP T/A FRAMWELLGATE SCHOOL DURHAM.
Regeneration and Local Services,Direct Services,Third Party Payments,430100,Rendered by Private Contractors,01/03/2018,3406102-4224,779.00,F WARREN (ELECTRICAL) LTD.
Regeneration and Local Services,Direct Services,Supplies and Services,384199,Miscellaneous Expenses,01/03/2018,3406106-MI91158,509.70,FCC RECYCLING (UK)  LTD.
Regeneration and Local Services,Direct Services,Third Party Payments,430120,Rendered by Private Contractors,01/03/2018,3406109-CTIN06532737,"5,085.30",FINNING (UK) LTD.
Regeneration and Local Services,Direct Services,Third Party Payments,430120,Rendered by Private Contractors,01/03/2018,3406109-CTIN06532738,"5,426.85",FINNING (UK) LTD.
Regeneration and Local Services,Direct Services,Supplies and Services,304221,Equipment and Materials,01/03/2018,3406111-1802-191311,791.98,FLAME HEATING SPARES LTD.
Regeneration and Local Services,Economic Development and Housing,Supplies and Services,344033,Telephones,01/03/2018,3406116-140993,"1,017.44",FREEDOM COMMUNICATIONS (UK) LTD.
Regeneration and Local Services,Economic Development and Housing,Construction Work,908105,Construction work,01/03/2018,3406119-FBI00126,"43,480.50",FULL BLOWN METALS LTD.
Dedicated Schools Grant,Dedicated Schools Grant,Third Party Payments,410037,Rendered by Other Local Authorities,01/03/2018,3406128-106523890,"8,829.45",GATESHEAD COUNCIL.
Regeneration and Local Services,Direct Services,Supplies and Services,304252,Equipment and Materials,01/03/2018,3406129-I166005,725.00,GEMCO SERVICE LTD.
Regeneration and Local Services,Direct Services,Supplies and Services,304259,Equipment and Materials,01/03/2018,3406135-744934,"2,022.72",GLASDON UK LTD.
Regeneration and Local Services,Transport and Contracted Services,Third Party Payments,430106,Rendered by Private Contractors,01/03/2018,3406138-64987,"68,402.43",GO GATESHEAD LTD.
Resources,Legal & Democratic Services,Supplies and Services,338025,Services,01/03/2018,3406140-F1345,520.00,GORDON FLETCHER & SONS LTD.
Regeneration and Local Services,Technical Services,Third Party Payments,430100,Rendered by Private Contractors,01/03/2018,3406141-00023,500.00,GRAEME HOPPER LTD.
Adult and Health Services,Head of Adults,Supplies and Services,328041,Clothing Uniforms and Laundry,01/03/2018,3406143-06/722685,570.00,GREENHAM TRADING LTD.
Adult and Health Services,Head of Adults,Supplies and Services,328041,Clothing Uniforms and Laundry,01/03/2018,3406143-06/725019,513.00,GREENHAM TRADING LTD.
Regeneration and Local Services,Technical Services,Stock,926900,Stock in hand-Inventory system,01/03/2018,3406143-06/722417,643.07,GREENHAM TRADING LTD.
Regeneration and Local Services,Technical Services,Stock,926900,Stock in hand-Inventory system,01/03/2018,3406143-06/722522,"1,031.20",GREENHAM TRADING LTD.
Dedicated Schools Grant,Dedicated Schools Grant,Transfer Payments,510034,School Children,01/03/2018,3406144-LACPP1718 AUTUMN & SPRING,"1,800.00",GRINDON HALL CHRISTIAN SCHOOL.
Children and Young Peoples Services,Head of Education,Third Party Payments,440999,Other Third Party Payments,01/03/2018,3406146-12261,"3,384.48",GROUNDWORK NORTH EAST.
Children and Young Peoples Services,Head of Education,Third Party Payments,440999,Other Third Party Payments,01/03/2018,3406146-12262,"10,578.03",GROUNDWORK NORTH EAST.
Regeneration and Local Services,Culture & Sport,Supplies and Services,338047,Services,01/03/2018,3406148-FBC725,600.00,GROWLING CLOWN.
Adult and Health Services,Public Health,Third Party Payments,460803,Contract Payments,01/03/2018,3406153-DCC038,"83,332.00",HARBOUR SUPPORT SERVICES.
Adult and Health Services,Public Health,Third Party Payments,460803,Contract Payments,01/03/2018,3406153-DCC039,"15,750.00",HARBOUR SUPPORT SERVICES.
Regeneration and Local Services,Economic Development and Housing,Supplies and Services,384999,Miscellaneous Expenses,01/03/2018,3406156-016-190-024,"2,880.00",HAYAT EXPRESS HOTEL.
Regeneration and Local Services,Economic Development and Housing,Supplies and Services,384999,Miscellaneous Expenses,01/03/2018,3406156-931-613-604,"2,255.00",HAYAT EXPRESS HOTEL.
Children and Young Peoples Services,Head of Education,Supplies and Services,304259,Equipment and Materials,01/03/2018,3406157-OP/0071556,690.00,HCL SAFETY LTD.
Dedicated Schools Grant,Dedicated Schools Grant,Transfer Payments,510034,School Children,01/03/2018,3406160-LACPP1718 AUTUMN,550.00,HEATHFIELD ACADEMY TRUST.
Resources,Legal & Democratic Services,Supplies and Services,338042,Services,01/03/2018,3406162-121134,"3,000.00",HENRY SETRIGHT QC.
Dedicated Schools Grant,Dedicated Schools Grant,Transfer Payments,510034,School Children,01/03/2018,3406163-LACPP1718 AUTUMN/SPRING,"4,950.00",HERMITAGE ACADEMY.
Dedicated Schools Grant,Dedicated Schools Grant,Transfer Payments,510034,School Children,01/03/2018,3406164-LACPP1718 AUTUMN,500.00,HETTON LYONS PRIMARY SCHOOL.
Regeneration and Local Services,Technical Services,Third Party Payments,430100,Rendered by Private Contractors,01/03/2018,3406165-2744,"2,683.09",HIGHWAY CONSTRUCTION SERVICES LTD.
Dedicated Schools Grant,Dedicated Schools Grant,Transfer Payments,510034,School Children,01/03/2018,3406171-LACPP1718 AUTUMN/SPRING,"8,450.00",HOPE WOOD ACADEMY.
Dedicated Schools Grant,Dedicated Schools Grant,Transfer Payments,510034,School Children,01/03/2018,3406172-LACPP1718 AUTUMN,550.00,HOUGHTON KEPIER SPORTS COLLEGE ACADEMY TRUST LTD.
Children and Young Peoples Services,Head of Looked After Provision Permanence and Care Leavers,Third Party Payments,425021,Rendered by Voluntary Organisations,01/03/2018,3406173-4445,"3,520.00",HOWARD HOUSE CARE LTD.
Children and Young Peoples Services,Head of Looked After Provision Permanence and Care Leavers,Third Party Payments,425021,Rendered by Voluntary Organisations,01/03/2018,3406173-4454,"3,520.00",HOWARD HOUSE CARE LTD.
Regeneration and Local Services,Technical Services,Stock,926900,Stock in hand-Inventory system,01/03/2018,3406176-118914,"2,900.50",HYDRAM ENGINEERING LTD.
Regeneration and Local Services,Technical Services,Stock,926900,Stock in hand-Inventory system,01/03/2018,3406176-118938,"5,801.00",HYDRAM ENGINEERING LTD.
Regeneration and Local Services,Technical Services,Stock,926900,Stock in hand-Inventory system,01/03/2018,3406176-119014,"2,900.50",HYDRAM ENGINEERING LTD.
Transformation and Partnerships,Comms & Information Management,Supplies and Services,342053,Computers and Communications,01/03/2018,3406179-7019653,"13,078.00",IDOX SOFTWARE LTD.
Regeneration and Local Services,Spatial Policy Planning Assets & Environment,Supplies and Services,342051,Computers and Communications,01/03/2018,3406179-110013,"13,990.37",IDOX SOFTWARE LTD.
Regeneration and Local Services,Spatial Policy Planning Assets & Environment,Supplies and Services,342051,Computers and Communications,01/03/2018,3406179-110014,686.59,IDOX SOFTWARE LTD.
Regeneration and Local Services,Culture & Sport,Premises,120021,Energy Costs,01/03/2018,3406182-11218,"6,263.75",IMPALA ESTATES LTD.
Dedicated Schools Grant,Dedicated Schools Grant,Supplies and Services,304259,Equipment and Materials,01/03/2018,3406183-157141,"1,355.50",INCLUSIVE TECHNOLOGY LTD.
Adult and Health Services,Commissioning inc Supporting People,Supplies and Services,338089,Services,01/03/2018,3406184-17234,"1,165.00",INDEPENDENT CLINICAL INITIATIVE SERVICES LTD.
Resources,Digital and Customer Services,Supplies and Services,304303,Equipment and Materials,01/03/2018,3406186-SIN423106,501.41,INFORMATION & DATA NETWORK SUPPLIES LTD (IDN).
Resources,Digital and Customer Services,Supplies and Services,304303,Equipment and Materials,01/03/2018,3406186-SIN423285,"2,343.00",INFORMATION & DATA NETWORK SUPPLIES LTD (IDN).
Resources,Digital and Customer Services,Stock,926900,Stock in hand-Inventory system,01/03/2018,3406186-SIN423120,765.86,INFORMATION & DATA NETWORK SUPPLIES LTD (IDN).
Dedicated Schools Grant,Dedicated Schools Grant,Transfer Payments,510034,School Children,01/03/2018,3406187-LACPP1718 AUTUMN,550.00,INGLEBY MANOR FREE SCHOOL & SIXTH FORM.
Children and Young Peoples Services,Head of Education,Supplies and Services,384199,Miscellaneous Expenses,01/03/2018,3406188-4011,"1,350.00",INGRAM AV LTD T/A INGRAMSOUNDS.
Resources,Digital and Customer Services,Stock,926900,Stock in hand-Inventory system,01/03/2018,3406190-3745361,516.40,INSIGHT DIRECT (UK) LTD.
Regeneration and Local Services,Technical Services,Stock,926900,Stock in hand-Inventory system,01/03/2018,3406191-618672,"2,897.44",INSTARMAC GROUP PLC.
Adult and Health Services,EnvironmentHealth & Consumer Protection,Supplies and Services,352001,Conference Expenses,01/03/2018,3406195-13145,"1,495.00",IQ MANAGEMENT SYSTEMS (IQMS).
Regeneration and Local Services,Technical Services,Third Party Payments,430127,Rendered by Private Contractors,01/03/2018,3406196-1317/2017,"3,226.00",J & JG GILL & SONS LTD.
Regeneration and Local Services,Technical Services,Third Party Payments,430127,Rendered by Private Contractors,01/03/2018,3406196-1329/2017,"1,682.00",J & JG GILL & SONS LTD.
Children and Young Peoples Services,Head of Education,Third Party Payments,440999,Other Third Party Payments,01/03/2018,3406198-JD/DCC/1693,"1,207.53",JACK DRUM ARTS LTD.
Regeneration and Local Services,Direct Services,Third Party Payments,430100,Rendered by Private Contractors,01/03/2018,3406208-16371,687.13,JC MAINTENANCE SERVICES LTD.
Regeneration and Local Services,Direct Services,Third Party Payments,430100,Rendered by Private Contractors,01/03/2018,3406208-16418,739.20,JC MAINTENANCE SERVICES LTD.
Regeneration and Local Services,Transport and Contracted Services,Third Party Payments,430106,Rendered by Private Contractors,01/03/2018,3406218-DCC13/17JAN18,"3,298.59",JOHN JAMES BRUNSKILL.
Children and Young Peoples Services,Head of Education,Supplies and Services,304259,Equipment and Materials,01/03/2018,3406219-0000129916,559.63,JOHN PACKER LTD.
Regeneration and Local Services,Direct Services,Supplies and Services,304221,Equipment and Materials,01/03/2018,3406224-GOI807/D,936.31,JT DOVE LTD.
Regeneration and Local Services,Technical Services,Supplies and Services,304221,Equipment and Materials,01/03/2018,3406224-GOI808/D,813.62,JT DOVE LTD.
Regeneration and Local Services,Direct Services,Supplies and Services,304221,Equipment and Materials,01/03/2018,3406224-PHBI138062,"2,646.00",JT DOVE LTD.
Regeneration and Local Services,Technical Services,Stock,926900,Stock in hand-Inventory system,01/03/2018,3406224-BII248653,857.52,JT DOVE LTD.
Regeneration and Local Services,Technical Services,Stock,926900,Stock in hand-Inventory system,01/03/2018,3406224-BII248739,690.78,JT DOVE LTD.
Regeneration and Local Services,Technical Services,Stock,926900,Stock in hand-Inventory system,01/03/2018,3406224-GOI800/D,"4,767.00",JT DOVE LTD.
Regeneration and Local Services,Technical Services,Stock,926900,Stock in hand-Inventory system,01/03/2018,3406224-PHBII37906,"2,200.80",JT DOVE LTD.
Regeneration and Local Services,Spatial Policy Planning Assets & Environment,Supplies and Services,338066,Services,01/03/2018,3406226-896,"4,800.00",JW BAINBRIDGE CONTRACTORS LTD.
Children and Young Peoples Services,Head of Education,Supplies and Services,384199,Miscellaneous Expenses,01/03/2018,3406227-17112A,"1,400.00",KAREN BROWN CONSULTING LTD.
Regeneration and Local Services,Technical Services,Supplies and Services,304259,Equipment and Materials,01/03/2018,3406231-I0812074,"1,208.70",KEY INDUSTRIAL EQUIPMENT LTD.
Dedicated Schools Grant,Dedicated Schools Grant,Transfer Payments,510034,School Children,01/03/2018,3406232-LACPP1718 AUTUMN/SPRING,"2,000.00",KING JAMES I ACADEMY.
Regeneration and Local Services,Technical Services,Third Party Payments,430100,Rendered by Private Contractors,01/03/2018,3406235-1994,"39,784.82",L & G PLANT HIRE & SALES LTD.
Regeneration and Local Services,Technical Services,Third Party Payments,430100,Rendered by Private Contractors,01/03/2018,3406235-1996,"41,470.88",L & G PLANT HIRE & SALES LTD.
Regeneration and Local Services,Culture & Sport,Supplies and Services,338047,Services,01/03/2018,3406237-3373,"3,380.00",LAKIN MCCARTHY ENTERTAINMENT LTD.
Resources,Legal & Democratic Services,Supplies and Services,372009,Subscriptions,01/03/2018,3406250-DI476248C,"4,279.25",LEXISNEXIS BUTTERWORTHS.
Regeneration and Local Services,Technical Services,Supplies and Services,304221,Equipment and Materials,01/03/2018,3406251-CINV-070545,590.09,LIMELIGHT SIGNS LTD.
Regeneration and Local Services,Technical Services,Supplies and Services,304221,Equipment and Materials,01/03/2018,3406251-CINV-071103,"2,277.60",LIMELIGHT SIGNS LTD.
Children and Young Peoples Services,Head of Education,Transfer Payments,510026,School Children,01/03/2018,3406255-9THFEBRUARY2018,"1,755.00",LITTLE BUNDLES OF MURTON LTD (RIBBON DAYCARE).
Children and Young Peoples Services,Head of Education,Transfer Payments,510026,School Children,01/03/2018,3406255-INROWELL24/9/17-9/2/18,"3,348.00",LITTLE BUNDLES OF MURTON LTD (RIBBON DAYCARE).
Children and Young Peoples Services,Head of Education,Transfer Payments,510026,School Children,01/03/2018,3406255-JSMITH4/12/17-9/2/18,767.40,LITTLE BUNDLES OF MURTON LTD (RIBBON DAYCARE).
Children and Young Peoples Services,Head of Early Help Assessment and Safeguarding,Transport,230005,Contract Hire,01/03/2018,3406258-3368,606.00,LOCAL TRANSPORT LTD.
Children and Young Peoples Services,Head of Early Help Assessment and Safeguarding,Transport,230005,Contract Hire,01/03/2018,3406258-3738,625.00,LOCAL TRANSPORT LTD.
Children and Young Peoples Services,Head of Early Help Assessment and Safeguarding,Transport,230005,Contract Hire,01/03/2018,3406258-3739,"1,518.00",LOCAL TRANSPORT LTD.
Children and Young Peoples Services,Head of Early Help Assessment and Safeguarding,Transport,230005,Contract Hire,01/03/2018,3406258-3740,"1,296.00",LOCAL TRANSPORT LTD.
Children and Young Peoples Services,Head of Looked After Provision Permanence and Care Leavers,Transport,230005,Contract Hire,01/03/2018,3406258-3764,"1,320.00",LOCAL TRANSPORT LTD.
Children and Young Peoples Services,Head of Looked After Provision Permanence and Care Leavers,Transport,230005,Contract Hire,01/03/2018,3406258-3765,512.00,LOCAL TRANSPORT LTD.
Children and Young Peoples Services,Head of Early Help Assessment and Safeguarding,Transport,230005,Contract Hire,01/03/2018,3406258-3767,616.00,LOCAL TRANSPORT LTD.
Resources,Finance & Transactional Services,Supplies and Services,384180,Miscellaneous Expenses,01/03/2018,3406261-0118663,"5,615.59",LOOMIS UK LTD.
Children and Young Peoples Services,Head of Education,Construction Work,908105,Construction work,01/03/2018,3406264-63970,"1,200.00",LUCION ENVIRONMENTAL LLP LTD.
Dedicated Schools Grant,Dedicated Schools Grant,Supplies and Services,304259,Equipment and Materials,01/03/2018,3406265-INV-1956,"2,250.00",LYNCH HEALTHCARE LTD.
Resources,Corporate Finance & Commercial Services,Supplies and Services,344135,Telephones,01/03/2018,3406270-12121602,580.00,MAINTEL EUROPE LTD.
Resources,Digital and Customer Services,Supplies and Services,344137,Telephones,01/03/2018,3406270-698158,"58,513.80",MAINTEL EUROPE LTD.
Regeneration and Local Services,Technical Services,Supplies and Services,304221,Equipment and Materials,01/03/2018,3406272-124813,"3,812.99",MALLATITE LTD T/A MALLATITE PLASTICS LTD.
Regeneration and Local Services,Technical Services,Supplies and Services,304221,Equipment and Materials,01/03/2018,3406272-124815,894.27,MALLATITE LTD T/A MALLATITE PLASTICS LTD.
Regeneration and Local Services,Technical Services,Stock,926900,Stock in hand-Inventory system,01/03/2018,3406272-124824,"7,173.00",MALLATITE LTD T/A MALLATITE PLASTICS LTD.
Regeneration and Local Services,Technical Services,Stock,926900,Stock in hand-Inventory system,01/03/2018,3406272-124841,"2,992.50",MALLATITE LTD T/A MALLATITE PLASTICS LTD.
Dedicated Schools Grant,Dedicated Schools Grant,Transfer Payments,510034,School Children,01/03/2018,3406276-LACPP1718 AUTUMN & SPRING,"1,650.00",MARCHBANK FREE SCHOOL.
Regeneration and Local Services,Technical Services,Supplies and Services,304221,Equipment and Materials,01/03/2018,3406277-Z000012225,"4,031.30",MARSHALLS MONO LTD.
Regeneration and Local Services,Technical Services,Supplies and Services,304221,Equipment and Materials,01/03/2018,3406277-Z000014027,"7,271.56",MARSHALLS MONO LTD.
Regeneration and Local Services,Culture & Sport,Supplies and Services,338047,Services,01/03/2018,3406279-1,700.00,MARTY CRAGGS (MUSICIAN).
Regeneration and Local Services,Technical Services,Supplies and Services,342051,Computers and Communications,01/03/2018,3406281-MB/21709,640.00,MASTERBILL MICRO SYSTEMS LTD.
Resources,Corporate Finance & Commercial Services,Supplies and Services,342053,Computers and Communications,01/03/2018,3406288-0000003665,"7,095.00",MEDGATE UK LTD.
Regeneration and Local Services,Culture & Sport,Supplies and Services,324001,Provisions,01/03/2018,3406298-904356658,"1,114.86",MOLSON COORS BREWING COMPANY (UK) LTD.
Regeneration and Local Services,Culture & Sport,Supplies and Services,324117,Provisions,01/03/2018,3406298-904363590,"1,029.97",MOLSON COORS BREWING COMPANY (UK) LTD.
Regeneration and Local Services,Culture & Sport,Supplies and Services,324117,Provisions,01/03/2018,3406298-904376353,"1,188.96",MOLSON COORS BREWING COMPANY (UK) LTD.
Regeneration and Local Services,Spatial Policy Planning Assets & Environment,Supplies and Services,338027,Services,01/03/2018,3406302-152873-06/02/18,600.00,MR GRAEME KEEN.
Regeneration and Local Services,Culture & Sport,Supplies and Services,304252,Equipment and Materials,01/03/2018,3406308-DRS/DCC/08/SERVICING,"1,881.50",MR PT STOCKDALE T/A DR SPOKES (BICYCLE REPAIR & INSTRUCTION).
Regeneration and Local Services,Direct Services,Third Party Payments,430100,Rendered by Private Contractors,01/03/2018,3406311-DCC028,"1,350.00",MR WILLIAM MAGUIRE T/A VALLUM LIFTS.
Regeneration and Local Services,Technical Services,Supplies and Services,304221,Equipment and Materials,01/03/2018,3406332-0000067243,"1,498.90",NAL LTD.
Dedicated Schools Grant,Dedicated Schools Grant,Supplies and Services,352001,Conference Expenses,01/03/2018,3406335-496,910.00,NATIONAL AUTISTIC SOCIETY.
Children and Young Peoples Services,Head of Education,Supplies and Services,372009,Subscriptions,01/03/2018,3406338-61651930,"14,182.69",NCER CIC.
Regeneration and Local Services,Transport and Contracted Services,Construction Work,908105,Construction work,01/03/2018,3406343-1223716,"17,486.16",NETWORK RAIL.
Resources,Legal & Democratic Services,Supplies and Services,384151,Miscellaneous Expenses,01/03/2018,3406346-R0293758,"1,295.00",NEWCASTLE UPON TYNE HOSPITALS NHS FOUNDATION TRUST.
Regeneration and Local Services,Spatial Policy Planning Assets & Environment,Supplies and Services,336005,Advertising,01/03/2018,3406347-23620862,531.44,NEWSQUEST (YORKSHIRE & NORTH EAST) LTD.
Regeneration and Local Services,Spatial Policy Planning Assets & Environment,Supplies and Services,336005,Advertising,01/03/2018,3406347-23699542,531.44,NEWSQUEST (YORKSHIRE & NORTH EAST) LTD.
Regeneration and Local Services,Spatial Policy Planning Assets & Environment,Supplies and Services,336005,Advertising,01/03/2018,3406347-23699570,584.58,NEWSQUEST (YORKSHIRE & NORTH EAST) LTD.
Transformation and Partnerships,Comms & Information Management,Supplies and Services,336005,Advertising,01/03/2018,3406347-23699739,"2,000.00",NEWSQUEST (YORKSHIRE & NORTH EAST) LTD.
Adult and Health Services,Public Health,Supplies and Services,384155,Miscellaneous Expenses,01/03/2018,3406349-1000055110,"72,437.42",NHS BUSINESS SERVICES AUTHORITY (NHSBSA).
Adult and Health Services,Public Health,Third Party Payments,460802,Contract Payments,01/03/2018,3406350-7010100972,"30,342.25",NHS DDES CCG.
Regeneration and Local Services,Culture & Sport,Supplies and Services,338047,Services,01/03/2018,3406351-2017/821,"4,923.10",NICK BROOKE LTD.
Regeneration and Local Services,Direct Services,Supplies and Services,304083,Equipment and Materials,01/03/2018,3406353-16283216,"1,974.42",NISBETS PLC.
Dedicated Schools Grant,Dedicated Schools Grant,Transfer Payments,510034,School Children,01/03/2018,3406355-LACPP1718 AUTUMN,"1,066.00",NORTH DURHAM ACADEMY.
Dedicated Schools Grant,Dedicated Schools Grant,Third Party Payments,440080,Other Third Party Payments,01/03/2018,3406356-0000035737,"1,990.00",NORTH EAST AUTISM SOCIETY.
Dedicated Schools Grant,Dedicated Schools Grant,Third Party Payments,440080,Other Third Party Payments,01/03/2018,3406356-0000035738,"1,990.00",NORTH EAST AUTISM SOCIETY.
Dedicated Schools Grant,Dedicated Schools Grant,Third Party Payments,440080,Other Third Party Payments,01/03/2018,3406356-0000035739,"3,573.33",NORTH EAST AUTISM SOCIETY.
Dedicated Schools Grant,Dedicated Schools Grant,Third Party Payments,440080,Other Third Party Payments,01/03/2018,3406356-0000035754,"4,624.33",NORTH EAST AUTISM SOCIETY.
Dedicated Schools Grant,Dedicated Schools Grant,Third Party Payments,440080,Other Third Party Payments,01/03/2018,3406356-0000035755,"4,624.33",NORTH EAST AUTISM SOCIETY.
Regeneration and Local Services,Spatial Policy Planning Assets & Environment,Supplies and Services,384199,Miscellaneous Expenses,01/03/2018,3406358-1091,"26,949.88",NORTH EAST ENVIRONMENT NETWORK LTD T/A (OASES).
Dedicated Schools Grant,Dedicated Schools Grant,Transfer Payments,510034,School Children,01/03/2018,3406359-LACPP1718 AUTUMN/SPRING,"2,080.00",NORTH EAST LEARNING TRUST (NELT).
Resources,Finance & Transactional Services,Supplies and Services,338064,Services,01/03/2018,3406360-19528,"41,450.00",NORTH EAST REGIONAL EMPLOYERS ORGANISATION (NEREO).
Regeneration and Local Services,Transport and Contracted Services,Construction Work,908105,Construction work,01/03/2018,3406361-18013,"1,280.00",NORTH EAST TRAFFIC DATA COLLECTION LTD.
Regeneration and Local Services,Transport and Contracted Services,Third Party Payments,430108,Rendered by Private Contractors,01/03/2018,3406361-18006,560.00,NORTH EAST TRAFFIC DATA COLLECTION LTD.
Dedicated Schools Grant,Dedicated Schools Grant,Supplies and Services,384985,Miscellaneous Expenses,01/03/2018,3406363-3610031861,"30,000.00",NORTH TEES & HARTLEPOOL NHS FOUNDATION TRUST.
Dedicated Schools Grant,Dedicated Schools Grant,Transfer Payments,510034,School Children,01/03/2018,3406364-LACPP1718 AUTUMN & SPRING,"1,100.00",NORTHERN EDUCATION TRUST - THORP ACADEMY.
Regeneration and Local Services,Technical Services,Third Party Payments,430100,Rendered by Private Contractors,01/03/2018,3406366-DI20277789,"2,307.89",NORTHERN POWERGRID (NORTHEAST) LTD.
Regeneration and Local Services,Technical Services,Third Party Payments,430100,Rendered by Private Contractors,01/03/2018,3406366-DI20282565,740.07,NORTHERN POWERGRID (NORTHEAST) LTD.
Regeneration and Local Services,Technical Services,Third Party Payments,430100,Rendered by Private Contractors,01/03/2018,3406366-DI20287487,686.52,NORTHERN POWERGRID (NORTHEAST) LTD.
Regeneration and Local Services,Technical Services,Third Party Payments,430100,Rendered by Private Contractors,01/03/2018,3406366-DI20287817,"2,456.90",NORTHERN POWERGRID (NORTHEAST) LTD.
Regeneration and Local Services,Technical Services,Third Party Payments,430100,Rendered by Private Contractors,01/03/2018,3406366-DI20287818,"2,700.51",NORTHERN POWERGRID (NORTHEAST) LTD.
Regeneration and Local Services,Technical Services,Third Party Payments,430100,Rendered by Private Contractors,01/03/2018,3406366-DI20287989,566.49,NORTHERN POWERGRID (NORTHEAST) LTD.
Regeneration and Local Services,Technical Services,Third Party Payments,430100,Rendered by Private Contractors,01/03/2018,3406366-DI20287991,944.15,NORTHERN POWERGRID (NORTHEAST) LTD.
Regeneration and Local Services,Direct Services,Supplies and Services,304221,Equipment and Materials,01/03/2018,3406367-2623283,617.00,NORTHERN TOOLS & ACCESSORIES.
Regeneration and Local Services,Technical Services,Third Party Payments,430100,Rendered by Private Contractors,01/03/2018,3406369-154820,718.02,NORTHUMBERLAND COUNTY COUNCIL.
Dedicated Schools Grant,Dedicated Schools Grant,Transfer Payments,510034,School Children,01/03/2018,3406370-LACPP1718 AUTUMN & SPRING,"2,270.00",NORTHUMBERLAND COUNTY COUNCIL.
Dedicated Schools Grant,Dedicated Schools Grant,Transfer Payments,510034,School Children,01/03/2018,3406373-LACPP1718 AUTUMN & SPRING,"1,400.00",NOTTINGHAM ACADEMY.
Dedicated Schools Grant,Dedicated Schools Grant,Transfer Payments,510034,School Children,01/03/2018,3406377-LACPP1718 AUTUMN,"1,474.00",NUNTHORPE ACADEMY LTD.
Adult and Health Services,Head of Adults,Third Party Payments,478151,Purchase of Care,01/03/2018,3406378-31517,778.68,OAKLEA TRUST.
Adult and Health Services,Head of Adults,Third Party Payments,478151,Purchase of Care,01/03/2018,3406378-31519,"1,973.70",OAKLEA TRUST.
Adult and Health Services,Head of Adults,Third Party Payments,478151,Purchase of Care,01/03/2018,3406378-31520,"2,290.45",OAKLEA TRUST.
Regeneration and Local Services,Culture & Sport,Supplies and Services,332029,Printing Stationery and Gen Off Exps,01/03/2018,3406381-12491,888.00,OFFSTONE PUBLISHING.
Regeneration and Local Services,Direct Services,Transport,215005,Running Costs of Vehicles,01/03/2018,3406382-307903,"11,178.17",OIL NRG LTD.
Regeneration and Local Services,Direct Services,Transport,215005,Running Costs of Vehicles,01/03/2018,3406382-307954,"4,753.50",OIL NRG LTD.
Regeneration and Local Services,Direct Services,Transport,215022,Running Costs of Vehicles,01/03/2018,3406382-307908,947.97,OIL NRG LTD.
Regeneration and Local Services,Technical Services,Third Party Payments,430100,Rendered by Private Contractors,01/03/2018,3406383-19975,540.00,OLIVERS TREE SERVICES LTD.
Adult and Health Services,EnvironmentHealth & Consumer Protection,Supplies and Services,304999,Equipment and Materials,01/03/2018,3406385-0000134813,522.79,ONLINE ERGONOMICS LTD.
Dedicated Schools Grant,Dedicated Schools Grant,Transfer Payments,510034,School Children,01/03/2018,3406388-LACPP1718 AUTUMN,550.00,OUR LADY & ST BEDE CATHOLIC ACADEMY.
Children and Young Peoples Services,Childrens Services Operational Support,Supplies and Services,342051,Computers and Communications,01/03/2018,3406390-13424,"7,249.00",OXFORD COMPUTER CONSULTANTS LTD.
Regeneration and Local Services,Technical Services,Stock,926900,Stock in hand-Inventory system,01/03/2018,3406395-XL217538,"3,360.00",PARK ELECTRICAL DISTRIBUTORS LTD.
Regeneration and Local Services,Technical Services,Stock,926900,Stock in hand-Inventory system,01/03/2018,3406395-XL217547,"1,818.30",PARK ELECTRICAL DISTRIBUTORS LTD.
Regeneration and Local Services,Technical Services,Stock,926900,Stock in hand-Inventory system,01/03/2018,3406395-XL217590,590.80,PARK ELECTRICAL DISTRIBUTORS LTD.
Regeneration and Local Services,Technical Services,Stock,926900,Stock in hand-Inventory system,01/03/2018,3406395-XL217733,"2,572.80",PARK ELECTRICAL DISTRIBUTORS LTD.
Regeneration and Local Services,Technical Services,Stock,926900,Stock in hand-Inventory system,01/03/2018,3406395-XL217752,813.60,PARK ELECTRICAL DISTRIBUTORS LTD.
Regeneration and Local Services,Technical Services,Stock,926900,Stock in hand-Inventory system,01/03/2018,3406395-XL217754,"1,560.00",PARK ELECTRICAL DISTRIBUTORS LTD.
Regeneration and Local Services,Technical Services,Stock,926900,Stock in hand-Inventory system,01/03/2018,3406395-XL217848,537.00,PARK ELECTRICAL DISTRIBUTORS LTD.
Regeneration and Local Services,Technical Services,Stock,926900,Stock in hand-Inventory system,01/03/2018,3406395-XL217989,681.00,PARK ELECTRICAL DISTRIBUTORS LTD.
Regeneration and Local Services,Technical Services,Stock,926900,Stock in hand-Inventory system,01/03/2018,3406395-XL218055,"3,300.00",PARK ELECTRICAL DISTRIBUTORS LTD.
Dedicated Schools Grant,Dedicated Schools Grant,Transfer Payments,510034,School Children,01/03/2018,3406396-LACPP1718 AUTUMN/SPRING,"7,150.00",PARK VIEW ACADEMY.
Regeneration and Local Services,Culture & Sport,Supplies and Services,384700,Miscellaneous Expenses,01/03/2018,3406397-NEI-HCL-02-2018-006,"2,000.00",PARKRUN LTD.
Dedicated Schools Grant,Dedicated Schools Grant,Transfer Payments,510034,School Children,01/03/2018,3406398-LACPP1718 AUTUMN/SPRING,"2,500.00",PARKSIDE SPORTS COLLEGE ACADEMY.
Regeneration and Local Services,Culture & Sport,Employees,080030,Agency Staff,01/03/2018,3406401-PC8218,500.00,PAUL COOKSON.
Dedicated Schools Grant,Dedicated Schools Grant,Transfer Payments,510034,School Children,01/03/2018,3406405-LACPP1718 AUTUMN & SPRING,"1,100.00",PERCY HEDLEY CENTRE.
Dedicated Schools Grant,Dedicated Schools Grant,Third Party Payments,425005,Rendered by Voluntary Organisations,01/03/2018,3406406-34546,"9,125.64",PERCY HEDLEY FOUNDATION.
Children and Young Peoples Services,Head of Early Help Assessment and Safeguarding,Third Party Payments,425020,Rendered by Voluntary Organisations,01/03/2018,3406406-34664,"5,366.60",PERCY HEDLEY FOUNDATION.
Dedicated Schools Grant,Dedicated Schools Grant,Third Party Payments,440080,Other Third Party Payments,01/03/2018,3406406-34607,"20,652.19",PERCY HEDLEY FOUNDATION.
Adult and Health Services,Head of Adults,Third Party Payments,470101,Purchase of Care,01/03/2018,3406406-34659,747.00,PERCY HEDLEY FOUNDATION.
Adult and Health Services,Head of Adults,Third Party Payments,470101,Purchase of Care,01/03/2018,3406406-34660,"1,967.60",PERCY HEDLEY FOUNDATION.
Adult and Health Services,Head of Adults,Third Party Payments,470101,Purchase of Care,01/03/2018,3406406-34662,"1,429.20",PERCY HEDLEY FOUNDATION.
Adult and Health Services,Head of Adults,Third Party Payments,470101,Purchase of Care,01/03/2018,3406406-34686,"20,476.12",PERCY HEDLEY FOUNDATION.
Children and Young Peoples Services,Head of Looked After Provision Permanence and Care Leavers,Supplies and Services,338099,Services,01/03/2018,3406415-201703-JAN2018,500.00,PHILIP CARMEDY-PYE T/A PCP TRAINING SERVICES.
Regeneration and Local Services,Technical Services,Third Party Payments,430100,Rendered by Private Contractors,01/03/2018,3406418-5024,"4,536.50",PINKNEY BUILDING CONTRACTORS LTD.
Regeneration and Local Services,Technical Services,Third Party Payments,430100,Rendered by Private Contractors,01/03/2018,3406418-5025,"4,863.30",PINKNEY BUILDING CONTRACTORS LTD.
Regeneration and Local Services,Technical Services,Third Party Payments,430100,Rendered by Private Contractors,01/03/2018,3406418-5026,"14,589.90",PINKNEY BUILDING CONTRACTORS LTD.
Resources,Digital and Customer Services,Supplies and Services,332029,Printing Stationery and Gen Off Exps,01/03/2018,3406422-654956,983.00,POTTS PRINTERS LTD.
Regeneration and Local Services,Technical Services,Supplies and Services,304999,Equipment and Materials,01/03/2018,3406423-91191,"1,200.00",PRECISION GEOMATICS LTD.
Resources,Digital and Customer Services,Supplies and Services,304245,Equipment and Materials,01/03/2018,3406424-9127550,518.72,PREMIER PAPER GROUP LTD.
Regeneration and Local Services,Technical Services,Third Party Payments,430100,Rendered by Private Contractors,01/03/2018,3406425-150434,"9,022.00",PREMIER TRAFFIC MANAGEMENT LTD.
Regeneration and Local Services,Technical Services,Third Party Payments,430100,Rendered by Private Contractors,01/03/2018,3406425-150471,"26,937.00",PREMIER TRAFFIC MANAGEMENT LTD.
Regeneration and Local Services,Economic Development and Housing,Supplies and Services,384700,Miscellaneous Expenses,01/03/2018,3406427-4100609316,"9,873.00",PRINCE BISHOPS COMMUNITY BANK.
Resources,Digital and Customer Services,Supplies and Services,304040,Equipment and Materials,01/03/2018,3406428-177140,"1,300.00",PROCESSFLOWS (UK) LTD.
Adult and Health Services,Head of Adults,Third Party Payments,478151,Purchase of Care,01/03/2018,3406429-1300006904,849.12,PROGRESS CARE HOUSING ASSOCIATION LTD.
Resources,Digital and Customer Services,Supplies and Services,338099,Services,01/03/2018,3406431-781,750.00,PROTECH CITY LTD.
Regeneration and Local Services,Technical Services,Supplies and Services,304221,Equipment and Materials,01/03/2018,3406432-107216,550.00,PROTECTOR SECURITY GROUP LTD.
Regeneration and Local Services,Technical Services,Supplies and Services,304221,Equipment and Materials,01/03/2018,3406432-107394,550.00,PROTECTOR SECURITY GROUP LTD.
Regeneration and Local Services,Technical Services,Stock,926900,Stock in hand-Inventory system,01/03/2018,3406433-40447,683.00,PROTEUS EQUIPMENT LTD.
Dedicated Schools Grant,Dedicated Schools Grant,Employees,080025,Agency Staff,01/03/2018,3406434-51261237,586.00,PROTOCOL EDUCATION LTD.
Adult and Health Services,Head of Adults,Supplies and Services,338066,Services,01/03/2018,3406436-0802201816022018,908.84,PSYCH ONE LTD.
Dedicated Schools Grant,Dedicated Schools Grant,Transfer Payments,510034,School Children,01/03/2018,3406439-LACPP1718 AUTUMN,500.00,QUALITY TIME CARE LTD T/A HIGHCROFT SCHOOL.
Regeneration and Local Services,Culture & Sport,Supplies and Services,338047,Services,01/03/2018,3406441-54,"1,050.00",RACHEL COCHRANE T/A LISTENUPNORTH.
Regeneration and Local Services,Culture & Sport,Supplies and Services,384199,Miscellaneous Expenses,01/03/2018,3406441-53,"1,800.00",RACHEL COCHRANE T/A LISTENUPNORTH.
Resources,Digital and Customer Services,Supplies and Services,332029,Printing Stationery and Gen Off Exps,01/03/2018,3406442-15797,545.00,RADECAL SIGNS GRAPHICS & ADVERTISING.
Resources,Digital and Customer Services,Supplies and Services,332029,Printing Stationery and Gen Off Exps,01/03/2018,3406442-15799,787.50,RADECAL SIGNS GRAPHICS & ADVERTISING.
Regeneration and Local Services,Technical Services,Third Party Payments,430100,Rendered by Private Contractors,01/03/2018,3406443-2800/180216,"127,903.69",RAINTON CONSTRUCTION LTD.
Resources,Digital and Customer Services,Supplies and Services,344131,Telephones,01/03/2018,3406448-SIN050986,700.00,REDWAY NETWORKS LTD.
Resources,Digital and Customer Services,Supplies and Services,342107,Computers and Communications,01/03/2018,3406449-INV-1754,"2,189.00",REDWOOD CABLE PROJECTS LTD.
Dedicated Schools Grant,Dedicated Schools Grant,Transfer Payments,510034,School Children,01/03/2018,3406454-LACPP1718 AUTUMN,"3,850.00",RIBBON ACADEMY TRUST.
Regeneration and Local Services,Economic Development and Housing,Construction Work,908105,Construction work,01/03/2018,3406457-2189,"7,490.00",RIVERMEADE SIGNS LTD.
Children and Young Peoples Services,Head of Early Help Assessment and Safeguarding,Transport,230005,Contract Hire,01/03/2018,3406461-1276,561.00,ROAD RUNNERS (NE) LTD.
Children and Young Peoples Services,Head of Education,Supplies and Services,384540,Miscellaneous Expenses,01/03/2018,3406462-2017-23,500.00,ROBERT CARR T/A RGR FILM PRODUCTIONS.
Children and Young Peoples Services,Head of Education,Supplies and Services,384540,Miscellaneous Expenses,01/03/2018,3406462-2017-24,700.00,ROBERT CARR T/A RGR FILM PRODUCTIONS.
Dedicated Schools Grant,Dedicated Schools Grant,Supplies and Services,304259,Equipment and Materials,01/03/2018,3406465-106337,500.25,ROMPA LTD.
Regeneration and Local Services,Business Support,Supplies and Services,340001,Postages,01/03/2018,3406466-9056040188,"1,601.76",ROYAL MAIL GROUP PLC.
Regeneration and Local Services,Spatial Policy Planning Assets & Environment,Supplies and Services,384199,Miscellaneous Expenses,01/03/2018,3406470-SI-96,500.00,RYHOPE COMMUNITY ASSOCIATION.
Regeneration and Local Services,Technical Services,Third Party Payments,430100,Rendered by Private Contractors,01/03/2018,3406476-1371,"1,245.00",SCHMUCK WHORLTON LTD.
Regeneration and Local Services,Technical Services,Construction Work,908112,Capital - Drainage,01/03/2018,3406486-19040,"14,763.68",SEYMOUR (CIVIL ENGINEERING CONTRACTORS) LTD.
Regeneration and Local Services,Technical Services,Construction Work,908112,Capital - Drainage,01/03/2018,3406486-19041,"45,737.62",SEYMOUR (CIVIL ENGINEERING CONTRACTORS) LTD.
Regeneration and Local Services,Technical Services,Construction Work,908112,Capital - Drainage,01/03/2018,3406486-19042,"6,000.00",SEYMOUR (CIVIL ENGINEERING CONTRACTORS) LTD.
Adult and Health Services,Head of Adults,Supplies and Services,338066,Services,01/03/2018,3406488-0802201816022018,538.16,SHAN MEDICAL SERVICES LTD.
Dedicated Schools Grant,Dedicated Schools Grant,Supplies and Services,384199,Miscellaneous Expenses,01/03/2018,3406489-04,810.00,SHARON HOWARD T/A SH COUNSELLING SERVICES.
Regeneration and Local Services,Economic Development and Housing,Supplies and Services,384071,Miscellaneous Expenses,01/03/2018,3406492-05022018,"1,485.00",SHE`S GOTT IT.
Regeneration and Local Services,Direct Services,Supplies and Services,304221,Equipment and Materials,01/03/2018,3406491-CD970591204,"1,952.58",SHERRIFF AMENITY.
Dedicated Schools Grant,Dedicated Schools Grant,Transfer Payments,510034,School Children,01/03/2018,3406493-LACPP1718 AUTUMN/SPRING,"1,100.00",SHIELD ROW ACADEMY.
Transformation and Partnerships,Partnerships & Community Engagement Div.,Supplies and Services,384199,Miscellaneous Expenses,01/03/2018,3406494-SJ/317,"1,425.00",SHOPJACKET LTD.
Children and Young Peoples Services,Head of Looked After Provision Permanence and Care Leavers,Transport,230005,Contract Hire,01/03/2018,3406495-74051,680.00,SHOTTON PRIVATE HIRE.
Children and Young Peoples Services,Head of Early Help Assessment and Safeguarding,Transport,230005,Contract Hire,01/03/2018,3406495-74067,540.00,SHOTTON PRIVATE HIRE.
Regeneration and Local Services,Technical Services,Stock,926900,Stock in hand-Inventory system,01/03/2018,3406498-336360020499,"3,000.00",SIG TRADING LTD T/A SIG ROOFING.
Regeneration and Local Services,Direct Services,Supplies and Services,304221,Equipment and Materials,01/03/2018,3406506-4100607772,696.00,SMITH TIMBER SUPPLIES LTD.
Regeneration and Local Services,Culture & Sport,Supplies and Services,324117,Provisions,01/03/2018,3406508-40446,510.88,SNOWSHOCK LTD.
Resources,Digital and Customer Services,Vehicles Equipment Furniture and Fittings,912701,Computer equipment,01/03/2018,3406510-INV01827332,"1,918.00",SOFTCAT LTD.
Resources,Digital and Customer Services,Supplies and Services,342051,Computers and Communications,01/03/2018,3406510-INV01825616,"13,400.00",SOFTCAT LTD.
Regeneration and Local Services,Technical Services,Stock,926900,Stock in hand-Inventory system,01/03/2018,3406512-SI18001226,621.20,SOLON SECURITY LTD.
Regeneration and Local Services,Culture & Sport,Supplies and Services,338047,Services,01/03/2018,3406514-201718013,"1,850.00",SOPHIE TEASDALE T/A VON FOX PROMOTIONS.
Dedicated Schools Grant,Dedicated Schools Grant,Transfer Payments,510034,School Children,01/03/2018,3406515-LACPP1718 AUTUMN/SPRING,"1,850.00",SOUTH HETTON PRIMARY SCHOOL.
Regeneration and Local Services,Culture & Sport,Supplies and Services,304259,Equipment and Materials,01/03/2018,3406517-520081,910.97,SPORTSAFE UK LTD.
Dedicated Schools Grant,Dedicated Schools Grant,Transfer Payments,510034,School Children,01/03/2018,3406518-LACPP1718 AUTUMN & SPRING,"1,650.00",ST ANTHONY`S GIRLS SCHOOL.
Regeneration and Local Services,Direct Services,Third Party Payments,430100,Rendered by Private Contractors,01/03/2018,3406519-6132,"17,520.00",ST ASTIER LTD.
Dedicated Schools Grant,Dedicated Schools Grant,Transfer Payments,510034,School Children,01/03/2018,3406520-LACPP1718 AUTUMN/SPRING,"7,832.00",ST BEDES CATHOLIC ACADEMY (LANCHESTER).
Dedicated Schools Grant,Dedicated Schools Grant,Transfer Payments,510034,School Children,01/03/2018,3406521-LACPP1718 AUTUMN,550.00,ST HILDS CHURCH OF ENGLAND SCHOOL.
Dedicated Schools Grant,Dedicated Schools Grant,Transfer Payments,510034,School Children,01/03/2018,3406522-LACPP1718 AUTUMN/SPRING,"2,580.00",ST JOHN`S SCHOOL & SIXTH FORM COLLEGE A CATHOLIC ACADEMY.
Dedicated Schools Grant,Dedicated Schools Grant,Transfer Payments,510034,School Children,01/03/2018,3406525-LACPP1718 AUTUMN & SPRING,"1,100.00",ST TERESA`S RC PRIMARY SCHOOL.
Regeneration and Local Services,Culture & Sport,Supplies and Services,304259,Equipment and Materials,01/03/2018,3406526-00340268,611.15,STAGE ELECTRICS.
Dedicated Schools Grant,Dedicated Schools Grant,Transfer Payments,510034,School Children,01/03/2018,3406529-LACPP1718 AUTUMN,550.00,STANLEY LEARNING PARTNERSHIP.
Dedicated Schools Grant,Dedicated Schools Grant,Transfer Payments,510034,School Children,01/03/2018,3406529-LACPP1718 AUTUMN/SPRING,700.00,STANLEY LEARNING PARTNERSHIP.
Dedicated Schools Grant,Dedicated Schools Grant,Transfer Payments,510034,School Children,01/03/2018,3406531-LACPP1718 AUTUMN/SPRING,"1,600.00",STEPHENSON WAY COMMUNITY PRIMARY SCHOOL.
Transformation and Partnerships,Comms & Information Management,Supplies and Services,336005,Advertising,01/03/2018,3406532-INV-3659,"3,175.00",STEVE DAVIDSON ADVERTISING LTD T/A SD ADVERTISING LTD.
Children and Young Peoples Services,Head of Early Help Assessment and Safeguarding,Transport,230005,Contract Hire,01/03/2018,3406534-180192,"1,560.00",STEVEN PRATT T/A PTL TAXIS DURHAM.
Children and Young Peoples Services,Head of Looked After Provision Permanence and Care Leavers,Transport,230005,Contract Hire,01/03/2018,3406534-180196,895.00,STEVEN PRATT T/A PTL TAXIS DURHAM.
Transformation and Partnerships,Comms & Information Management,Supplies and Services,336005,Advertising,01/03/2018,3406538-INV000464,"15,400.00",STREET ART ADVERTISING LTD T/A STREET ADVERTISING SERVICES.
Regeneration and Local Services,Culture & Sport,Supplies and Services,338047,Services,01/03/2018,3406540-60187265,681.19,STUDIOCANAL LTD.
Adult and Health Services,Public Health,Third Party Payments,460803,Contract Payments,01/03/2018,3406541-170,"4,952.00",SUCCESS NORTH EAST COMMUNITY INTEREST COMPANY (CIC).
Dedicated Schools Grant,Dedicated Schools Grant,Transfer Payments,510034,School Children,01/03/2018,3406542-LACPP1718 AUTUMN & SPRING,"1,100.00",SUNDERLAND CITY COUNCIL.
Regeneration and Local Services,Transport and Contracted Services,Third Party Payments,410037,Rendered by Other Local Authorities,01/03/2018,3406550-90010886,808.99,SWARCO TRAFFIC LTD.
Regeneration and Local Services,Direct Services,Supplies and Services,304221,Equipment and Materials,01/03/2018,3406555-2625891,560.42,T CROSSLING & CO LTD.
Regeneration and Local Services,Direct Services,Supplies and Services,304221,Equipment and Materials,01/03/2018,3406555-2633173,775.00,T CROSSLING & CO LTD.
Regeneration and Local Services,Technical Services,Supplies and Services,304221,Equipment and Materials,01/03/2018,3406560-9037582758,635.25,TARMAC TRADING LTD.
Regeneration and Local Services,Technical Services,Supplies and Services,304221,Equipment and Materials,01/03/2018,3406560-9037604239,890.80,TARMAC TRADING LTD.
Regeneration and Local Services,Technical Services,Supplies and Services,304221,Equipment and Materials,01/03/2018,3406560-9037604991,948.09,TARMAC TRADING LTD.
Regeneration and Local Services,Technical Services,Supplies and Services,304221,Equipment and Materials,01/03/2018,3406560-9037611403,647.46,TARMAC TRADING LTD.
Regeneration and Local Services,Technical Services,Supplies and Services,304221,Equipment and Materials,01/03/2018,3406560-9037629083,633.27,TARMAC TRADING LTD.
Regeneration and Local Services,Technical Services,Supplies and Services,304221,Equipment and Materials,01/03/2018,3406560-9037643162,670.00,TARMAC TRADING LTD.
Regeneration and Local Services,Technical Services,Supplies and Services,304221,Equipment and Materials,01/03/2018,3406560-9037648690,518.05,TARMAC TRADING LTD.
Children and Young Peoples Services,Head of Looked After Provision Permanence and Care Leavers,Employees,080025,Agency Staff,01/03/2018,3406561-2136113,990.00,TEACHING PERSONNEL LTD.
Dedicated Schools Grant,Dedicated Schools Grant,Transfer Payments,510034,School Children,01/03/2018,3406571-LACPP1718 AUTUMN & SPRING,"2,100.00",THE DOVE ACADEMY TRUST - ST MARY`S COCKERTON PRIMARY SCHOOL.
Regeneration and Local Services,Spatial Policy Planning Assets & Environment,Supplies and Services,328041,Clothing Uniforms and Laundry,01/03/2018,3406579-30037,"2,139.69",THE OUTDOORS CO.
Regeneration and Local Services,Economic Development and Housing,Supplies and Services,344033,Telephones,01/03/2018,3406580-003980133,"1,032.48",THE PHONE CO-OP.
Dedicated Schools Grant,Dedicated Schools Grant,Third Party Payments,440080,Other Third Party Payments,01/03/2018,3406581-6861,"3,104.45",THE ROYAL NATIONAL COLLEGE FOR THE BLIND.
Children and Young Peoples Services,Head of Early Help Assessment and Safeguarding,Supplies and Services,384302,Miscellaneous Expenses,01/03/2018,3406585-5897,575.10,THE WORK PLACE (AYCLIFFE) LTD.
Regeneration and Local Services,Technical Services,Stock,926900,Stock in hand-Inventory system,01/03/2018,3406587-N/IN215304,"3,257.79",THOMAS OWEN & SONS (NEWCASTLE) LTD.
Regeneration and Local Services,Technical Services,Stock,926900,Stock in hand-Inventory system,01/03/2018,3406587-N/IN215305,"4,590.54",THOMAS OWEN & SONS (NEWCASTLE) LTD.
Regeneration and Local Services,Technical Services,Stock,926900,Stock in hand-Inventory system,01/03/2018,3406587-N/IN215537,607.69,THOMAS OWEN & SONS (NEWCASTLE) LTD.
Regeneration and Local Services,Technical Services,Stock,926900,Stock in hand-Inventory system,01/03/2018,3406587-N/IN215746,"1,400.00",THOMAS OWEN & SONS (NEWCASTLE) LTD.
Regeneration and Local Services,Technical Services,Stock,926900,Stock in hand-Inventory system,01/03/2018,3406590-106935,"5,654.00",TOFCO LTD.
Children and Young Peoples Services,Head of Early Help Assessment and Safeguarding,Transport,230005,Contract Hire,01/03/2018,3406591-RESINV390,630.00,TONYS TAXIS (A BIRCH).
Regeneration and Local Services,Direct Services,Supplies and Services,304221,Equipment and Materials,01/03/2018,3406595-31468,"1,263.00",TOTAL PUMP SOLUTIONS LTD.
Regeneration and Local Services,Technical Services,Stock,926900,Stock in hand-Inventory system,01/03/2018,3406596-100556,926.00,TOTAL RENTAL SOLUTIONS.
Dedicated Schools Grant,Dedicated Schools Grant,Transfer Payments,510034,School Children,01/03/2018,3406601-LACPP1718 AUTUMN & SPRING,600.00,TRINITY ACADEMY NEWCASTLE.
Regeneration and Local Services,Spatial Policy Planning Assets & Environment,Supplies and Services,338066,Services,01/03/2018,3406603-0000002678,"2,000.00",TULLIE HOUSE MUSEUM & ART GALLERY TRUST.
Regeneration and Local Services,Technical Services,Supplies and Services,304221,Equipment and Materials,01/03/2018,3406605-182272,946.88,TYNEDALE ROADSTONE LTD.
Regeneration and Local Services,Technical Services,Supplies and Services,304221,Equipment and Materials,01/03/2018,3406605-182316,698.24,TYNEDALE ROADSTONE LTD.
Regeneration and Local Services,Technical Services,Supplies and Services,304221,Equipment and Materials,01/03/2018,3406605-182317,645.44,TYNEDALE ROADSTONE LTD.
Regeneration and Local Services,Technical Services,Supplies and Services,304221,Equipment and Materials,01/03/2018,3406605-182359,890.24,TYNEDALE ROADSTONE LTD.
Regeneration and Local Services,Technical Services,Supplies and Services,304221,Equipment and Materials,01/03/2018,3406605-182398,526.40,TYNEDALE ROADSTONE LTD.
Regeneration and Local Services,Technical Services,Supplies and Services,304221,Equipment and Materials,01/03/2018,3406605-182477,646.40,TYNEDALE ROADSTONE LTD.
Regeneration and Local Services,Technical Services,Supplies and Services,304221,Equipment and Materials,01/03/2018,3406605-182543,954.56,TYNEDALE ROADSTONE LTD.
Regeneration and Local Services,Technical Services,Supplies and Services,304221,Equipment and Materials,01/03/2018,3406605-182584,"1,046.72",TYNEDALE ROADSTONE LTD.
Regeneration and Local Services,Technical Services,Supplies and Services,304221,Equipment and Materials,01/03/2018,3406605-182620,935.36,TYNEDALE ROADSTONE LTD.
Regeneration and Local Services,Technical Services,Supplies and Services,304221,Equipment and Materials,01/03/2018,3406605-182623,593.60,TYNEDALE ROADSTONE LTD.
Regeneration and Local Services,Technical Services,Supplies and Services,304221,Equipment and Materials,01/03/2018,3406605-182653,928.64,TYNEDALE ROADSTONE LTD.
Regeneration and Local Services,Technical Services,Supplies and Services,304221,Equipment and Materials,01/03/2018,3406605-182731,714.56,TYNEDALE ROADSTONE LTD.
Regeneration and Local Services,Technical Services,Supplies and Services,304221,Equipment and Materials,01/03/2018,3406605-182735,616.64,TYNEDALE ROADSTONE LTD.
Regeneration and Local Services,Technical Services,Supplies and Services,304221,Equipment and Materials,01/03/2018,3406605-182784,"1,584.64",TYNEDALE ROADSTONE LTD.
Regeneration and Local Services,Technical Services,Supplies and Services,304221,Equipment and Materials,01/03/2018,3406605-182853,778.88,TYNEDALE ROADSTONE LTD.
Regeneration and Local Services,Technical Services,Supplies and Services,304221,Equipment and Materials,01/03/2018,3406605-182855,701.12,TYNEDALE ROADSTONE LTD.
Regeneration and Local Services,Technical Services,Supplies and Services,304221,Equipment and Materials,01/03/2018,3406605-182929,692.48,TYNEDALE ROADSTONE LTD.
Regeneration and Local Services,Technical Services,Supplies and Services,304221,Equipment and Materials,01/03/2018,3406605-182930,686.72,TYNEDALE ROADSTONE LTD.
Regeneration and Local Services,Technical Services,Supplies and Services,304221,Equipment and Materials,01/03/2018,3406605-182978,"1,039.04",TYNEDALE ROADSTONE LTD.
Regeneration and Local Services,Technical Services,Supplies and Services,304221,Equipment and Materials,01/03/2018,3406605-183025,591.68,TYNEDALE ROADSTONE LTD.
Regeneration and Local Services,Technical Services,Supplies and Services,304221,Equipment and Materials,01/03/2018,3406605-183045,854.88,TYNEDALE ROADSTONE LTD.
Regeneration and Local Services,Technical Services,Supplies and Services,304221,Equipment and Materials,01/03/2018,3406605-183046,"1,105.82",TYNEDALE ROADSTONE LTD.
Regeneration and Local Services,Technical Services,Supplies and Services,304221,Equipment and Materials,01/03/2018,3406605-183047,"1,099.10",TYNEDALE ROADSTONE LTD.
Regeneration and Local Services,Technical Services,Supplies and Services,304221,Equipment and Materials,01/03/2018,3406605-183048,"1,008.72",TYNEDALE ROADSTONE LTD.
Regeneration and Local Services,Technical Services,Supplies and Services,304221,Equipment and Materials,01/03/2018,3406605-183076,658.10,TYNEDALE ROADSTONE LTD.
Regeneration and Local Services,Technical Services,Supplies and Services,304221,Equipment and Materials,01/03/2018,3406605-183078,"1,146.95",TYNEDALE ROADSTONE LTD.
Regeneration and Local Services,Technical Services,Supplies and Services,304221,Equipment and Materials,01/03/2018,3406605-183154,868.30,TYNEDALE ROADSTONE LTD.
Regeneration and Local Services,Technical Services,Supplies and Services,304221,Equipment and Materials,01/03/2018,3406605-183155,710.19,TYNEDALE ROADSTONE LTD.
Regeneration and Local Services,Technical Services,Supplies and Services,304221,Equipment and Materials,01/03/2018,3406605-183157,596.88,TYNEDALE ROADSTONE LTD.
Regeneration and Local Services,Technical Services,Supplies and Services,304221,Equipment and Materials,01/03/2018,3406605-183158,779.47,TYNEDALE ROADSTONE LTD.
Regeneration and Local Services,Technical Services,Supplies and Services,304221,Equipment and Materials,01/03/2018,3406605-183162,"1,011.80",TYNEDALE ROADSTONE LTD.
Regeneration and Local Services,Technical Services,Supplies and Services,304221,Equipment and Materials,01/03/2018,3406605-183165,717.10,TYNEDALE ROADSTONE LTD.
Regeneration and Local Services,Technical Services,Supplies and Services,304221,Equipment and Materials,01/03/2018,3406605-183169,"1,014.19",TYNEDALE ROADSTONE LTD.
Regeneration and Local Services,Technical Services,Supplies and Services,304221,Equipment and Materials,01/03/2018,3406605-183172,780.80,TYNEDALE ROADSTONE LTD.
Regeneration and Local Services,Technical Services,Supplies and Services,304221,Equipment and Materials,01/03/2018,3406605-183285,691.45,TYNEDALE ROADSTONE LTD.
Regeneration and Local Services,Technical Services,Supplies and Services,304221,Equipment and Materials,01/03/2018,3406605-183287,775.39,TYNEDALE ROADSTONE LTD.
Regeneration and Local Services,Technical Services,Supplies and Services,304221,Equipment and Materials,01/03/2018,3406605-183288,910.68,TYNEDALE ROADSTONE LTD.
Regeneration and Local Services,Technical Services,Supplies and Services,304221,Equipment and Materials,01/03/2018,3406605-183291,717.10,TYNEDALE ROADSTONE LTD.
Regeneration and Local Services,Technical Services,Supplies and Services,304221,Equipment and Materials,01/03/2018,3406605-183295,742.96,TYNEDALE ROADSTONE LTD.
Regeneration and Local Services,Technical Services,Supplies and Services,304221,Equipment and Materials,01/03/2018,3406605-183328,906.61,TYNEDALE ROADSTONE LTD.
Regeneration and Local Services,Technical Services,Supplies and Services,304221,Equipment and Materials,01/03/2018,3406605-183399,954.56,TYNEDALE ROADSTONE LTD.
Regeneration and Local Services,Technical Services,Supplies and Services,304221,Equipment and Materials,01/03/2018,3406605-183400,717.10,TYNEDALE ROADSTONE LTD.
Regeneration and Local Services,Technical Services,Supplies and Services,304221,Equipment and Materials,01/03/2018,3406605-183402,717.10,TYNEDALE ROADSTONE LTD.
Regeneration and Local Services,Technical Services,Supplies and Services,304221,Equipment and Materials,01/03/2018,3406605-183403,857.00,TYNEDALE ROADSTONE LTD.
Regeneration and Local Services,Technical Services,Supplies and Services,304221,Equipment and Materials,01/03/2018,3406605-183404,937.44,TYNEDALE ROADSTONE LTD.
Regeneration and Local Services,Technical Services,Supplies and Services,304221,Equipment and Materials,01/03/2018,3406605-183518,"1,007.67",TYNEDALE ROADSTONE LTD.
Regeneration and Local Services,Technical Services,Supplies and Services,304221,Equipment and Materials,01/03/2018,3406605-183519,845.12,TYNEDALE ROADSTONE LTD.
Regeneration and Local Services,Technical Services,Supplies and Services,304221,Equipment and Materials,01/03/2018,3406605-183523,951.43,TYNEDALE ROADSTONE LTD.
Regeneration and Local Services,Technical Services,Supplies and Services,304221,Equipment and Materials,01/03/2018,3406605-183524,733.28,TYNEDALE ROADSTONE LTD.
Regeneration and Local Services,Technical Services,Supplies and Services,304221,Equipment and Materials,01/03/2018,3406605-183526,741.16,TYNEDALE ROADSTONE LTD.
Regeneration and Local Services,Direct Services,Supplies and Services,304221,Equipment and Materials,01/03/2018,3406607-32025,"1,872.78",UK CONTAINER MAINTENANCE LTD.
Regeneration and Local Services,Direct Services,Supplies and Services,304221,Equipment and Materials,01/03/2018,3406608-INV-0010,835.00,UK HEATING & ENGINEERING LTD.
Regeneration and Local Services,Direct Services,Supplies and Services,304221,Equipment and Materials,01/03/2018,3406608-INV-0011,634.00,UK HEATING & ENGINEERING LTD.
Regeneration and Local Services,Direct Services,Supplies and Services,304221,Equipment and Materials,01/03/2018,3406608-INV-0012,886.00,UK HEATING & ENGINEERING LTD.
Regeneration and Local Services,Direct Services,Third Party Payments,430100,Rendered by Private Contractors,01/03/2018,3406608-INV-0009,"1,034.00",UK HEATING & ENGINEERING LTD.
Regeneration and Local Services,Direct Services,Third Party Payments,430100,Rendered by Private Contractors,01/03/2018,3406609-INV-0530,"1,080.00",UK VENTILATION LTD.
Adult and Health Services,Commissioning inc Supporting People,Supplies and Services,352001,Conference Expenses,01/03/2018,3406614-67037,750.00,UNIVERSITY OF TEESSIDE.
Resources,Digital and Customer Services,Supplies and Services,338099,Services,01/03/2018,3406616-R-53685,848.30,UPNORTH ENGINEERING SERVICES LTD.
Resources,Digital and Customer Services,Supplies and Services,338099,Services,01/03/2018,3406616-R-53757,689.40,UPNORTH ENGINEERING SERVICES LTD.
Regeneration and Local Services,Technical Services,Stock,926900,Stock in hand-Inventory system,01/03/2018,3406619-INV046152,"41,400.00",URBIS SCHREDER LTD.
Regeneration and Local Services,Technical Services,Stock,926900,Stock in hand-Inventory system,01/03/2018,3406619-INV046153,"39,600.00",URBIS SCHREDER LTD.
Regeneration and Local Services,Technical Services,Stock,926900,Stock in hand-Inventory system,01/03/2018,3406619-INV046232,"133,500.00",URBIS SCHREDER LTD.
Regeneration and Local Services,Technical Services,Stock,926900,Stock in hand-Inventory system,01/03/2018,3406619-INV046233,"131,250.00",URBIS SCHREDER LTD.
Dedicated Schools Grant,Dedicated Schools Grant,Transfer Payments,510034,School Children,01/03/2018,3406620-LACPP1718 AUTUMN & SPRING,"1,100.00",VALLEY ROAD COMMUNITY PRIMARY SCHOOL.
Dedicated Schools Grant,Dedicated Schools Grant,Transfer Payments,510034,School Children,01/03/2018,3406622-LACPP1718 AUTUMN & SPRING,"2,115.00",VENERABLE BEDE CHURCH OF ENGLAND ACADEMY.
Dedicated Schools Grant,Dedicated Schools Grant,Transfer Payments,510034,School Children,01/03/2018,3406624-LACPP1718 AUTUMN/SPRING,"2,047.00",VICTORIA LANE ACADEMY.
Regeneration and Local Services,Technical Services,Third Party Payments,430100,Rendered by Private Contractors,01/03/2018,3406625-210,"1,407.08",VINOVIUM ASSOCIATES LTD.
Regeneration and Local Services,Technical Services,Third Party Payments,430100,Rendered by Private Contractors,01/03/2018,3406625-221,"1,407.08",VINOVIUM ASSOCIATES LTD.
Dedicated Schools Grant,Dedicated Schools Grant,Transfer Payments,510034,School Children,01/03/2018,3406627-LACPP1718 AUTUMN & SPRING,"1,100.00",VISION LEARNING TRUST.
Resources,Digital and Customer Services,Vehicles Equipment Furniture and Fittings,912701,Computer equipment,01/03/2018,3406629-KV79979,"5,760.00",VODAFONE CORPORATE LTD.
Regeneration and Local Services,Culture & Sport,Supplies and Services,338047,Services,01/03/2018,3406631-1642146,710.83,WALT DISNEY CO LTD.
Resources,Corporate Finance & Commercial Services,Supplies and Services,384999,Miscellaneous Expenses,01/03/2018,3406632-675238,"2,064.00",WARD HADAWAY.
Regeneration and Local Services,Technical Services,Supplies and Services,304221,Equipment and Materials,01/03/2018,3406633-21503,921.30,WARD TIMBER LTD.
Regeneration and Local Services,Technical Services,Supplies and Services,304221,Equipment and Materials,01/03/2018,3406633-21504,"1,363.80",WARD TIMBER LTD.
Regeneration and Local Services,Culture & Sport,Supplies and Services,352001,Conference Expenses,01/03/2018,3406635-WF0304,700.00,WATER FITNESS LTD.
Dedicated Schools Grant,Dedicated Schools Grant,Transfer Payments,510034,School Children,01/03/2018,3406640-LACPP1718 AUTUMN & SPRING,600.00,WEST PARK ACADEMY.
Regeneration and Local Services,Culture & Sport,Supplies and Services,312009,Newspapers Books and Periodicals,01/03/2018,3406641-1951,"3,973.00",WF HOWES LTD.
Dedicated Schools Grant,Dedicated Schools Grant,Transfer Payments,510034,School Children,01/03/2018,3406642-LACPP1718 AUTUMN & SPRING,"1,000.00",WHEATFIELDS PRIMARY SCHOOL.
Dedicated Schools Grant,Dedicated Schools Grant,Transfer Payments,510034,School Children,01/03/2018,3406643-LACPP1718 AUTUMN & SPRING,"2,110.00",WHITBURN CHURCH OF ENGLAND ACADEMY.
Regeneration and Local Services,Direct Services,Third Party Payments,430100,Rendered by Private Contractors,01/03/2018,3406645-10465,768.00,WILF HUSBAND PLANT HIRE.
Regeneration and Local Services,Economic Development and Housing,Other Expenses,914002,Capital - Advertisments,01/03/2018,3406647-449114,"1,257.86",WILLIAM SMITH GROUP 1832.
Regeneration and Local Services,Direct Services,Supplies and Services,304221,Equipment and Materials,01/03/2018,3406648-45378,"1,441.01",WILLOWCRETE MANUFACTURING COMPANY LTD (MFG).
Regeneration and Local Services,Direct Services,Supplies and Services,304221,Equipment and Materials,01/03/2018,3406650-49898611,"1,033.26",WOLSELEY UK LTD.
Regeneration and Local Services,Direct Services,Supplies and Services,304221,Equipment and Materials,01/03/2018,3406650-49995214,548.93,WOLSELEY UK LTD.
Regeneration and Local Services,Direct Services,Supplies and Services,304221,Equipment and Materials,01/03/2018,3406650-50022752,"2,053.26",WOLSELEY UK LTD.
Regeneration and Local Services,Direct Services,Supplies and Services,304221,Equipment and Materials,01/03/2018,3406650-50160838,"2,017.37",WOLSELEY UK LTD.
Regeneration and Local Services,Direct Services,Supplies and Services,304221,Equipment and Materials,01/03/2018,3406650-50161282,651.33,WOLSELEY UK LTD.
Dedicated Schools Grant,Dedicated Schools Grant,Transfer Payments,510034,School Children,01/03/2018,3406651-LACPP1718 AUTUMN/SPRING,"4,135.00",WOODHAM ACADEMY.
Resources,Digital and Customer Services,Supplies and Services,342033,Computers and Communications,01/03/2018,3406652-CK02203,755.27,XMA LTD.
Regeneration and Local Services,Direct Services,Supplies and Services,304221,Equipment and Materials,01/03/2018,3406653-046800-003,"4,657.64",XTRALITE (ROOFLIGHTS) LTD.
Children and Young Peoples Services,Head of Early Help Assessment and Safeguarding,Supplies and Services,338045,Services,02/03/2018,309100-6359,633.60,ABBOTT ASSOCIATES.
Children and Young Peoples Services,Head of Education,Transport,230007,Contract Hire,02/03/2018,3406658-513,"1,068.00",ACE TAXIS (WINSTON).
Regeneration and Local Services,Technical Services,Supplies and Services,304358,Equipment and Materials,02/03/2018,3406660-29435,"2,587.50",AQUAJET DRAIN CLEANING LTD.
Regeneration and Local Services,Technical Services,Supplies and Services,304358,Equipment and Materials,02/03/2018,3406660-29436,"2,587.50",AQUAJET DRAIN CLEANING LTD.
Children and Young Peoples Services,Head of Education,Transport,230003,Contract Hire,02/03/2018,3406661-STJOHNSRC0118-3003,"2,278.40",BELL BROTHERS TRAVEL.
Children and Young Peoples Services,Head of Education,Transport,230003,Contract Hire,02/03/2018,3406661-STJOHNSRC0118-3005,"4,414.40",BELL BROTHERS TRAVEL.
Children and Young Peoples Services,Central Charges (CYPS),Supplies and Services,384197,Miscellaneous Expenses,02/03/2018,3406664-A0014826,684.84,BOX IT NORTH.
Children and Young Peoples Services,Head of Education,Transport,230007,Contract Hire,02/03/2018,309107-6020-MAR18,525.00,CCC SAMUEL KINGS SCHOOL.
Children and Young Peoples Services,Head of Education,Supplies and Services,384199,Miscellaneous Expenses,02/03/2018,309109-P04100598153,920.00,CHRIS PICKUP.
Regeneration and Local Services,Culture & Sport,Supplies and Services,304259,Equipment and Materials,02/03/2018,3406668-SI-181454,"2,973.39",CONTINENTAL SPORTS LTD.
Adult and Health Services,Head of Adults,Third Party Payments,472101,Purchase of Care,02/03/2018,3406672-5118,792.29,DCS & D LTD T/A HERITAGE HEALTHCARE.
Adult and Health Services,Head of Adults,Third Party Payments,472101,Purchase of Care,02/03/2018,3406672-5119,792.29,DCS & D LTD T/A HERITAGE HEALTHCARE.
Children and Young Peoples Services,Head of Education,Transport,230007,Contract Hire,02/03/2018,3406673-01/2018-3336,"1,228.20",DIANE GOOCH T/A COLLINS TAXIS.
Children and Young Peoples Services,Head of Education,Transport,230007,Contract Hire,02/03/2018,3406673-01/2018-3345,"1,646.40",DIANE GOOCH T/A COLLINS TAXIS.
Children and Young Peoples Services,Head of Looked After Provision Permanence and Care Leavers,Third Party Payments,425021,Rendered by Voluntary Organisations,02/03/2018,3406675-MP010,"12,000.00",DUTY OF CARE LTD.
Dedicated Schools Grant,Dedicated Schools Grant,Transfer Payments,510034,School Children,02/03/2018,309117-LACPP1718 AUTUMN & SPRING,"3,080.00",HETTON COMPREHENSIVE SCHOOL.
Dedicated Schools Grant,Dedicated Schools Grant,Transfer Payments,510034,School Children,02/03/2018,309118-LACPP1718 AUTUMN & SPRING,"1,836.00",HEWORTH GRANGE COMPREHENSIVE SCHOOL.
Regeneration and Local Services,Technical Services,Supplies and Services,304358,Equipment and Materials,02/03/2018,3406680-55476,"1,950.00",HF COLTON PLANT HIRE LTD.*
Regeneration and Local Services,Technical Services,Construction Work,908105,Construction work,02/03/2018,3406682-21257,"1,399.94",JACK COUPE & SONS LTD T/A COUPE LINE.
Children and Young Peoples Services,Head of Education,Transport,230008,Contract Hire,02/03/2018,3406683-1252,"1,206.00",JDS PRIVATE HIRE DURHAM.
Regeneration and Local Services,Technical Services,Supplies and Services,304358,Equipment and Materials,02/03/2018,3406684-27773,"1,029.00",JOHN R BUTTERFIELD LTD.
Regeneration and Local Services,Technical Services,Supplies and Services,304358,Equipment and Materials,02/03/2018,3406684-27808,651.00,JOHN R BUTTERFIELD LTD.
Regeneration and Local Services,Technical Services,Supplies and Services,304358,Equipment and Materials,02/03/2018,3406684-27839,"2,072.00",JOHN R BUTTERFIELD LTD.
Regeneration and Local Services,Technical Services,Supplies and Services,304358,Equipment and Materials,02/03/2018,3406684-27841,819.00,JOHN R BUTTERFIELD LTD.
Regeneration and Local Services,Technical Services,Supplies and Services,304358,Equipment and Materials,02/03/2018,3406684-27843,"1,043.00",JOHN R BUTTERFIELD LTD.
Regeneration and Local Services,Technical Services,Supplies and Services,304358,Equipment and Materials,02/03/2018,3406684-27844,987.00,JOHN R BUTTERFIELD LTD.
Regeneration and Local Services,Technical Services,Supplies and Services,304358,Equipment and Materials,02/03/2018,3406684-27845,777.00,JOHN R BUTTERFIELD LTD.
Regeneration and Local Services,Technical Services,Supplies and Services,304358,Equipment and Materials,02/03/2018,3406684-27846,715.00,JOHN R BUTTERFIELD LTD.
Regeneration and Local Services,Technical Services,Supplies and Services,304358,Equipment and Materials,02/03/2018,3406684-27847,851.00,JOHN R BUTTERFIELD LTD.
Regeneration and Local Services,Direct Services,Supplies and Services,304358,Equipment and Materials,02/03/2018,3406684-27849,"1,007.00",JOHN R BUTTERFIELD LTD.
Regeneration and Local Services,Technical Services,Supplies and Services,304358,Equipment and Materials,02/03/2018,3406684-27851,503.00,JOHN R BUTTERFIELD LTD.
Regeneration and Local Services,Technical Services,Supplies and Services,304358,Equipment and Materials,02/03/2018,3406687-2002,"1,006.00",KEVIN SNOWDON GROUNDWORKS LTD.
Regeneration and Local Services,Technical Services,Supplies and Services,304358,Equipment and Materials,02/03/2018,3406687-2014,546.00,KEVIN SNOWDON GROUNDWORKS LTD.
Dedicated Schools Grant,Dedicated Schools Grant,Transport,230010,Contract Hire,02/03/2018,3406691-121714,"1,736.00",MARK & JOHN CHISHOLM T/A (CHEVRON).
Children and Young Peoples Services,Head of Education,Third Party Payments,440999,Other Third Party Payments,02/03/2018,3406695-3040,"3,195.75",NORTH EAST DANCE CIC.
Regeneration and Local Services,Culture & Sport,Supplies and Services,312013,Newspapers Books and Periodicals,02/03/2018,3406696-107318,"2,080.80",OAKHILL PUBLISHING LTD.
Dedicated Schools Grant,Dedicated Schools Grant,Transfer Payments,510034,School Children,02/03/2018,309141-LACPP1718 AUTUMN,710.00,OXCLOSE COMMUNITY ACADEMY.
Regeneration and Local Services,Technical Services,Third Party Payments,430128,Rendered by Private Contractors,02/03/2018,3406698-4326,727.00,PETER MONKHOUSE HAULAGE.
Children and Young Peoples Services,Childrens Services Operational Support,Supplies and Services,338089,Services,02/03/2018,3406700-305,"4,000.00",RAINBOWS END COACHING LTD.
Regeneration and Local Services,Technical Services,Supplies and Services,304358,Equipment and Materials,02/03/2018,3406701-9922,"1,684.00",RD KEARTON & SONS LTD.
Regeneration and Local Services,Technical Services,Third Party Payments,430128,Rendered by Private Contractors,02/03/2018,309142-7,"4,122.00",RE SHANN.
Adult and Health Services,EnvironmentHealth & Consumer Protection,Supplies and Services,338094,Services,02/03/2018,309143-80479611,"2,500.00",ROTHER DISTRICT COUNCIL.
Dedicated Schools Grant,Dedicated Schools Grant,Transfer Payments,510034,School Children,02/03/2018,309146-LACPP1718 AUTUMN & SPRING,"1,081.00",ST PAULS CE PRIMARY SCHOOL.
Dedicated Schools Grant,Dedicated Schools Grant,Transfer Payments,510034,School Children,02/03/2018,309147-LACPP1718 AUTUMN & SPRING,"2,513.00",STOCKTON ON TEES BOROUGH COUNCIL.
Children and Young Peoples Services,Head of Education,Supplies and Services,338094,Services,02/03/2018,3406707-5051,"2,325.00",THE DURHAM CENTRE LTD.
Regeneration and Local Services,Economic Development and Housing,Supplies and Services,384199,Miscellaneous Expenses,02/03/2018,309150-03418,750.00,THE TOURISM BUSINESS.
Regeneration and Local Services,Direct Services,Supplies and Services,304221,Equipment and Materials,02/03/2018,3406710-100582,"4,238.00",TOTAL RENTAL SOLUTIONS.
Regeneration and Local Services,Direct Services,Supplies and Services,304221,Equipment and Materials,02/03/2018,3406710-100583,"2,724.00",TOTAL RENTAL SOLUTIONS.
Regeneration and Local Services,Technical Services,Supplies and Services,304358,Equipment and Materials,02/03/2018,3406714-44693,"4,800.00",W MARLEY AGRICULTURAL CONTRACTORS LTD.
Regeneration and Local Services,Direct Services,Supplies and Services,304358,Equipment and Materials,02/03/2018,3406715-75688,760.00,WARREN ACCESS LTD.
Regeneration and Local Services,Spatial Policy Planning Assets & Environment,Supplies and Services,372009,Subscriptions,02/03/2018,309152-10192747,500.00,WARWICKSHIRE COUNTY COUNCIL.
Regeneration and Local Services,Technical Services,Supplies and Services,304358,Equipment and Materials,02/03/2018,3406717-6936,814.00,YOULL CONSTRUCTION LTD.
Regeneration and Local Services,Technical Services,Supplies and Services,304358,Equipment and Materials,02/03/2018,3406717-6947,875.75,YOULL CONSTRUCTION LTD.
Regeneration and Local Services,Technical Services,Supplies and Services,304358,Equipment and Materials,02/03/2018,3406717-6948,"1,278.75",YOULL CONSTRUCTION LTD.
Regeneration and Local Services,Technical Services,Supplies and Services,304358,Equipment and Materials,02/03/2018,3406717-6951,814.00,YOULL CONSTRUCTION LTD.
Regeneration and Local Services,Spatial Policy Planning Assets & Environment,Supplies and Services,384199,Miscellaneous Expenses,05/03/2018,3406720-41,"1,210.00",ALLENHEADS IRON & WELDING.
Regeneration and Local Services,Direct Services,Third Party Payments,430100,Rendered by Private Contractors,05/03/2018,3406722-1753,938.00,AWR ROOFING & ALUMIN RAINWATER SYSTEMS LTD.
Regeneration and Local Services,Direct Services,Third Party Payments,430100,Rendered by Private Contractors,05/03/2018,3406722-1754,930.00,AWR ROOFING & ALUMIN RAINWATER SYSTEMS LTD.
Regeneration and Local Services,Technical Services,Supplies and Services,338066,Services,05/03/2018,3406723-9054,"110,112.94",BLOOM PROCUREMENT SERVICES LTD (FORMERLY NEPRO LTD).
Resources,Legal & Democratic Services,Premises,120021,Energy Costs,05/03/2018,3406724-8027,"1,130.46",BRADLEY HALL LTD.
Regeneration and Local Services,Economic Development and Housing,Cap Exp on Grants & Other Financial Assistance (REFCUS),918004,Contributions to other bodies,05/03/2018,3406725-RED-03-2018-006,"6,900.00",C & S PROPERTIES LTD.
Children and Young Peoples Services,Head of Looked After Provision Permanence and Care Leavers,Supplies and Services,324500,Provisions,05/03/2018,3406732-18087,"14,480.71",CREATIVE MANAGEMENT SERVICES LTD.
Regeneration and Local Services,Direct Services,Third Party Payments,430101,Rendered by Private Contractors,05/03/2018,3406738-IV958343,598.50,DIRECT TYRE MANAGEMENT (DTM).
Children and Young Peoples Services,Head of Looked After Provision Permanence and Care Leavers,Third Party Payments,425021,Rendered by Voluntary Organisations,05/03/2018,3406740-CD007,"16,200.00",DUTY OF CARE LTD.
Regeneration and Local Services,Direct Services,Supplies and Services,304221,Equipment and Materials,05/03/2018,3406741-059-218602,944.51,EDMUNDSON ELECTRICAL LTD.
Adult and Health Services,Head of Adults,Third Party Payments,478101,Purchase of Care,05/03/2018,3406742-0572,"7,739.18",ESSENTIAL CARE & SUPPORT LTD.
Adult and Health Services,Head of Adults,Third Party Payments,478101,Purchase of Care,05/03/2018,3406742-10574,"4,834.70",ESSENTIAL CARE & SUPPORT LTD.
Children and Young Peoples Services,Head of Education,Transfer Payments,510027,School Children,05/03/2018,3406743-2653,911.40,EXPLORERS DAY CARE.
Regeneration and Local Services,Transport and Contracted Services,Third Party Payments,430106,Rendered by Private Contractors,05/03/2018,3406747-64921,643.50,GO GATESHEAD LTD.
Transformation and Partnerships,Comms & Information Management,Supplies and Services,336005,Advertising,05/03/2018,3406750-3-244150,"1,671.00",ITV BROADCASTING LTD T/A ITV PLC..
Transformation and Partnerships,Comms & Information Management,Supplies and Services,336005,Advertising,05/03/2018,3406750-3-244151,"15,531.00",ITV BROADCASTING LTD T/A ITV PLC..
Transformation and Partnerships,Comms & Information Management,Supplies and Services,336005,Advertising,05/03/2018,3406750-IN2018-02-00200,"13,860.00",ITV BROADCASTING LTD T/A ITV PLC..
Children and Young Peoples Services,Childrens Services Operational Support,Supplies and Services,338089,Services,05/03/2018,3406751-1730,"1,600.00",JOHN WHEELER SOLUTIONS LTD.
Regeneration and Local Services,Direct Services,Supplies and Services,304221,Equipment and Materials,05/03/2018,3406756-4204099,"4,014.97",LONDON GENERAL SALES LTD.
Children and Young Peoples Services,Head of Looked After Provision Permanence and Care Leavers,Supplies and Services,384302,Miscellaneous Expenses,05/03/2018,3406769-CAS-03-2018-012,967.72,RAB OUTDOOR EDUCATION LTD.
Regeneration and Local Services,Direct Services,Supplies and Services,340001,Postages,05/03/2018,3406771-9055908245,"26,744.16",ROYAL MAIL GROUP PLC.
Children and Young Peoples Services,Head of Looked After Provision Permanence and Care Leavers,Third Party Payments,425021,Rendered by Voluntary Organisations,05/03/2018,3406772-IN001160,"16,899.03",S/C 202741 CAMBIAN INTERACT CARE SERVICES LTD.
Children and Young Peoples Services,Head of Looked After Provision Permanence and Care Leavers,Third Party Payments,425021,Rendered by Voluntary Organisations,05/03/2018,3406772-IN001161,"19,660.51",S/C 202741 CAMBIAN INTERACT CARE SERVICES LTD.
Children and Young Peoples Services,Head of Looked After Provision Permanence and Care Leavers,Third Party Payments,425021,Rendered by Voluntary Organisations,05/03/2018,3406772-IN001193,"15,263.64",S/C 202741 CAMBIAN INTERACT CARE SERVICES LTD.
Children and Young Peoples Services,Head of Looked After Provision Permanence and Care Leavers,Third Party Payments,425021,Rendered by Voluntary Organisations,05/03/2018,3406772-IN001194,"17,757.88",S/C 202741 CAMBIAN INTERACT CARE SERVICES LTD.
Adult and Health Services,Head of Adults,Third Party Payments,478101,Purchase of Care,05/03/2018,3406772-IN001152,"6,160.05",S/C 202741 CAMBIAN INTERACT CARE SERVICES LTD.
Transformation and Partnerships,Partnerships & Community Engagement Div.,Supplies and Services,384086,Miscellaneous Expenses,05/03/2018,3406775-VOUCHER17NB-DCTY005,"1,750.00",ST MARY`S SHINCLIFFE PCC.
Dedicated Schools Grant,Dedicated Schools Grant,Third Party Payments,440080,Other Third Party Payments,05/03/2018,3406779-583,"38,217.31",TALBOT HOUSE SCHOOL.
Regeneration and Local Services,Technical Services,Stock,926900,Stock in hand-Inventory system,05/03/2018,3406781-100503,"1,824.76",TOTAL RENTAL SOLUTIONS.
Regeneration and Local Services,Culture & Sport,Supplies and Services,384302,Miscellaneous Expenses,05/03/2018,3406786-1825,"8,260.25",WHARTON LANDSCAPES.
Regeneration and Local Services,Spatial Policy Planning Assets & Environment,Supplies and Services,338045,Services,05/03/2018,3406787-3275916,"2,412.00",WOMBLE BOND DICKINSON (UK) LLP.
Children and Young Peoples Services,Head of Education,Supplies and Services,312009,Newspapers Books and Periodicals,06/03/2018,3407553-5639861,529.78,ASKEWS & HOLTS LIBRARY SERVICES LTD.
Children and Young Peoples Services,Head of Education,Supplies and Services,312009,Newspapers Books and Periodicals,06/03/2018,3407553-5645011,845.66,ASKEWS & HOLTS LIBRARY SERVICES LTD.
Regeneration and Local Services,Technical Services,Supplies and Services,338027,Services,06/03/2018,3407556-18004159,"6,068.25",ATKINS GLOBAL.
Adult and Health Services,EnvironmentHealth & Consumer Protection,Third Party Payments,430100,Rendered by Private Contractors,06/03/2018,3407560-26133,"1,390.00",AXLE WEIGHT TECHNOLOGY LTD.
Adult and Health Services,Head of Adults,Transport,230005,Contract Hire,06/03/2018,3407573-0088,696.00,BIRDS TAXIS LTD.
Adult and Health Services,Head of Adults,Transport,230005,Contract Hire,06/03/2018,3407573-0089,554.40,BIRDS TAXIS LTD.
Adult and Health Services,Head of Adults,Transport,230005,Contract Hire,06/03/2018,3407575-1495,990.00,BOBBY DOVE.
Adult and Health Services,Head of Adults,Supplies and Services,338069,Services,06/03/2018,3407587-42286688,"6,929.00",CARE QUALITY COMMISSION.
Regeneration and Local Services,Direct Services,Third Party Payments,430100,Rendered by Private Contractors,06/03/2018,3407594-304,"3,699.88",CEILINGS DIRECT LTD.
Regeneration and Local Services,Direct Services,Third Party Payments,430100,Rendered by Private Contractors,06/03/2018,3407594-305,793.40,CEILINGS DIRECT LTD.
Regeneration and Local Services,Direct Services,Third Party Payments,430100,Rendered by Private Contractors,06/03/2018,3407594-309,580.52,CEILINGS DIRECT LTD.
Regeneration and Local Services,Direct Services,Third Party Payments,430100,Rendered by Private Contractors,06/03/2018,3407594-311,"1,241.08",CEILINGS DIRECT LTD.
Regeneration and Local Services,Direct Services,Third Party Payments,430100,Rendered by Private Contractors,06/03/2018,3407594-312,"4,391.20",CEILINGS DIRECT LTD.
Regeneration and Local Services,Direct Services,Third Party Payments,430100,Rendered by Private Contractors,06/03/2018,3407594-313,"1,985.24",CEILINGS DIRECT LTD.
Regeneration and Local Services,Direct Services,Third Party Payments,430100,Rendered by Private Contractors,06/03/2018,3407594-317,"2,067.95",CEILINGS DIRECT LTD.
Regeneration and Local Services,Direct Services,Supplies and Services,342051,Computers and Communications,06/03/2018,3407608-CSS3120,"2,350.00",CLEARSKIES SOFTWARE.
Children and Young Peoples Services,Head of Education,Transport,230007,Contract Hire,06/03/2018,3407610-1018,"1,071.00",CLIVE HUBERY.
Children and Young Peoples Services,Head of Education,Transport,230008,Contract Hire,06/03/2018,3407612-005,"1,241.00",COLIN HOLMES.
Children and Young Peoples Services,Head of Education,Transport,230008,Contract Hire,06/03/2018,3407614-1314,"1,343.20",CONNORS MINI BUSES.*
Children and Young Peoples Services,Head of Education,Transport,230008,Contract Hire,06/03/2018,3407614-1315,"1,284.80",CONNORS MINI BUSES.*
Children and Young Peoples Services,Head of Education,Transport,230008,Contract Hire,06/03/2018,3407614-1316,"1,372.40",CONNORS MINI BUSES.*
Children and Young Peoples Services,Head of Education,Transport,230008,Contract Hire,06/03/2018,3407614-1317,"1,752.00",CONNORS MINI BUSES.*
Children and Young Peoples Services,Head of Looked After Provision Permanence and Care Leavers,Employees,080025,Agency Staff,06/03/2018,3407636-1046756,"95,990.56",DE POEL MANAGED SERVICES LTD.
Children and Young Peoples Services,Head of Education,Transport,230006,Contract Hire,06/03/2018,3407641-01/2018-F664,"1,450.40",DIANE GOOCH T/A COLLINS TAXIS.
Children and Young Peoples Services,Head of Education,Transport,230008,Contract Hire,06/03/2018,3407641-01/2018-W080,"2,094.40",DIANE GOOCH T/A COLLINS TAXIS.
Regeneration and Local Services,Direct Services,Third Party Payments,430101,Rendered by Private Contractors,06/03/2018,3407644-IV967520,745.80,DIRECT TYRE MANAGEMENT (DTM).
Regeneration and Local Services,Direct Services,Third Party Payments,430101,Rendered by Private Contractors,06/03/2018,3407644-IV968142,"1,301.35",DIRECT TYRE MANAGEMENT (DTM).
Regeneration and Local Services,Direct Services,Supplies and Services,304221,Equipment and Materials,06/03/2018,3407659-059-217952,"3,205.90",EDMUNDSON ELECTRICAL LTD.
Transformation and Partnerships,Partnerships & Community Engagement Div.,Cap Exp on Grants & Other Financial Assistance (REFCUS),918004,Contributions to other bodies,06/03/2018,3407663-VOUCHER17AB-TEES001CSG9,660.00,EGGLESTON VILLAGE HALL ASSOCIATION.
Adult and Health Services,Head of Adults,Third Party Payments,478151,Purchase of Care,06/03/2018,3407669-10442,"1,943.92",ESSENTIAL CARE & SUPPORT LTD.
Children and Young Peoples Services,Head of Education,Transport,230007,Contract Hire,06/03/2018,3407680-0413,518.00,FMR SILVA PITA.
Children and Young Peoples Services,Head of Education,Transport,230007,Contract Hire,06/03/2018,3407680-0414,503.20,FMR SILVA PITA.
Children and Young Peoples Services,Head of Looked After Provision Permanence and Care Leavers,Third Party Payments,425021,Rendered by Voluntary Organisations,06/03/2018,3407681-402,"11,252.00",FOREVER CARE.
Children and Young Peoples Services,Head of Looked After Provision Permanence and Care Leavers,Third Party Payments,425021,Rendered by Voluntary Organisations,06/03/2018,3407681-412,"22,000.00",FOREVER CARE.
Children and Young Peoples Services,Head of Education,Transport,230007,Contract Hire,06/03/2018,3407690-20132-3042,"2,286.60",GARNETTS LTD (COACHES).
Children and Young Peoples Services,Head of Education,Transport,230007,Contract Hire,06/03/2018,3407690-20132-3195,"2,064.60",GARNETTS LTD (COACHES).
Children and Young Peoples Services,Head of Education,Transport,230007,Contract Hire,06/03/2018,3407690-20133,"2,057.20",GARNETTS LTD (COACHES).
Children and Young Peoples Services,Head of Education,Transport,230007,Contract Hire,06/03/2018,3407690-20134,"1,761.20",GARNETTS LTD (COACHES).
Children and Young Peoples Services,Head of Education,Transport,230007,Contract Hire,06/03/2018,3407690-20136,"1,746.40",GARNETTS LTD (COACHES).
Children and Young Peoples Services,Head of Education,Transport,230007,Contract Hire,06/03/2018,3407690-20138-4034,"1,699.04",GARNETTS LTD (COACHES).
Children and Young Peoples Services,Head of Education,Transport,230007,Contract Hire,06/03/2018,3407690-20138-4035,"1,699.04",GARNETTS LTD (COACHES).
Children and Young Peoples Services,Head of Education,Transport,230007,Contract Hire,06/03/2018,3407690-20138-4036,"1,699.04",GARNETTS LTD (COACHES).
Children and Young Peoples Services,Head of Education,Transport,230007,Contract Hire,06/03/2018,3407690-20138-4037,"3,398.08",GARNETTS LTD (COACHES).
Children and Young Peoples Services,Head of Education,Transport,230007,Contract Hire,06/03/2018,3407690-20138-4038,"1,699.04",GARNETTS LTD (COACHES).
Children and Young Peoples Services,Head of Education,Transport,230007,Contract Hire,06/03/2018,3407690-20141,"2,745.40",GARNETTS LTD (COACHES).
Children and Young Peoples Services,Head of Education,Transport,230007,Contract Hire,06/03/2018,3407690-20142,"2,641.80",GARNETTS LTD (COACHES).
Children and Young Peoples Services,Head of Education,Transport,230007,Contract Hire,06/03/2018,3407690-20143,"1,724.20",GARNETTS LTD (COACHES).
Children and Young Peoples Services,Head of Education,Transport,230007,Contract Hire,06/03/2018,3407690-20144,"3,122.80",GARNETTS LTD (COACHES).
Children and Young Peoples Services,Head of Education,Transport,230003,Contract Hire,06/03/2018,3407690-20135,"2,353.20",GARNETTS LTD (COACHES).
Children and Young Peoples Services,Head of Education,Transport,230008,Contract Hire,06/03/2018,3407690-20139,"1,184.00",GARNETTS LTD (COACHES).
Regeneration and Local Services,Technical Services,Supplies and Services,304358,Equipment and Materials,06/03/2018,3407695-73605,940.00,GEORGE VARDY HAULAGE.
Children and Young Peoples Services,Head of Education,Fees,901002,Professional fees,06/03/2018,3407707-0040254939,"2,343.44",HARTLEPOOL BOROUGH COUNCIL.
Regeneration and Local Services,Direct Services,Third Party Payments,430100,Rendered by Private Contractors,06/03/2018,3407717-15572272,"1,653.75",HSS HIRE SERVICE GROUP LTD.
Regeneration and Local Services,Direct Services,Third Party Payments,430100,Rendered by Private Contractors,06/03/2018,3407717-15572273,"3,045.91",HSS HIRE SERVICE GROUP LTD.
Regeneration and Local Services,Technical Services,Third Party Payments,430128,Rendered by Private Contractors,06/03/2018,3407718-GRIT/SNOW03-17/18,"3,191.00",HT DAVIES & PARTNERS.
Children and Young Peoples Services,Head of Education,Transport,230008,Contract Hire,06/03/2018,3407721-50,780.00,IAN SHEPLEY T/A SHEPPA`S TAXIS.
Adult and Health Services,Head of Adults,Transport,230005,Contract Hire,06/03/2018,3407735-01022018,500.00,JOHN HUBBLE T/A HUBB`S TAXIS.
Regeneration and Local Services,Technical Services,Supplies and Services,304358,Equipment and Materials,06/03/2018,3407756-MS543A,870.98,M SPENCE SURFACING LTD.
Regeneration and Local Services,Technical Services,Supplies and Services,304358,Equipment and Materials,06/03/2018,3407756-MS806,"1,514.25",M SPENCE SURFACING LTD.
Regeneration and Local Services,Technical Services,Supplies and Services,304358,Equipment and Materials,06/03/2018,3407756-MS812,"1,846.80",M SPENCE SURFACING LTD.
Regeneration and Local Services,Technical Services,Supplies and Services,304358,Equipment and Materials,06/03/2018,3407756-MS825,513.00,M SPENCE SURFACING LTD.
Children and Young Peoples Services,Head of Education,Transport,230006,Contract Hire,06/03/2018,3407759-751,"1,525.00",MACS TAXIS DURHAM LTD.
Children and Young Peoples Services,Head of Education,Transport,230008,Contract Hire,06/03/2018,3407763-280218,"1,036.00",MARK MUSGROVE T/A MARKS TAXIS.
Children and Young Peoples Services,Head of Education,Transport,230008,Contract Hire,06/03/2018,3407779-AA400,"1,022.00",MR T GUNN.
Children and Young Peoples Services,Head of Education,Supplies and Services,384302,Miscellaneous Expenses,06/03/2018,3407784-SFINV00262,"3,600.00",NATIONAL CHILDREN`S BUREAU LTD.
Dedicated Schools Grant,Dedicated Schools Grant,Transport,230010,Contract Hire,06/03/2018,3407788-226,"2,432.00",NEVILLE FORBES T/A FORBES TAXIS.
Dedicated Schools Grant,Dedicated Schools Grant,Central Support and Capital,615208,Support Services,06/03/2018,3407789-RES-03-2018-009,"8,203.64",NEW COLLEGE ACADEMIES TRUST - CONSETT ACADEMY.
Dedicated Schools Grant,Dedicated Schools Grant,Third Party Payments,425005,Rendered by Voluntary Organisations,06/03/2018,3407796-0000035415,"14,755.00",NORTH EAST AUTISM SOCIETY.
Dedicated Schools Grant,Dedicated Schools Grant,Third Party Payments,425005,Rendered by Voluntary Organisations,06/03/2018,3407796-0000035417,"23,308.67",NORTH EAST AUTISM SOCIETY.
Dedicated Schools Grant,Dedicated Schools Grant,Third Party Payments,440080,Other Third Party Payments,06/03/2018,3407796-0000035396,"24,505.00",NORTH EAST AUTISM SOCIETY.
Dedicated Schools Grant,Dedicated Schools Grant,Transfer Payments,510034,School Children,06/03/2018,3407796-LACPP1718AUTUMN/SPRING.,"2,950.00",NORTH EAST AUTISM SOCIETY.
Regeneration and Local Services,Technical Services,Supplies and Services,304221,Equipment and Materials,06/03/2018,3407798-166141,"1,321.80",NORTH EAST CONCRETE LTD.
Regeneration and Local Services,Technical Services,Supplies and Services,304221,Equipment and Materials,06/03/2018,3407798-166483,585.00,NORTH EAST CONCRETE LTD.
Dedicated Schools Grant,Dedicated Schools Grant,Transfer Payments,510034,School Children,06/03/2018,3407799-LACPP1718AUTUMN/SPRING,"5,680.00",NORTH EAST LEARNING TRUST (NELT).
Regeneration and Local Services,Spatial Policy Planning Assets & Environment,Supplies and Services,338066,Services,06/03/2018,3407815-564210.,625.00,PENNA PLC.
Dedicated Schools Grant,Dedicated Schools Grant,Third Party Payments,425005,Rendered by Voluntary Organisations,06/03/2018,3407816-33621,"10,583.53",PERCY HEDLEY FOUNDATION.
Dedicated Schools Grant,Dedicated Schools Grant,Third Party Payments,440080,Other Third Party Payments,06/03/2018,3407816-34545,"39,672.25",PERCY HEDLEY FOUNDATION.
Dedicated Schools Grant,Dedicated Schools Grant,Third Party Payments,440080,Other Third Party Payments,06/03/2018,3407816-34557,"50,255.78",PERCY HEDLEY FOUNDATION.
Children and Young Peoples Services,Head of Education,Transport,230008,Contract Hire,06/03/2018,3407817-572,816.00,PETERLEE EXECUTIVE CARS.
Regeneration and Local Services,Direct Services,Supplies and Services,332047,Printing Stationery and Gen Off Exps,06/03/2018,3407825-12637,"1,286.00",PIXL ID LTD.
Regeneration and Local Services,Transport and Contracted Services,Supplies and Services,336005,Advertising,06/03/2018,3407840-0000063408,"1,300.00",RATCLIFFE MEDIA LTD T/A ADVERTA.
Regeneration and Local Services,Direct Services,Transport,230005,Contract Hire,06/03/2018,3407853-IV366222,"4,830.00",RIVERSIDE TRUCK RENTAL LTD (RTR).
Regeneration and Local Services,Direct Services,Transport,230005,Contract Hire,06/03/2018,3407853-IV366282,"2,170.00",RIVERSIDE TRUCK RENTAL LTD (RTR).
Regeneration and Local Services,Direct Services,Transport,230005,Contract Hire,06/03/2018,3407853-IV373844,"5,290.00",RIVERSIDE TRUCK RENTAL LTD (RTR).
Regeneration and Local Services,Direct Services,Transport,230005,Contract Hire,06/03/2018,3407853-IV373846,"5,290.00",RIVERSIDE TRUCK RENTAL LTD (RTR).
Regeneration and Local Services,Direct Services,Transport,230005,Contract Hire,06/03/2018,3407853-IV374147,"5,060.00",RIVERSIDE TRUCK RENTAL LTD (RTR).
Regeneration and Local Services,Direct Services,Transport,230005,Contract Hire,06/03/2018,3407853-IV374157,"2,875.00",RIVERSIDE TRUCK RENTAL LTD (RTR).
Regeneration and Local Services,Direct Services,Transport,230005,Contract Hire,06/03/2018,3407853-IV383687,"4,600.00",RIVERSIDE TRUCK RENTAL LTD (RTR).
Regeneration and Local Services,Direct Services,Transport,230005,Contract Hire,06/03/2018,3407853-IV383689,"3,680.00",RIVERSIDE TRUCK RENTAL LTD (RTR).
Regeneration and Local Services,Direct Services,Transport,230005,Contract Hire,06/03/2018,3407853-IV383953,"2,500.00",RIVERSIDE TRUCK RENTAL LTD (RTR).
Resources,Digital and Customer Services,Supplies and Services,340001,Postages,06/03/2018,3407856-9055995388,"14,881.31",ROYAL MAIL GROUP PLC.
Adult and Health Services,Head of Adults,Third Party Payments,478101,Purchase of Care,06/03/2018,3407863-IN001179,"8,624.07",S/C 202741 CAMBIAN INTERACT CARE SERVICES LTD.
Transformation and Partnerships,Partnerships & Community Engagement Div.,Cap Exp on Grants & Other Financial Assistance (REFCUS),918004,Contributions to other bodies,06/03/2018,3407864-VOUCHER17NB-CHES017,"28,192.00",SACRISTON YOUTH PROJECT.
Dedicated Schools Grant,Dedicated Schools Grant,Transport,230007,Contract Hire,06/03/2018,3407878-74049,787.50,SHOTTON PRIVATE HIRE.
Children and Young Peoples Services,Head of Education,Transport,230008,Contract Hire,06/03/2018,3407878-74070,675.00,SHOTTON PRIVATE HIRE.
Children and Young Peoples Services,Head of Education,Transport,230008,Contract Hire,06/03/2018,3407882-N065-02-18,530.00,SIMON ELLIFF.
Children and Young Peoples Services,Head of Education,Transport,230006,Contract Hire,06/03/2018,3407883-221,772.20,SIMONS TAXIS.
Children and Young Peoples Services,Head of Education,Transport,230008,Contract Hire,06/03/2018,3407883-222,786.50,SIMONS TAXIS.
Children and Young Peoples Services,Head of Education,Transport,230008,Contract Hire,06/03/2018,3407883-223,"1,112.20",SIMONS TAXIS.
Regeneration and Local Services,Culture & Sport,Supplies and Services,324117,Provisions,06/03/2018,3407891-40737,854.50,SNOWSHOCK LTD.
Adult and Health Services,Head of Adults,Third Party Payments,478101,Purchase of Care,06/03/2018,3407893-CAS-03-2018-015,"5,858.40",SOVEREIGN CARE NORTH EAST LTD T/A MAPLE HOUSE.
Transformation and Partnerships,Partnerships & Community Engagement Div.,Cap Exp on Grants & Other Financial Assistance (REFCUS),918004,Contributions to other bodies,06/03/2018,3407898-VOUCHER17AB-SPEN009,"5,000.00",SPENNYMOOR STAGE & SONG.
Regeneration and Local Services,Economic Development and Housing,Construction Work,908105,Construction work,06/03/2018,3407900-6118,"13,350.00",ST ASTIER LTD.
Regeneration and Local Services,Direct Services,Third Party Payments,430100,Rendered by Private Contractors,06/03/2018,3407900-6139,"2,050.00",ST ASTIER LTD.
Regeneration and Local Services,Economic Development and Housing,Supplies and Services,338066,Services,06/03/2018,3407901-BS00113362,"15,000.00",ST CUTHBERTS HOSPICE.
Dedicated Schools Grant,Dedicated Schools Grant,Central Support and Capital,615208,Support Services,06/03/2018,3407902-RES-03-2018-010,"2,217.20",ST LEONARDS CATHOLIC SCHOOL FUND.
Children and Young Peoples Services,Central Charges (CYPS),Central Support and Capital,615208,Support Services,06/03/2018,3407904-RES-03-2018-006,"20,757.00",STANLEY LEARNING PARTNERSHIP.
Children and Young Peoples Services,Central Charges (CYPS),Central Support and Capital,615208,Support Services,06/03/2018,3407904-RES-03-2018-007,"14,000.00",STANLEY LEARNING PARTNERSHIP.
Children and Young Peoples Services,Head of Education,Transport,230007,Contract Hire,06/03/2018,3407905-49794,738.52,STANLEY TRAVEL (NORTH EAST) LTD.
Children and Young Peoples Services,Head of Education,Transport,230007,Contract Hire,06/03/2018,3407905-49795,"2,205.20",STANLEY TRAVEL (NORTH EAST) LTD.
Children and Young Peoples Services,Head of Education,Transport,230003,Contract Hire,06/03/2018,3407905-49788,"1,093.28",STANLEY TRAVEL (NORTH EAST) LTD.
Children and Young Peoples Services,Head of Education,Transport,230003,Contract Hire,06/03/2018,3407905-49790,"1,225.00",STANLEY TRAVEL (NORTH EAST) LTD.
Children and Young Peoples Services,Head of Education,Transport,230003,Contract Hire,06/03/2018,3407905-49791,949.72,STANLEY TRAVEL (NORTH EAST) LTD.
Children and Young Peoples Services,Head of Education,Transport,230003,Contract Hire,06/03/2018,3407905-49792,"1,225.00",STANLEY TRAVEL (NORTH EAST) LTD.
Children and Young Peoples Services,Head of Education,Transport,230003,Contract Hire,06/03/2018,3407905-49793,"1,225.00",STANLEY TRAVEL (NORTH EAST) LTD.
Children and Young Peoples Services,Head of Education,Transport,230007,Contract Hire,06/03/2018,3407911-1504JAN18,525.00,TALBOTS TAXIS.
Children and Young Peoples Services,Head of Looked After Provision Permanence and Care Leavers,Third Party Payments,486053,Service Level Agreements,06/03/2018,3407938-1NV-0037,"3,360.00",TUSK SOCIAL CARE CONSULTANTS LTD.
Regeneration and Local Services,Technical Services,Supplies and Services,304221,Equipment and Materials,06/03/2018,3407940-182546,707.84,TYNEDALE ROADSTONE LTD.
Regeneration and Local Services,Technical Services,Supplies and Services,304221,Equipment and Materials,06/03/2018,3407940-182789,957.35,TYNEDALE ROADSTONE LTD.
Transformation and Partnerships,Partnerships & Community Engagement Div.,Cap Exp on Grants & Other Financial Assistance (REFCUS),918004,Contributions to other bodies,06/03/2018,3407946-VOUCHER17AB-TEES001CSG27,"1,000.00",UPPER TEESDALE AGRICULTURAL SUPPORT SERVICES LTD (UTASS).
Adult and Health Services,Head of Adults,Transport,230005,Contract Hire,06/03/2018,3407954-DM178-FEB,792.00,WAINE SANDERSON T/A 1A CAB.
Transformation and Partnerships,Partnerships & Community Engagement Div.,Cap Exp on Grants & Other Financial Assistance (REFCUS),918004,Contributions to other bodies,06/03/2018,3407958-VOUCHER17AB-TEES001CSG20,872.00,WHORLTON & WESTWICK PARISH COUNCIL.
Regeneration and Local Services,Direct Services,Third Party Payments,430100,Rendered by Private Contractors,07/03/2018,3407977-2578,"2,475.00",A & J GUTHRIE.
Regeneration and Local Services,Direct Services,Third Party Payments,430100,Rendered by Private Contractors,07/03/2018,3407977-2579,"1,485.00",A & J GUTHRIE.
Children and Young Peoples Services,Head of Looked After Provision Permanence and Care Leavers,Third Party Payments,486043,Service Level Agreements,07/03/2018,3407982-6844,"1,851.68",AFTER ADOPTION.
Regeneration and Local Services,Culture & Sport,Supplies and Services,338047,Services,07/03/2018,3407983-27600,"1,035.00",AHA TALENT LTD.
Regeneration and Local Services,Culture & Sport,Premises,106080,Centrally Controlled Rep and Maint,07/03/2018,3407991-12899,"4,767.66",ASTRAL CONTROL SERVICES LTD.
Regeneration and Local Services,Direct Services,Premises,108099,Service Repairs and Maintenance,07/03/2018,3407991-12613,695.00,ASTRAL CONTROL SERVICES LTD.
Regeneration and Local Services,Direct Services,Premises,106082,Centrally Controlled Rep and Maint,07/03/2018,3407991-12514,647.00,ASTRAL CONTROL SERVICES LTD.
Regeneration and Local Services,Direct Services,Premises,106082,Centrally Controlled Rep and Maint,07/03/2018,3407991-12835,"1,230.00",ASTRAL CONTROL SERVICES LTD.
Regeneration and Local Services,Culture & Sport,Premises,106082,Centrally Controlled Rep and Maint,07/03/2018,3407991-12860,"1,193.29",ASTRAL CONTROL SERVICES LTD.
Regeneration and Local Services,Culture & Sport,Premises,106082,Centrally Controlled Rep and Maint,07/03/2018,3407991-12905,639.31,ASTRAL CONTROL SERVICES LTD.
Regeneration and Local Services,Direct Services,Premises,106082,Centrally Controlled Rep and Maint,07/03/2018,3407991-12910,616.40,ASTRAL CONTROL SERVICES LTD.
Regeneration and Local Services,Culture & Sport,Premises,106082,Centrally Controlled Rep and Maint,07/03/2018,3407991-12911,864.30,ASTRAL CONTROL SERVICES LTD.
Regeneration and Local Services,Technical Services,Supplies and Services,338027,Services,07/03/2018,3407992-18004215,675.00,ATKINS GLOBAL.
Regeneration and Local Services,Technical Services,Supplies and Services,338027,Services,07/03/2018,3407992-18004220,986.70,ATKINS GLOBAL.
Regeneration and Local Services,Transport and Contracted Services,Third Party Payments,440999,Other Third Party Payments,07/03/2018,3407995-54463,"5,234.00",BAYDALE CONTROL SYSTEMS LTD.
Resources,Digital and Customer Services,Supplies and Services,344033,Telephones,07/03/2018,3408005-VP90592270M15201,"3,316.52",BRITISH TELECOMMUNICATIONS PLC.
Children and Young Peoples Services,Head of Education,Transfer Payments,510027,School Children,07/03/2018,3408007-WWDOB4/10/13JAN18,535.50,BUDDIES CHILDCARE CENTRE.
Children and Young Peoples Services,Head of Education,Transfer Payments,510028,School Children,07/03/2018,3408009-CAS-03-2018-017,"5,290.70",CASTLE KINDERGARTEN LTD.
Dedicated Schools Grant,Dedicated Schools Grant,Third Party Payments,410037,Rendered by Other Local Authorities,07/03/2018,309154-SEN-09-11-17-9-11-18,"6,236.80",CCC SAMUEL KINGS SCHOOL.
Adult and Health Services,Public Health,Supplies and Services,384199,Miscellaneous Expenses,07/03/2018,3408016-24796,"5,307.90",CHANGE GROW LIVE.
Regeneration and Local Services,Economic Development and Housing,Supplies and Services,328041,Clothing Uniforms and Laundry,07/03/2018,3408018-RED-03-2018-040,506.12,CHRIS MCARDLE ROOFING SERVICES.
Regeneration and Local Services,Culture & Sport,Supplies and Services,338047,Services,07/03/2018,3408020-334,"1,035.00",CIEKABAILEY ASSOCIATES.
Resources,Legal & Democratic Services,Supplies and Services,338042,Services,07/03/2018,3408040-334605/INVSPA195,540.00,DERE STREET BARRISTERS.
Resources,Legal & Democratic Services,Supplies and Services,338042,Services,07/03/2018,3408040-336570/INVSEB1137,"3,420.00",DERE STREET BARRISTERS.
Regeneration and Local Services,Direct Services,Third Party Payments,430101,Rendered by Private Contractors,07/03/2018,3408042-IV967516,"1,903.85",DIRECT TYRE MANAGEMENT (DTM).
Children and Young Peoples Services,Head of Looked After Provision Permanence and Care Leavers,Third Party Payments,425021,Rendered by Voluntary Organisations,07/03/2018,3408061-410,"11,916.00",FOREVER CARE.
Regeneration and Local Services,Technical Services,Stock,926900,Stock in hand-Inventory system,07/03/2018,3408064-06/705152,"1,927.08",GREENHAM TRADING LTD.
Regeneration and Local Services,Technical Services,Stock,926900,Stock in hand-Inventory system,07/03/2018,3408064-06/715322,567.42,GREENHAM TRADING LTD.
Regeneration and Local Services,Culture & Sport,Supplies and Services,338047,Services,07/03/2018,3408069-0095,925.00,HEATHER ROBERTSON.
Regeneration and Local Services,Direct Services,Transport,210057,Repair and Maintenance of Vehicles,07/03/2018,3408071-9028,720.00,HILLCREST AUTO ELECTRICS.
Regeneration and Local Services,Economic Development and Housing,Premises,115125,Repairs to Grounds,07/03/2018,3408073-7080667153,"2,383.75",HONEYWELL NOVAR SYSTEMS LTD.
Regeneration and Local Services,Technical Services,Third Party Payments,430128,Rendered by Private Contractors,07/03/2018,3408077-GRIT/SNOW04-17/18,"3,674.00",HT DAVIES & PARTNERS.
Regeneration and Local Services,Technical Services,Construction Work,908105,Construction work,07/03/2018,3408081-21195,695.00,JACK COUPE & SONS LTD T/A COUPE LINE.
Regeneration and Local Services,Direct Services,Supplies and Services,304221,Equipment and Materials,07/03/2018,3408081-20978,550.00,JACK COUPE & SONS LTD T/A COUPE LINE.
Regeneration and Local Services,Culture & Sport,Supplies and Services,338047,Services,07/03/2018,3408083-JE/7095,"1,035.00",JANET PLATER MANAGEMENT LTD.
Regeneration and Local Services,Technical Services,Supplies and Services,304358,Equipment and Materials,07/03/2018,3408088-27870,"2,072.00",JOHN R BUTTERFIELD LTD.
Regeneration and Local Services,Technical Services,Supplies and Services,304358,Equipment and Materials,07/03/2018,3408088-27871,"1,352.00",JOHN R BUTTERFIELD LTD.
Regeneration and Local Services,Technical Services,Supplies and Services,304358,Equipment and Materials,07/03/2018,3408088-27872,651.00,JOHN R BUTTERFIELD LTD.
Regeneration and Local Services,Technical Services,Supplies and Services,304358,Equipment and Materials,07/03/2018,3408088-27874,"1,043.00",JOHN R BUTTERFIELD LTD.
Regeneration and Local Services,Technical Services,Supplies and Services,304358,Equipment and Materials,07/03/2018,3408088-27897,"1,274.00",JOHN R BUTTERFIELD LTD.
Regeneration and Local Services,Technical Services,Supplies and Services,304358,Equipment and Materials,07/03/2018,3408093-1595,660.00,KEVIN SNOWDON GROUNDWORKS LTD.
Regeneration and Local Services,Technical Services,Supplies and Services,304358,Equipment and Materials,07/03/2018,3408093-1687,"1,219.00",KEVIN SNOWDON GROUNDWORKS LTD.
Regeneration and Local Services,Technical Services,Supplies and Services,304358,Equipment and Materials,07/03/2018,3408093-1690,"1,016.50",KEVIN SNOWDON GROUNDWORKS LTD.
Regeneration and Local Services,Technical Services,Supplies and Services,304358,Equipment and Materials,07/03/2018,3408093-1691,"1,016.50",KEVIN SNOWDON GROUNDWORKS LTD.
Regeneration and Local Services,Technical Services,Supplies and Services,304358,Equipment and Materials,07/03/2018,3408093-1692,"1,014.00",KEVIN SNOWDON GROUNDWORKS LTD.
Regeneration and Local Services,Technical Services,Supplies and Services,304358,Equipment and Materials,07/03/2018,3408093-1694,850.00,KEVIN SNOWDON GROUNDWORKS LTD.
Regeneration and Local Services,Technical Services,Supplies and Services,304358,Equipment and Materials,07/03/2018,3408093-1695,572.75,KEVIN SNOWDON GROUNDWORKS LTD.
Regeneration and Local Services,Technical Services,Supplies and Services,304358,Equipment and Materials,07/03/2018,3408093-1998,633.00,KEVIN SNOWDON GROUNDWORKS LTD.
Children and Young Peoples Services,Head of Education,Employees,080030,Agency Staff,07/03/2018,3408094-879,500.00,KIDZ R FIT LTD.
Regeneration and Local Services,Culture & Sport,Supplies and Services,384199,Miscellaneous Expenses,07/03/2018,3408108-4100609810,925.00,MARK IAN THOMPSON.
Regeneration and Local Services,Direct Services,Supplies and Services,304259,Equipment and Materials,07/03/2018,3408113-171201,"2,158.00",METRON ENERGY MANAGEMENT LTD.
Dedicated Schools Grant,Dedicated Schools Grant,Transfer Payments,510034,School Children,07/03/2018,3408115-LAC1617SPRING,800.00,MIDDLESBROUGH BOROUGH COUNCIL.
Dedicated Schools Grant,Dedicated Schools Grant,Transfer Payments,510034,School Children,07/03/2018,3408115-LAC1718SUMMER,500.00,MIDDLESBROUGH BOROUGH COUNCIL.
Resources,Legal & Democratic Services,Supplies and Services,338042,Services,07/03/2018,3408120-333294/INVMT1134,"1,080.00",MR MARTIN TODD.
Children and Young Peoples Services,Head of Education,Supplies and Services,384199,Miscellaneous Expenses,07/03/2018,3408126-INV18010,"2,000.00",NATIONAL YOUTH CHOIR OF GREAT BRITAIN.
Transformation and Partnerships,Partnerships & Community Engagement Div.,Cap Exp on Grants & Other Financial Assistance (REFCUS),918004,Contributions to other bodies,07/03/2018,3408132-VOUCHER17NB-GAMP006,"17,010.00",NEWTON AYCLIFFE CRICKET CLUB.
Regeneration and Local Services,Culture & Sport,Supplies and Services,338047,Services,07/03/2018,3408135-GALA15,925.00,NICOLA MORRIS.
Dedicated Schools Grant,Dedicated Schools Grant,Third Party Payments,440080,Other Third Party Payments,07/03/2018,3408137-0000035500,"3,175.24",NORTH EAST AUTISM SOCIETY.
Dedicated Schools Grant,Dedicated Schools Grant,Third Party Payments,440080,Other Third Party Payments,07/03/2018,3408137-0000035501,"3,175.24",NORTH EAST AUTISM SOCIETY.
Resources,Digital and Customer Services,Supplies and Services,342051,Computers and Communications,07/03/2018,3408143-94549445,"10,109.00",NORTHGATE ARINSO UK LTD.
Resources,Digital and Customer Services,Supplies and Services,342051,Computers and Communications,07/03/2018,3408143-94549446,"71,921.00",NORTHGATE ARINSO UK LTD.
Regeneration and Local Services,Direct Services,Transport,215005,Running Costs of Vehicles,07/03/2018,3408146-308619,"17,146.73",OIL NRG LTD.
Children and Young Peoples Services,Head of Early Help Assessment and Safeguarding,Supplies and Services,384199,Miscellaneous Expenses,07/03/2018,3408147-23923,600.00,ONE AWARDS.
Regeneration and Local Services,Economic Development and Housing,Supplies and Services,384700,Miscellaneous Expenses,07/03/2018,3408149-CG-7/2/18,675.00,ORCEL NAVIGATION.
Regeneration and Local Services,Direct Services,Supplies and Services,304221,Equipment and Materials,07/03/2018,3408156-DT069601,"1,440.00",PARK ELECTRICAL DISTRIBUTORS LTD.
Regeneration and Local Services,Technical Services,Third Party Payments,430100,Rendered by Private Contractors,07/03/2018,3408161-5040,"9,726.60",PINKNEY BUILDING CONTRACTORS LTD.
Regeneration and Local Services,Transport and Contracted Services,Third Party Payments,430106,Rendered by Private Contractors,07/03/2018,3408166-2065,"4,451.00",R COOPER T/A DC TAXIS.
Children and Young Peoples Services,Head of Education,Supplies and Services,384199,Miscellaneous Expenses,07/03/2018,3408167-INV-0036,"4,625.00",RAW DIGITAL TRAINING LTD.
Regeneration and Local Services,Technical Services,Supplies and Services,304221,Equipment and Materials,07/03/2018,3408168-I-000917,"4,895.00",READMAN FABRICATIONS LTD.
Regeneration and Local Services,Technical Services,Supplies and Services,304221,Equipment and Materials,07/03/2018,3408168-I-000923,"3,400.00",READMAN FABRICATIONS LTD.
Resources,Digital and Customer Services,Supplies and Services,340001,Postages,07/03/2018,3408174-9056034710,"13,111.63",ROYAL MAIL GROUP PLC.
Children and Young Peoples Services,Head of Looked After Provision Permanence and Care Leavers,Third Party Payments,425021,Rendered by Voluntary Organisations,07/03/2018,3408177-IN001221,"16,899.03",S/C 202741 CAMBIAN INTERACT CARE SERVICES LTD.
Children and Young Peoples Services,Head of Looked After Provision Permanence and Care Leavers,Third Party Payments,425021,Rendered by Voluntary Organisations,07/03/2018,3408177-IN001222,"19,660.51",S/C 202741 CAMBIAN INTERACT CARE SERVICES LTD.
Children and Young Peoples Services,Head of Education,Construction Work,908105,Construction work,07/03/2018,3408178-3871,"7,005.52",SAFE STRIP UK LTD.
Children and Young Peoples Services,Head of Early Help Assessment and Safeguarding,Supplies and Services,338043,Services,07/03/2018,3408183-RES-03-2018-005,800.00,SILLS & BETTERIDGE SOLICITORS.
Regeneration and Local Services,Direct Services,Premises,108099,Service Repairs and Maintenance,07/03/2018,3408191-11339,870.00,STONE TECHNICAL SERVICES LTD.
Regeneration and Local Services,Culture & Sport,Premises,106082,Centrally Controlled Rep and Maint,07/03/2018,3408191-11337,"1,430.00",STONE TECHNICAL SERVICES LTD.
Regeneration and Local Services,Culture & Sport,Supplies and Services,338047,Services,07/03/2018,3408206-137134,"1,000.00",THE AGENCY (LONDON) LTD.
Regeneration and Local Services,Culture & Sport,Supplies and Services,338047,Services,07/03/2018,3408230-LS20,"1,768.75",WILL YOUNG (THEATRE CONTRACTOR).
Regeneration and Local Services,Technical Services,Construction Work,908105,Construction work,08/03/2018,3408237-2629,550.00,A & J GUTHRIE.
Regeneration and Local Services,Technical Services,Third Party Payments,430100,Rendered by Private Contractors,08/03/2018,3408240-J1530/17/K/02,"6,000.00",AK (LIGHTING & SIGNS) LTD.
Regeneration and Local Services,Direct Services,Transport,210057,Repair and Maintenance of Vehicles,08/03/2018,3408252-35146447,"1,414.10",BELL TRUCK SALES LTD T/A BELL TRUCK & VAN.
Regeneration and Local Services,Direct Services,Transport,210057,Repair and Maintenance of Vehicles,08/03/2018,3408252-35146759,629.85,BELL TRUCK SALES LTD T/A BELL TRUCK & VAN.
Regeneration and Local Services,Technical Services,Stock,926900,Stock in hand-Inventory system,08/03/2018,3408258-1818011292,586.43,BOELS RENTAL.
Transformation and Partnerships,Partnerships & Community Engagement Div.,Supplies and Services,384086,Miscellaneous Expenses,08/03/2018,3408266-BELA03-17WILA04-17,672.00,BURNMOOR CRICKET JUNIORS.
Adult and Health Services,Head of Adults,Supplies and Services,304516,Equipment and Materials,08/03/2018,3408267-1805/2,987.80,CABLES TAXI CONTRACTS.
Regeneration and Local Services,Culture & Sport,Supplies and Services,384199,Miscellaneous Expenses,08/03/2018,3408276-ABF06JL,850.00,CHAPTERHOUSE THEATRE CO.
Regeneration and Local Services,Economic Development and Housing,Supplies and Services,342053,Computers and Communications,08/03/2018,3408283-M/AB049442,"7,595.12",CIVICA UK LTD.
Regeneration and Local Services,Technical Services,Stock,926004,Stock,08/03/2018,3408285-400006510,866.25,CLEVELAND POTASH LTD T/A ICL FERTILIZERS.
Adult and Health Services,Public Health,Third Party Payments,460803,Contract Payments,08/03/2018,3408286-3980027703,"177,500.00",CO DURHAM & DARLINGTON NHS FOUNDATION TRUST.
Regeneration and Local Services,Culture & Sport,Supplies and Services,384700,Miscellaneous Expenses,08/03/2018,3408294-NEI-HCL-02-2018-004,"6,000.00",COUNTY DURHAM SPORT.
Regeneration and Local Services,Culture & Sport,Supplies and Services,384700,Miscellaneous Expenses,08/03/2018,3408294-NEI-HCL-02-2018-005,"1,000.00",COUNTY DURHAM SPORT.
Regeneration and Local Services,Economic Development and Housing,Supplies and Services,384871,Miscellaneous Expenses,08/03/2018,3408302-1207,"1,020.00",DAVID HUGHES DRIVER TRAINING.
Children and Young Peoples Services,Head of Looked After Provision Permanence and Care Leavers,Supplies and Services,304259,Equipment and Materials,08/03/2018,3408314-4753620,678.00,EASTERN SHIRES PURCHASING ORGANISATION.
Regeneration and Local Services,Direct Services,Transport,210057,Repair and Maintenance of Vehicles,08/03/2018,3408323-123493,"3,008.50",FABRIKAT (NOTTINGHAM) LTD.
Regeneration and Local Services,Technical Services,Supplies and Services,304357,Equipment and Materials,08/03/2018,3408330-DCC110218,"19,068.86",GAP GROUP LTD.
Children and Young Peoples Services,Head of Early Help Assessment and Safeguarding,Supplies and Services,384638,Miscellaneous Expenses,08/03/2018,3408331-2018-02-386,"2,498.61",GATEWAY NORTH EAST.
Regeneration and Local Services,Transport and Contracted Services,Third Party Payments,430106,Rendered by Private Contractors,08/03/2018,3408335-90/085,"6,203.79",GRAHAMS MOTOR SERVICES LTD.
Regeneration and Local Services,Transport and Contracted Services,Third Party Payments,430106,Rendered by Private Contractors,08/03/2018,3408335-90/086,"7,322.04",GRAHAMS MOTOR SERVICES LTD.
Regeneration and Local Services,Transport and Contracted Services,Third Party Payments,430106,Rendered by Private Contractors,08/03/2018,3408335-90/087,"4,562.64",GRAHAMS MOTOR SERVICES LTD.
Regeneration and Local Services,Transport and Contracted Services,Third Party Payments,430106,Rendered by Private Contractors,08/03/2018,3408335-90/088,"4,440.10",GRAHAMS MOTOR SERVICES LTD.
Regeneration and Local Services,Transport and Contracted Services,Third Party Payments,430106,Rendered by Private Contractors,08/03/2018,3408335-90/089,"7,458.04",GRAHAMS MOTOR SERVICES LTD.
Regeneration and Local Services,Transport and Contracted Services,Third Party Payments,430106,Rendered by Private Contractors,08/03/2018,3408335-90/090,"5,889.09",GRAHAMS MOTOR SERVICES LTD.
Regeneration and Local Services,Transport and Contracted Services,Third Party Payments,430106,Rendered by Private Contractors,08/03/2018,3408335-90/091,"4,989.44",GRAHAMS MOTOR SERVICES LTD.
Regeneration and Local Services,Transport and Contracted Services,Third Party Payments,430106,Rendered by Private Contractors,08/03/2018,3408335-90/092,"4,289.70",GRAHAMS MOTOR SERVICES LTD.
Regeneration and Local Services,Transport and Contracted Services,Third Party Payments,430106,Rendered by Private Contractors,08/03/2018,3408335-90/093,"4,472.25",GRAHAMS MOTOR SERVICES LTD.
Resources,Finance & Transactional Services,Supplies and Services,338045,Services,08/03/2018,3408336-502522,"19,806.00",GREENHALGH KERR.
Resources,Corporate Finance & Commercial Services,Supplies and Services,338221,Services,08/03/2018,3408342-2944,"1,204.16",HEALTH ASSURED LTD.
Regeneration and Local Services,Direct Services,Transport,210057,Repair and Maintenance of Vehicles,08/03/2018,3408344-9032,546.00,HILLCREST AUTO ELECTRICS.
Regeneration and Local Services,Transport and Contracted Services,Third Party Payments,430106,Rendered by Private Contractors,08/03/2018,3408345-13085,"5,112.70",HODGSONS COACH OPERATORS LTD.
Regeneration and Local Services,Technical Services,Third Party Payments,430127,Rendered by Private Contractors,08/03/2018,3408348-2462,"3,668.00",IAN C LIDDLE.
Regeneration and Local Services,Technical Services,Third Party Payments,430127,Rendered by Private Contractors,08/03/2018,3408348-2464,940.00,IAN C LIDDLE.
Regeneration and Local Services,Technical Services,Third Party Payments,430127,Rendered by Private Contractors,08/03/2018,3408348-2465,963.00,IAN C LIDDLE.
Regeneration and Local Services,Technical Services,Third Party Payments,430127,Rendered by Private Contractors,08/03/2018,3408348-2467,"1,616.00",IAN C LIDDLE.
Regeneration and Local Services,Technical Services,Third Party Payments,430127,Rendered by Private Contractors,08/03/2018,3408348-2468,"1,696.00",IAN C LIDDLE.
Regeneration and Local Services,Technical Services,Third Party Payments,430127,Rendered by Private Contractors,08/03/2018,3408348-2469,"2,265.00",IAN C LIDDLE.
Regeneration and Local Services,Technical Services,Third Party Payments,430127,Rendered by Private Contractors,08/03/2018,3408348-2470,"2,242.00",IAN C LIDDLE.
Regeneration and Local Services,Technical Services,Third Party Payments,430127,Rendered by Private Contractors,08/03/2018,3408348-2471,"2,247.50",IAN C LIDDLE.
Regeneration and Local Services,Technical Services,Third Party Payments,430127,Rendered by Private Contractors,08/03/2018,3408348-2472,"2,167.50",IAN C LIDDLE.
Regeneration and Local Services,Technical Services,Third Party Payments,430127,Rendered by Private Contractors,08/03/2018,3408348-2473,"1,458.50",IAN C LIDDLE.
Regeneration and Local Services,Technical Services,Third Party Payments,430127,Rendered by Private Contractors,08/03/2018,3408348-2474,"1,458.50",IAN C LIDDLE.
Adult and Health Services,Head of Adults,Supplies and Services,308011,Furniture,08/03/2018,3408353-4100606716,"1,411.00",J & D CARPETS T/A THE FLOORING STORE.
Regeneration and Local Services,Technical Services,Third Party Payments,430127,Rendered by Private Contractors,08/03/2018,3408354-1351/2017,"1,440.00",J & JG GILL & SONS LTD.
Regeneration and Local Services,Culture & Sport,Supplies and Services,324117,Provisions,08/03/2018,3408355-67518,517.80,J MORAN LTD T/A CAFFE VINCI.
Regeneration and Local Services,Technical Services,Third Party Payments,430127,Rendered by Private Contractors,08/03/2018,3408356-5305479,"2,403.00",JA GILSON (AGRICULTURAL CONTRACTORS) LTD.
Regeneration and Local Services,Technical Services,Third Party Payments,430127,Rendered by Private Contractors,08/03/2018,3408356-5305485,"2,431.00",JA GILSON (AGRICULTURAL CONTRACTORS) LTD.
Regeneration and Local Services,Direct Services,Third Party Payments,430100,Rendered by Private Contractors,08/03/2018,3408359-36700,"1,128.00",JBL SERVICES LTD.
Regeneration and Local Services,Transport and Contracted Services,Third Party Payments,430106,Rendered by Private Contractors,08/03/2018,3408363-DCC2/18,"3,315.26",JOHN JAMES BRUNSKILL.
Regeneration and Local Services,Technical Services,Supplies and Services,304221,Equipment and Materials,08/03/2018,3408365-GOI740/D,"3,940.00",JT DOVE LTD.
Regeneration and Local Services,Culture & Sport,Supplies and Services,384199,Miscellaneous Expenses,08/03/2018,3408375-DAF625,"1,629.00",LAVAHOUSE ASSOCIATES LTD.
Regeneration and Local Services,Direct Services,Transport,210057,Repair and Maintenance of Vehicles,08/03/2018,3408378-145473,582.89,LONDONDERRY GARAGE (S.E) LTD.
Regeneration and Local Services,Technical Services,Supplies and Services,304358,Equipment and Materials,08/03/2018,3408380-MS822,"1,548.00",M SPENCE SURFACING LTD.
Regeneration and Local Services,Technical Services,Supplies and Services,304358,Equipment and Materials,08/03/2018,3408380-MS823,"1,065.60",M SPENCE SURFACING LTD.
Regeneration and Local Services,Technical Services,Supplies and Services,304358,Equipment and Materials,08/03/2018,3408380-MS836,531.00,M SPENCE SURFACING LTD.
Regeneration and Local Services,Technical Services,Supplies and Services,304358,Equipment and Materials,08/03/2018,3408380-MS838,513.00,M SPENCE SURFACING LTD.
Children and Young Peoples Services,Head of Education,Supplies and Services,384302,Miscellaneous Expenses,08/03/2018,3408397-SFINV00263,"1,300.00",NATIONAL CHILDREN`S BUREAU LTD.
Regeneration and Local Services,Direct Services,Transport,210057,Repair and Maintenance of Vehicles,08/03/2018,3408402-71788,"2,287.54",NORPLAST LTD.
Dedicated Schools Grant,Dedicated Schools Grant,Third Party Payments,425005,Rendered by Voluntary Organisations,08/03/2018,3408403-0000035714,"18,407.17",NORTH EAST AUTISM SOCIETY.
Regeneration and Local Services,Technical Services,Third Party Payments,430100,Rendered by Private Contractors,08/03/2018,3408406-DI20287157,"1,279.30",NORTHERN POWERGRID (NORTHEAST) LTD.
Regeneration and Local Services,Direct Services,Third Party Payments,430100,Rendered by Private Contractors,08/03/2018,3408416-1553,"9,560.17",PARAMOUNT CEILINGS & PARTITIONS.
Regeneration and Local Services,Technical Services,Third Party Payments,430100,Rendered by Private Contractors,08/03/2018,3408425-5033,"9,726.60",PINKNEY BUILDING CONTRACTORS LTD.
Regeneration and Local Services,Technical Services,Third Party Payments,430100,Rendered by Private Contractors,08/03/2018,3408425-5043,877.20,PINKNEY BUILDING CONTRACTORS LTD.
Regeneration and Local Services,Technical Services,Third Party Payments,430100,Rendered by Private Contractors,08/03/2018,3408425-5054,"5,655.00",PINKNEY BUILDING CONTRACTORS LTD.
Regeneration and Local Services,Technical Services,Third Party Payments,430100,Rendered by Private Contractors,08/03/2018,3408425-5055,"6,170.50",PINKNEY BUILDING CONTRACTORS LTD.
Regeneration and Local Services,Technical Services,Supplies and Services,304221,Equipment and Materials,08/03/2018,3408432-106931,550.00,PROTECTOR SECURITY GROUP LTD.
Regeneration and Local Services,Technical Services,Supplies and Services,304358,Equipment and Materials,08/03/2018,3408445-1479,650.00,S & R LANDSCAPES.
Regeneration and Local Services,Technical Services,Third Party Payments,430100,Rendered by Private Contractors,08/03/2018,3408450-INV0743,"1,900.00",SEAN CARR LINING TECHNOLOGY LTD.
Regeneration and Local Services,Technical Services,Third Party Payments,430100,Rendered by Private Contractors,08/03/2018,3408450-INV0748,"1,900.00",SEAN CARR LINING TECHNOLOGY LTD.
Regeneration and Local Services,Technical Services,Construction Work,908112,Capital - Drainage,08/03/2018,3408452-19003,"43,897.01",SEYMOUR (CIVIL ENGINEERING CONTRACTORS) LTD.
Children and Young Peoples Services,Head of Early Help Assessment and Safeguarding,Supplies and Services,384302,Miscellaneous Expenses,08/03/2018,3408462-29786-12/2/18,"1,280.00",STANLEY TRAVEL (NORTH EAST) LTD.
Transformation and Partnerships,Comms & Information Management,Supplies and Services,336005,Advertising,08/03/2018,3408464-INV-3595,"2,675.00",STEVE DAVIDSON ADVERTISING LTD T/A SD ADVERTISING LTD.
Regeneration and Local Services,Technical Services,Supplies and Services,304221,Equipment and Materials,08/03/2018,3408466-102403,"1,382.42",STONEGRAVE AGGREGATES LTD.
Regeneration and Local Services,Technical Services,Supplies and Services,304221,Equipment and Materials,08/03/2018,3408466-102492,"1,438.38",STONEGRAVE AGGREGATES LTD.
Regeneration and Local Services,Technical Services,Supplies and Services,304221,Equipment and Materials,08/03/2018,3408466-102528,"1,421.96",STONEGRAVE AGGREGATES LTD.
Regeneration and Local Services,Technical Services,Supplies and Services,304221,Equipment and Materials,08/03/2018,3408466-102584,"3,215.50",STONEGRAVE AGGREGATES LTD.
Regeneration and Local Services,Technical Services,Supplies and Services,304221,Equipment and Materials,08/03/2018,3408466-102718,"1,206.36",STONEGRAVE AGGREGATES LTD.
Regeneration and Local Services,Culture & Sport,Supplies and Services,338047,Services,08/03/2018,3408467-1106,"9,359.46",STRICTLY THEATRE COMPANY LTD.
Regeneration and Local Services,Direct Services,Transport,210057,Repair and Maintenance of Vehicles,08/03/2018,3408472-25160752,"1,536.94",TC HARRISON JCB.
Regeneration and Local Services,Culture & Sport,Supplies and Services,338047,Services,08/03/2018,3408492-00027352,"2,295.42",TRAFALGAR RELEASING LTD.
Regeneration and Local Services,Culture & Sport,Supplies and Services,338047,Services,08/03/2018,3408492-00027353,"1,806.29",TRAFALGAR RELEASING LTD.
Regeneration and Local Services,Direct Services,Transport,210057,Repair and Maintenance of Vehicles,08/03/2018,3408499-INV479335,694.93,VERSALIFT DISTRIBUTORS (UK) LTD.
Regeneration and Local Services,Technical Services,Supplies and Services,304221,Equipment and Materials,08/03/2018,3408504-21542,"2,595.00",WARD TIMBER LTD.
Regeneration and Local Services,Transport and Contracted Services,Third Party Payments,430106,Rendered by Private Contractors,08/03/2018,3408506-1405,"27,248.21",WEARDALE MOTOR SERVICES LTD.
Regeneration and Local Services,Direct Services,Transport,210057,Repair and Maintenance of Vehicles,08/03/2018,3408516-113355,"1,214.62",ZOELLER WASTE SYSTEMS LTD.
Children and Young Peoples Services,Head of Looked After Provision Permanence and Care Leavers,Supplies and Services,384199,Miscellaneous Expenses,09/03/2018,3408544-6793,"2,000.00",AFTER ADOPTION.
Adult and Health Services,Head of Adults,Transport,230005,Contract Hire,09/03/2018,3408545-0006,"1,036.00",AIRPORT TAXIS 4U.
Adult and Health Services,EnvironmentHealth & Consumer Protection,Supplies and Services,304999,Equipment and Materials,09/03/2018,3408550-22170,513.00,AMECAL.
Children and Young Peoples Services,Head of Education,Transport,230006,Contract Hire,09/03/2018,3408551-0048,900.00,ANDREW SIMPSON T/A ANDY`S CABS.
Regeneration and Local Services,Technical Services,Supplies and Services,304358,Equipment and Materials,09/03/2018,3408553-29462,"2,587.50",AQUAJET DRAIN CLEANING LTD.
Regeneration and Local Services,Technical Services,Supplies and Services,304358,Equipment and Materials,09/03/2018,3408553-29463,"2,587.50",AQUAJET DRAIN CLEANING LTD.
Regeneration and Local Services,Technical Services,Supplies and Services,304358,Equipment and Materials,09/03/2018,3408553-29478,"1,035.00",AQUAJET DRAIN CLEANING LTD.
Regeneration and Local Services,Technical Services,Supplies and Services,304358,Equipment and Materials,09/03/2018,3408553-29479,"1,035.00",AQUAJET DRAIN CLEANING LTD.
Regeneration and Local Services,Culture & Sport,Supplies and Services,312013,Newspapers Books and Periodicals,09/03/2018,3408562-5658548,664.92,ASKEWS & HOLTS LIBRARY SERVICES LTD.
Regeneration and Local Services,Culture & Sport,Supplies and Services,312013,Newspapers Books and Periodicals,09/03/2018,3408562-5659738,634.70,ASKEWS & HOLTS LIBRARY SERVICES LTD.
Regeneration and Local Services,Culture & Sport,Supplies and Services,312013,Newspapers Books and Periodicals,09/03/2018,3408562-5662732,669.43,ASKEWS & HOLTS LIBRARY SERVICES LTD.
Adult and Health Services,Head of Adults,Transport,230005,Contract Hire,09/03/2018,3408563-DCC11FEBRUARY18,960.00,ATLAS TAXIS BISHOP AUCKLAND.
Adult and Health Services,Head of Adults,Transport,230005,Contract Hire,09/03/2018,3408563-DCC2FEB18,"1,200.00",ATLAS TAXIS BISHOP AUCKLAND.
Adult and Health Services,Head of Adults,Transport,230005,Contract Hire,09/03/2018,3408563-DCC3FEBRUARY18,600.00,ATLAS TAXIS BISHOP AUCKLAND.
Children and Young Peoples Services,Head of Education,Transport,230008,Contract Hire,09/03/2018,3408567-751,516.67,BEELINE MINI BUSES.
Children and Young Peoples Services,Head of Education,Transport,230008,Contract Hire,09/03/2018,3408568-SMITH1/FEBRUARY18,"1,138.80",BEELINE PRIVATE HIRE.
Children and Young Peoples Services,Head of Education,Transport,230008,Contract Hire,09/03/2018,3408568-SMITH2/FEBRUARY18,660.90,BEELINE PRIVATE HIRE.
Children and Young Peoples Services,Head of Education,Transport,230003,Contract Hire,09/03/2018,3408569-STJOHNSRC0218-3003,"1,894.40",BELL BROTHERS TRAVEL.
Children and Young Peoples Services,Head of Education,Transport,230003,Contract Hire,09/03/2018,3408569-STJOHNSRC0218-3005,"3,670.40",BELL BROTHERS TRAVEL.
Children and Young Peoples Services,Head of Education,Transport,230008,Contract Hire,09/03/2018,3408576-006-FEB,976.80,BG TAXIS.
Children and Young Peoples Services,Head of Education,Transport,230008,Contract Hire,09/03/2018,3408582-7005,"1,110.00",BOBBY DOVE.
Children and Young Peoples Services,Head of Education,Transport,230008,Contract Hire,09/03/2018,3408582-7007,"2,036.40",BOBBY DOVE.
Adult and Health Services,Public Health,Third Party Payments,460803,Contract Payments,09/03/2018,3408585-DZFC/00000150:NRT,627.99,BOOTS THE CHEMISTS LTD.*
Adult and Health Services,Public Health,Third Party Payments,460803,Contract Payments,09/03/2018,3408595-FCPT/00000097:NRT,605.07,BOOTS THE CHEMISTS LTD.*
Regeneration and Local Services,Direct Services,Third Party Payments,430100,Rendered by Private Contractors,09/03/2018,3408600-82585256,"1,170.63",BRISTOL STREET MOTORS.
Children and Young Peoples Services,Head of Education,Transfer Payments,510027,School Children,09/03/2018,3408604-WWDOB4/10/13JAN-FEB18,535.50,BUDDIES CHILDCARE CENTRE.
Children and Young Peoples Services,Head of Education,Transport,230008,Contract Hire,09/03/2018,3408610-007,"1,702.00",CHANNER`S CABS.
Children and Young Peoples Services,Head of Education,Transport,230007,Contract Hire,09/03/2018,3408611-10-5222,888.00,CHAPMAN TRAVEL.
Children and Young Peoples Services,Head of Education,Transport,230006,Contract Hire,09/03/2018,3408611-11-FEB17,559.00,CHAPMAN TRAVEL.
Regeneration and Local Services,Direct Services,Third Party Payments,430100,Rendered by Private Contractors,09/03/2018,3408615-396410,683.00,CHATFIELDS.
Regeneration and Local Services,Spatial Policy Planning Assets & Environment,Supplies and Services,338066,Services,09/03/2018,3408619-BURSARYMARCH18,608.10,CHRISTOPHER THOMAS WATT.
Adult and Health Services,Public Health,Third Party Payments,460802,Contract Payments,09/03/2018,3408623-3980027702,"368,605.00",CO DURHAM & DARLINGTON NHS FOUNDATION TRUST.
Adult and Health Services,Head of Adults,Third Party Payments,478151,Purchase of Care,09/03/2018,3408625-421R132658,736.40,COMMUNITY INTEGRATED CARE LTD.
Regeneration and Local Services,Economic Development and Housing,Cap Exp on Grants & Other Financial Assistance (REFCUS),918004,Contributions to other bodies,09/03/2018,3408637-RED-03-2018-053,"13,409.00",D BEACH T/A CHANG TAI RESTAURANT.
Children and Young Peoples Services,Head of Education,Transport,230008,Contract Hire,09/03/2018,3408638-HOW1802,690.00,D IRVING T/A BJ TAXIS.
Adult and Health Services,Head of Adults,Transport,230005,Contract Hire,09/03/2018,3408638-TH1802,694.00,D IRVING T/A BJ TAXIS.
Children and Young Peoples Services,Head of Education,Transport,230007,Contract Hire,09/03/2018,3408639-1564,592.00,DA TAXIS.
Children and Young Peoples Services,Head of Education,Transport,230008,Contract Hire,09/03/2018,3408641-3260,"1,124.80",DAVES MINIBUSES.
Regeneration and Local Services,Culture & Sport,Supplies and Services,338047,Services,09/03/2018,3408651-4100610204,"1,968.75",DURHAM DRAMATIC SOCIETY.
Regeneration and Local Services,Direct Services,Supplies and Services,304221,Equipment and Materials,09/03/2018,3408661-6812814,"5,056.10",ESE WORLD LTD.
Regeneration and Local Services,Technical Services,Supplies and Services,304221,Equipment and Materials,09/03/2018,3408662-148981,823.20,ESH CONSTRUCTION LTD FORMERLY LUMSDEN & CARROLL CONSTRUCTION LTD.
Children and Young Peoples Services,Head of Early Help Assessment and Safeguarding,Third Party Payments,486029,Service Level Agreements,09/03/2018,3408663-23518,"17,993.08",FAMILY ACTION.
Regeneration and Local Services,Culture & Sport,Supplies and Services,312013,Newspapers Books and Periodicals,09/03/2018,3408664-IN06224627,732.33,FINANCIAL TIMES LTD.
Children and Young Peoples Services,Head of Education,Transport,230007,Contract Hire,09/03/2018,3408667-20140-3029,"2,131.20",GARNETTS LTD (COACHES).
Children and Young Peoples Services,Head of Education,Transport,230003,Contract Hire,09/03/2018,3408667-20137-3004,"2,057.20",GARNETTS LTD (COACHES).
Children and Young Peoples Services,Head of Education,Transport,230003,Contract Hire,09/03/2018,3408667-20137-3008,"2,205.20",GARNETTS LTD (COACHES).
Children and Young Peoples Services,Head of Education,Transport,230003,Contract Hire,09/03/2018,3408667-20137-3203,"2,057.20",GARNETTS LTD (COACHES).
Children and Young Peoples Services,Head of Education,Transport,230003,Contract Hire,09/03/2018,3408667-20137-3333,"1,746.40",GARNETTS LTD (COACHES).
Children and Young Peoples Services,Head of Education,Transport,230003,Contract Hire,09/03/2018,3408667-20140-3020,"2,146.00",GARNETTS LTD (COACHES).
Children and Young Peoples Services,Head of Education,Transport,230003,Contract Hire,09/03/2018,3408667-20140-3024,"2,057.20",GARNETTS LTD (COACHES).
Children and Young Peoples Services,Head of Education,Transport,230003,Contract Hire,09/03/2018,3408667-20140-3026,"1,909.20",GARNETTS LTD (COACHES).
Children and Young Peoples Services,Head of Education,Transport,230003,Contract Hire,09/03/2018,3408667-20140-3027,"2,057.20",GARNETTS LTD (COACHES).
Children and Young Peoples Services,Head of Education,Transport,230003,Contract Hire,09/03/2018,3408667-20140-3028,"2,131.20",GARNETTS LTD (COACHES).
Children and Young Peoples Services,Head of Education,Transport,230003,Contract Hire,09/03/2018,3408667-20148-3301,"2,353.20",GARNETTS LTD (COACHES).
Children and Young Peoples Services,Head of Education,Transport,230003,Contract Hire,09/03/2018,3408667-20148-3303,"2,353.20",GARNETTS LTD (COACHES).
Children and Young Peoples Services,Head of Education,Transport,230003,Contract Hire,09/03/2018,3408667-20148-3335,"2,138.60",GARNETTS LTD (COACHES).
Regeneration and Local Services,Direct Services,Premises,145023,Cleaning and Domestic Supplies,09/03/2018,3408678-06/724474,"3,377.40",GREENHAM TRADING LTD.
Adult and Health Services,Head of Adults,Third Party Payments,478151,Purchase of Care,09/03/2018,3408688-HCL109,"1,134.00",HIGHLEA CARE LTD.
Adult and Health Services,Head of Adults,Third Party Payments,478151,Purchase of Care,09/03/2018,3408688-HCL110,"2,281.40",HIGHLEA CARE LTD.
Regeneration and Local Services,Direct Services,Third Party Payments,430100,Rendered by Private Contractors,09/03/2018,3408697-71914,733.59,HOGARTH COACHWORKS LTD.
Regeneration and Local Services,Direct Services,Third Party Payments,430100,Rendered by Private Contractors,09/03/2018,3408697-71966,"1,350.32",HOGARTH COACHWORKS LTD.
Adult and Health Services,Commissioning inc Supporting People,Supplies and Services,338089,Services,09/03/2018,3408700-4537,900.00,HSF TRAINING LTD.
Adult and Health Services,Public Health,Third Party Payments,460803,Contract Payments,09/03/2018,3408704-DQPW/00000113:NRT,597.76,INTRAHEALTH LTD.*
Adult and Health Services,Public Health,Third Party Payments,460803,Contract Payments,09/03/2018,3408705-DTJG/00000099:NRT,"1,049.39",J & J PHARMACY.
Regeneration and Local Services,Technical Services,Third Party Payments,430100,Rendered by Private Contractors,09/03/2018,3408706-1053/2017,"3,960.00",J & JG GILL & SONS LTD.
Adult and Health Services,Head of Adults,Supplies and Services,338365,Services,09/03/2018,3408711-16541,618.27,JC MAINTENANCE SERVICES LTD.
Children and Young Peoples Services,Head of Education,Transport,230009,Contract Hire,09/03/2018,3408715-123-JAN,578.00,JOHN ROBSON T/A ACE TAXIS.
Children and Young Peoples Services,Head of Education,Transport,230009,Contract Hire,09/03/2018,3408716-75,518.00,JOHN WARE T/A J & K TAXIS.
Regeneration and Local Services,Direct Services,Third Party Payments,430100,Rendered by Private Contractors,09/03/2018,3408717-65279251,816.57,JOHNSTON SWEEPERS LTD.
Regeneration and Local Services,Technical Services,Supplies and Services,304358,Equipment and Materials,09/03/2018,3408722-2030,851.00,KEVIN SNOWDON GROUNDWORKS LTD.
Regeneration and Local Services,Technical Services,Supplies and Services,304358,Equipment and Materials,09/03/2018,3408722-2031,739.00,KEVIN SNOWDON GROUNDWORKS LTD.
Regeneration and Local Services,Technical Services,Supplies and Services,304358,Equipment and Materials,09/03/2018,3408722-2033,739.00,KEVIN SNOWDON GROUNDWORKS LTD.
Regeneration and Local Services,Direct Services,Transport,230005,Contract Hire,09/03/2018,3408727-4444998,"2,600.00",LEEDS COMMERCIAL LTD.
Regeneration and Local Services,Direct Services,Transport,230005,Contract Hire,09/03/2018,3408727-4445332,940.00,LEEDS COMMERCIAL LTD.
Children and Young Peoples Services,Head of Looked After Provision Permanence and Care Leavers,Supplies and Services,342053,Computers and Communications,09/03/2018,3408729-0000021048,"1,600.00",LIQUIDLOGIC LTD.
Adult and Health Services,Public Health,Third Party Payments,460803,Contract Payments,09/03/2018,3408741-LGFQ/00000144:NRT,524.65,M & M PHARMACIES LTD.
Dedicated Schools Grant,Dedicated Schools Grant,Transport,230010,Contract Hire,09/03/2018,3408747-021801,"1,048.80",MARK & JOHN CHISHOLM T/A (CHEVRON).
Children and Young Peoples Services,Head of Education,Transport,230008,Contract Hire,09/03/2018,3408747-021804,"1,849.20",MARK & JOHN CHISHOLM T/A (CHEVRON).
Children and Young Peoples Services,Head of Education,Transport,230008,Contract Hire,09/03/2018,3408747-021806,"1,518.00",MARK & JOHN CHISHOLM T/A (CHEVRON).
Children and Young Peoples Services,Head of Education,Transport,230008,Contract Hire,09/03/2018,3408756-KDC-020218,960.00,MJ TIMNEY T/A KDC & C&M TAXIS.
Dedicated Schools Grant,Dedicated Schools Grant,Transport,230010,Contract Hire,09/03/2018,3408762-0034A,"1,298.00",MR PM MULLEN T/A CATHEDRAL TAXIS.
Children and Young Peoples Services,Head of Education,Transport,230008,Contract Hire,09/03/2018,3408763-3011,947.20,MR S BOWERS T/A DH7 TAXIS.
Children and Young Peoples Services,Head of Education,Transport,230008,Contract Hire,09/03/2018,3408763-3013,"2,856.40",MR S BOWERS T/A DH7 TAXIS.
Regeneration and Local Services,Direct Services,Third Party Payments,430100,Rendered by Private Contractors,09/03/2018,3408767-9109,553.50,N1 JETTING SYSTEMS LTD.
Transformation and Partnerships,Comms & Information Management,Supplies and Services,372009,Subscriptions,09/03/2018,3408768-NCS18/021,550.00,NATIONAL CONSERVATION SERVICE LTD.
Regeneration and Local Services,Technical Services,Supplies and Services,304358,Equipment and Materials,09/03/2018,3408772-NC/017/BW,"2,035.00",NEDCO CONTRACTS (NE) LTD.
Resources,Digital and Customer Services,Supplies and Services,344033,Telephones,09/03/2018,3408774-202511,"1,002.69",NETWORKS 2 BUSINESS LTD.
Regeneration and Local Services,Culture & Sport,Supplies and Services,312013,Newspapers Books and Periodicals,09/03/2018,3408779-006015,592.76,NEWSMARKET.
Regeneration and Local Services,Spatial Policy Planning Assets & Environment,Supplies and Services,304999,Equipment and Materials,09/03/2018,3408780-RED-03-2018-052,"1,154.80",NEWTON AYCLIFFE WORKING MEN`S CLUB & INSTITUTE LTD.
Dedicated Schools Grant,Dedicated Schools Grant,Third Party Payments,440080,Other Third Party Payments,09/03/2018,3408786-0000035723,"3,625.33",NORTH EAST AUTISM SOCIETY.
Dedicated Schools Grant,Dedicated Schools Grant,Third Party Payments,440080,Other Third Party Payments,09/03/2018,3408786-0000035724,"3,625.33",NORTH EAST AUTISM SOCIETY.
Dedicated Schools Grant,Dedicated Schools Grant,Third Party Payments,440080,Other Third Party Payments,09/03/2018,3408786-0000035726,"8,484.33",NORTH EAST AUTISM SOCIETY.
Dedicated Schools Grant,Dedicated Schools Grant,Third Party Payments,440080,Other Third Party Payments,09/03/2018,3408786-0000035727,"8,484.33",NORTH EAST AUTISM SOCIETY.
Dedicated Schools Grant,Dedicated Schools Grant,Third Party Payments,440080,Other Third Party Payments,09/03/2018,3408786-0000035746,"4,712.33",NORTH EAST AUTISM SOCIETY.
Dedicated Schools Grant,Dedicated Schools Grant,Third Party Payments,440080,Other Third Party Payments,09/03/2018,3408786-0000035747,"4,712.33",NORTH EAST AUTISM SOCIETY.
Regeneration and Local Services,Direct Services,Third Party Payments,430100,Rendered by Private Contractors,09/03/2018,3408787-1398075,"4,721.29",NORTH EAST TRUCK & VAN LTD.
Children and Young Peoples Services,Head of Education,Transport,230006,Contract Hire,09/03/2018,3408802-0622,"1,065.60",PETER`S PRIVATE HIRE/PETER BEST.
Children and Young Peoples Services,Head of Education,Transport,230008,Contract Hire,09/03/2018,3408802-0626,"1,201.20",PETER`S PRIVATE HIRE/PETER BEST.
Dedicated Schools Grant,Dedicated Schools Grant,Supplies and Services,304259,Equipment and Materials,09/03/2018,3408808-2591997528,"3,918.00",PHONAK UK LTD.
Regeneration and Local Services,Culture & Sport,Supplies and Services,324117,Provisions,09/03/2018,3408817-0000003801,"1,977.08",RAMSIDE ESTATES LTD T/A RAMSIDE HALL HOTEL.
Regeneration and Local Services,Direct Services,Supplies and Services,304358,Equipment and Materials,09/03/2018,3408818-9911,"1,312.00",RD KEARTON & SONS LTD.
Regeneration and Local Services,Direct Services,Transport,210057,Repair and Maintenance of Vehicles,09/03/2018,3408819-784901,740.13,RICKERBY LTD.
Children and Young Peoples Services,Head of Education,Transport,230009,Contract Hire,09/03/2018,3408821-1395,562.40,ROAD RUNNERS (NE) LTD.
Children and Young Peoples Services,Head of Education,Transport,230009,Contract Hire,09/03/2018,3408821-1396,577.20,ROAD RUNNERS (NE) LTD.
Children and Young Peoples Services,Head of Education,Transport,230006,Contract Hire,09/03/2018,3408821-1384,651.20,ROAD RUNNERS (NE) LTD.
Dedicated Schools Grant,Dedicated Schools Grant,Transport,230010,Contract Hire,09/03/2018,3408821-1383,"1,403.40",ROAD RUNNERS (NE) LTD.
Dedicated Schools Grant,Dedicated Schools Grant,Transport,230010,Contract Hire,09/03/2018,3408821-1393,"1,021.20",ROAD RUNNERS (NE) LTD.
Dedicated Schools Grant,Dedicated Schools Grant,Transport,230010,Contract Hire,09/03/2018,3408821-1394,"1,065.60",ROAD RUNNERS (NE) LTD.
Children and Young Peoples Services,Head of Education,Transport,230008,Contract Hire,09/03/2018,3408821-1365,621.60,ROAD RUNNERS (NE) LTD.
Children and Young Peoples Services,Head of Education,Transport,230008,Contract Hire,09/03/2018,3408821-1366,770.00,ROAD RUNNERS (NE) LTD.
Children and Young Peoples Services,Head of Education,Transport,230008,Contract Hire,09/03/2018,3408821-1367,606.00,ROAD RUNNERS (NE) LTD.
Children and Young Peoples Services,Head of Education,Transport,230008,Contract Hire,09/03/2018,3408821-1368,799.20,ROAD RUNNERS (NE) LTD.
Children and Young Peoples Services,Head of Education,Transport,230008,Contract Hire,09/03/2018,3408821-1369,"1,036.00",ROAD RUNNERS (NE) LTD.
Children and Young Peoples Services,Head of Education,Transport,230008,Contract Hire,09/03/2018,3408821-1370,"1,776.00",ROAD RUNNERS (NE) LTD.
Children and Young Peoples Services,Head of Education,Transport,230008,Contract Hire,09/03/2018,3408821-1371,742.00,ROAD RUNNERS (NE) LTD.
Children and Young Peoples Services,Head of Education,Transport,230008,Contract Hire,09/03/2018,3408821-1372,976.80,ROAD RUNNERS (NE) LTD.
Children and Young Peoples Services,Head of Education,Transport,230008,Contract Hire,09/03/2018,3408821-1379,854.00,ROAD RUNNERS (NE) LTD.
Children and Young Peoples Services,Head of Education,Transport,230008,Contract Hire,09/03/2018,3408821-1380,"1,317.20",ROAD RUNNERS (NE) LTD.
Children and Young Peoples Services,Head of Education,Transport,230008,Contract Hire,09/03/2018,3408821-1381,"1,065.60",ROAD RUNNERS (NE) LTD.
Children and Young Peoples Services,Head of Education,Transport,230008,Contract Hire,09/03/2018,3408821-1388,"2,120.40",ROAD RUNNERS (NE) LTD.
Children and Young Peoples Services,Head of Education,Transport,230008,Contract Hire,09/03/2018,3408821-1398,799.20,ROAD RUNNERS (NE) LTD.
Adult and Health Services,Head of Adults,Transport,230005,Contract Hire,09/03/2018,3408821-1386,528.00,ROAD RUNNERS (NE) LTD.
Regeneration and Local Services,Economic Development and Housing,Supplies and Services,338066,Services,09/03/2018,3408828-DC004,"10,416.67",SENTIMOTO LTD.
Regeneration and Local Services,Direct Services,Supplies and Services,304221,Equipment and Materials,09/03/2018,3408829-CD970591936,"3,317.60",SHERRIFF AMENITY.
Regeneration and Local Services,Direct Services,Supplies and Services,304221,Equipment and Materials,09/03/2018,3408831-00580484,"1,008.00",SIG TRADING LTD T/A CARPET & FLOORING LTD.*
Regeneration and Local Services,Culture & Sport,Supplies and Services,338047,Services,09/03/2018,3408835-00004535,"5,022.00",SOHO THEATRE CO LTD.
Dedicated Schools Grant,Dedicated Schools Grant,Supplies and Services,372009,Subscriptions,09/03/2018,3408837-98599,"2,040.00",SPEECH LINK MULTIMEDIA LTD.
Regeneration and Local Services,Technical Services,Third Party Payments,430100,Rendered by Private Contractors,09/03/2018,3408839-6112,"5,223.00",ST ASTIER LTD.
Regeneration and Local Services,Technical Services,Third Party Payments,430100,Rendered by Private Contractors,09/03/2018,3408839-6114,"2,949.00",ST ASTIER LTD.
Regeneration and Local Services,Technical Services,Third Party Payments,430100,Rendered by Private Contractors,09/03/2018,3408839-6117,"13,601.19",ST ASTIER LTD.
Regeneration and Local Services,Technical Services,Third Party Payments,430100,Rendered by Private Contractors,09/03/2018,3408839-6119,"11,494.00",ST ASTIER LTD.
Adult and Health Services,Public Health,Third Party Payments,460803,Contract Payments,09/03/2018,3408840-BS0011361,"4,080.66",ST CUTHBERTS HOSPICE.
Children and Young Peoples Services,Head of Looked After Provision Permanence and Care Leavers,Third Party Payments,425041,Rendered by Voluntary Organisations,09/03/2018,3408841-996359,"2,250.00",ST FRANCIS CHILDRENS SOCIETY.
Children and Young Peoples Services,Head of Education,Transport,230003,Contract Hire,09/03/2018,3408844-49789,"1,225.00",STANLEY TRAVEL (NORTH EAST) LTD.
Children and Young Peoples Services,Head of Education,Transport,230007,Contract Hire,09/03/2018,3408845-23,532.80,STEVEN HENDERSON T/A HENDYS TAXIS.
Regeneration and Local Services,Direct Services,Transport,230005,Contract Hire,09/03/2018,3408864-17721,750.00,TRASH UK LTD.
Regeneration and Local Services,Technical Services,Supplies and Services,304358,Equipment and Materials,09/03/2018,3408874-44753,"1,880.00",W MARLEY AGRICULTURAL CONTRACTORS LTD.
Regeneration and Local Services,Direct Services,Transport,230005,Contract Hire,09/03/2018,3408879-75750,720.00,WARREN ACCESS LTD.
Children and Young Peoples Services,Head of Education,Transport,230007,Contract Hire,09/03/2018,3408880-6037-4042,"1,258.60",WEARDALE PRIVATE HIRE.
Children and Young Peoples Services,Head of Education,Transport,230007,Contract Hire,09/03/2018,3408880-6037-4071,750.00,WEARDALE PRIVATE HIRE.
Children and Young Peoples Services,Head of Education,Transport,230007,Contract Hire,09/03/2018,3408880-6037-4127,630.00,WEARDALE PRIVATE HIRE.
Adult and Health Services,Public Health,Third Party Payments,460803,Contract Payments,09/03/2018,3408883-FKVH/00000109:NRT,536.20,WG CLEMITSONS LTD.*
Regeneration and Local Services,Technical Services,Supplies and Services,304358,Equipment and Materials,09/03/2018,3408890-6940,622.00,YOULL CONSTRUCTION LTD.
Regeneration and Local Services,Technical Services,Supplies and Services,304358,Equipment and Materials,09/03/2018,3408890-6965,"1,050.00",YOULL CONSTRUCTION LTD.
Regeneration and Local Services,Culture & Sport,Construction Work,908105,Construction work,12/03/2018,3408901-22405,"1,950.00",ALARM & COMMUNICATION SYSTEMS LTD (ACS).
Regeneration and Local Services,Direct Services,Supplies and Services,304083,Equipment and Materials,12/03/2018,3408902-I6577337,534.84,ALLIANCE DISPOSABLES LTD T/A ALLIANCE NORTH LTD.
Children and Young Peoples Services,Childrens Services Operational Support,Supplies and Services,338066,Services,12/03/2018,3408930-9126,"74,745.35",BLOOM PROCUREMENT SERVICES LTD (FORMERLY NEPRO LTD).
Adult and Health Services,Head of Adults,Third Party Payments,478151,Purchase of Care,12/03/2018,3408964-421R129442,"4,208.00",COMMUNITY INTEGRATED CARE LTD.
Adult and Health Services,Head of Adults,Third Party Payments,478151,Purchase of Care,12/03/2018,3408964-421R131900,710.10,COMMUNITY INTEGRATED CARE LTD.
Adult and Health Services,Head of Adults,Third Party Payments,478151,Purchase of Care,12/03/2018,3408964-421R131903,920.52,COMMUNITY INTEGRATED CARE LTD.
Adult and Health Services,Head of Adults,Third Party Payments,478151,Purchase of Care,12/03/2018,3408964-421RI32660,920.52,COMMUNITY INTEGRATED CARE LTD.
Transformation and Partnerships,Partnerships & Community Engagement Div.,Supplies and Services,308011,Furniture,12/03/2018,3408972-SW121,985.00,COUNTY DURHAM FURNITURE HELP SCHEME (CDFHS).
Regeneration and Local Services,Technical Services,Supplies and Services,338045,Services,12/03/2018,3408985-333915/INVSAH13,500.00,DERE STREET BARRISTERS.
Regeneration and Local Services,Economic Development and Housing,Supplies and Services,384700,Miscellaneous Expenses,12/03/2018,3408997-0000042560,704.00,EAST DURHAM COLLEGE.
Regeneration and Local Services,Transport and Contracted Services,Supplies and Services,338080,Services,12/03/2018,3409008-988994,"1,437.75",ESP SYSTEX LTD.
Regeneration and Local Services,Transport and Contracted Services,Supplies and Services,338080,Services,12/03/2018,3409008-989038,"26,265.37",ESP SYSTEX LTD.
Children and Young Peoples Services,Head of Early Help Assessment and Safeguarding,Third Party Payments,486029,Service Level Agreements,12/03/2018,3409012-22724,"17,993.08",FAMILY ACTION.
Children and Young Peoples Services,Head of Early Help Assessment and Safeguarding,Third Party Payments,486029,Service Level Agreements,12/03/2018,3409012-23333,"17,993.08",FAMILY ACTION.
Regeneration and Local Services,Direct Services,Third Party Payments,430100,Rendered by Private Contractors,12/03/2018,3409052-36729,770.00,JBL SERVICES LTD.
Regeneration and Local Services,Technical Services,Supplies and Services,304358,Equipment and Materials,12/03/2018,3409058-27899,808.00,JOHN R BUTTERFIELD LTD.
Regeneration and Local Services,Culture & Sport,Supplies and Services,328041,Clothing Uniforms and Laundry,12/03/2018,3409084-175729,592.70,MDH TEAMWEAR & TROPHIES.
Regeneration and Local Services,Technical Services,Supplies and Services,304221,Equipment and Materials,12/03/2018,3409114-166140,630.40,NORTH EAST CONCRETE LTD.
Regeneration and Local Services,Technical Services,Supplies and Services,304221,Equipment and Materials,12/03/2018,3409114-168272,584.00,NORTH EAST CONCRETE LTD.
Regeneration and Local Services,Technical Services,Supplies and Services,304221,Equipment and Materials,12/03/2018,3409114-169497,548.00,NORTH EAST CONCRETE LTD.
Regeneration and Local Services,Transport and Contracted Services,Third Party Payments,430100,Rendered by Private Contractors,12/03/2018,3409121-00000783,"24,628.45",NSL LTD.
Regeneration and Local Services,Transport and Contracted Services,Third Party Payments,430100,Rendered by Private Contractors,12/03/2018,3409121-00000784,"1,193.23",NSL LTD.
Regeneration and Local Services,Transport and Contracted Services,Third Party Payments,430100,Rendered by Private Contractors,12/03/2018,3409121-00000785,"46,338.79",NSL LTD.
Regeneration and Local Services,Transport and Contracted Services,Third Party Payments,430100,Rendered by Private Contractors,12/03/2018,3409121-00000786,"2,951.37",NSL LTD.
Regeneration and Local Services,Transport and Contracted Services,Third Party Payments,430100,Rendered by Private Contractors,12/03/2018,3409121-00000788,"5,597.91",NSL LTD.
Regeneration and Local Services,Transport and Contracted Services,Third Party Payments,430100,Rendered by Private Contractors,12/03/2018,3409121-00000789,"15,853.13",NSL LTD.
Regeneration and Local Services,Transport and Contracted Services,Third Party Payments,430100,Rendered by Private Contractors,12/03/2018,3409121-00000866,"5,197.22",NSL LTD.
Regeneration and Local Services,Transport and Contracted Services,Third Party Payments,430100,Rendered by Private Contractors,12/03/2018,3409121-00000867,724.40,NSL LTD.
Regeneration and Local Services,Direct Services,Transport,215005,Running Costs of Vehicles,12/03/2018,3409123-309609,"7,802.58",OIL NRG LTD.
Regeneration and Local Services,Direct Services,Transport,215022,Running Costs of Vehicles,12/03/2018,3409123-309467,"3,958.89",OIL NRG LTD.
Resources,Digital and Customer Services,Supplies and Services,332029,Printing Stationery and Gen Off Exps,12/03/2018,3409151-15831,"2,552.00",RADECAL SIGNS GRAPHICS & ADVERTISING.
Resources,Digital and Customer Services,Supplies and Services,332029,Printing Stationery and Gen Off Exps,12/03/2018,3409151-15832,"1,275.00",RADECAL SIGNS GRAPHICS & ADVERTISING.
Resources,Digital and Customer Services,Supplies and Services,332029,Printing Stationery and Gen Off Exps,12/03/2018,3409151-15835,600.00,RADECAL SIGNS GRAPHICS & ADVERTISING.
Resources,Digital and Customer Services,Supplies and Services,332029,Printing Stationery and Gen Off Exps,12/03/2018,3409151-15851,"1,085.00",RADECAL SIGNS GRAPHICS & ADVERTISING.
Resources,Digital and Customer Services,Supplies and Services,332029,Printing Stationery and Gen Off Exps,12/03/2018,3409151-15865,"2,358.00",RADECAL SIGNS GRAPHICS & ADVERTISING.
Regeneration and Local Services,Culture & Sport,Supplies and Services,324117,Provisions,12/03/2018,3409152-0000003806,"1,625.00",RAMSIDE ESTATES LTD T/A RAMSIDE HALL HOTEL.
Regeneration and Local Services,Technical Services,Third Party Payments,430100,Rendered by Private Contractors,12/03/2018,3409169-1214,"2,440.00",SCHMUCK WHORLTON LTD.
Regeneration and Local Services,Direct Services,Premises,145015,Cleaning and Domestic Supplies,12/03/2018,3409213-GI00040716,"4,351.45",TL KILLIS & SONS LTD.
Regeneration and Local Services,Direct Services,Premises,145015,Cleaning and Domestic Supplies,12/03/2018,3409213-GI00041038,"5,115.00",TL KILLIS & SONS LTD.
Regeneration and Local Services,Direct Services,Supplies and Services,304221,Equipment and Materials,12/03/2018,3409241-45417,"1,765.25",WILLOWCRETE MANUFACTURING COMPANY LTD (MFG).
Children and Young Peoples Services,Head of Education,Transport,230006,Contract Hire,13/03/2018,3409253-68132,705.00,A & C TAXIS.
Regeneration and Local Services,Economic Development and Housing,Premises,108125,Service Repairs and Maintenance,13/03/2018,3409259-ACE/BC/2018/002,"1,040.13",ACE MOTORCYCLE TRAINING (NE) LTD.
Resources,Digital and Customer Services,Supplies and Services,332029,Printing Stationery and Gen Off Exps,13/03/2018,3409262-106077,"3,973.76",AGNE LTD T/A ALPHAGRAPHICS.
Regeneration and Local Services,Economic Development and Housing,Supplies and Services,384999,Miscellaneous Expenses,13/03/2018,3409271-2018-072-141-001871,"1,054.23",AMERICAN EXPRESS SERVICES EUROPE LTD.
Regeneration and Local Services,Culture & Sport,Premises,106080,Centrally Controlled Rep and Maint,13/03/2018,3409278-12991,"3,884.76",ASTRAL CONTROL SERVICES LTD.
Regeneration and Local Services,Economic Development and Housing,Premises,106082,Centrally Controlled Rep and Maint,13/03/2018,3409278-12992,"3,697.50",ASTRAL CONTROL SERVICES LTD.
Regeneration and Local Services,Spatial Policy Planning Assets & Environment,Cap Exp on Grants & Other Financial Assistance (REFCUS),918501,Exp assets not owned by authority,13/03/2018,3409283-SIN033556,"1,336,256.00",BEAMISH MUSEUM LTD.
Regeneration and Local Services,Spatial Policy Planning Assets & Environment,Cap Exp on Grants & Other Financial Assistance (REFCUS),918501,Exp assets not owned by authority,13/03/2018,3409283-SIN033557,"1,776,975.00",BEAMISH MUSEUM LTD.
Children and Young Peoples Services,Head of Education,Transport,230008,Contract Hire,13/03/2018,3409285-750,"1,093.98",BEELINE MINI BUSES.
Children and Young Peoples Services,Head of Education,Transport,230008,Contract Hire,13/03/2018,3409300-BZ00251,725.20,BREZ`S TAXIS.
Transformation and Partnerships,Partnerships & Community Engagement Div.,Cap Exp on Grants & Other Financial Assistance (REFCUS),918004,Contributions to other bodies,13/03/2018,3409302-VOUCHER17NB-CHES018,"9,500.00",BULLION COMMUNITY RESOURCE CENTRE.
Children and Young Peoples Services,Head of Education,Transport,230008,Contract Hire,13/03/2018,3409304-BIL0125,715.00,CA MUSGROVE.
Regeneration and Local Services,Direct Services,Premises,108099,Service Repairs and Maintenance,13/03/2018,3409309-3937,"1,650.00",CATHEDRAL LOCK & SAFE SERVICES LTD.
Regeneration and Local Services,Direct Services,Premises,108099,Service Repairs and Maintenance,13/03/2018,3409309-3949,"1,320.00",CATHEDRAL LOCK & SAFE SERVICES LTD.
Children and Young Peoples Services,Head of Education,Transport,230007,Contract Hire,13/03/2018,3409314-46185,"1,718.22",CJ GRIERSON T/A GRIERSONS COACHES.
Children and Young Peoples Services,Head of Education,Transport,230007,Contract Hire,13/03/2018,3409314-46189,"1,750.00",CJ GRIERSON T/A GRIERSONS COACHES.
Children and Young Peoples Services,Head of Education,Transport,230003,Contract Hire,13/03/2018,3409314-46183,"2,086.00",CJ GRIERSON T/A GRIERSONS COACHES.
Children and Young Peoples Services,Head of Education,Transport,230003,Contract Hire,13/03/2018,3409314-46187,"5,208.00",CJ GRIERSON T/A GRIERSONS COACHES.
Children and Young Peoples Services,Head of Education,Transport,230003,Contract Hire,13/03/2018,3409314-46191,"1,960.00",CJ GRIERSON T/A GRIERSONS COACHES.
Children and Young Peoples Services,Head of Education,Transport,230003,Contract Hire,13/03/2018,3409314-46193,"1,820.00",CJ GRIERSON T/A GRIERSONS COACHES.
Children and Young Peoples Services,Head of Looked After Provision Permanence and Care Leavers,Supplies and Services,336005,Advertising,13/03/2018,3409316-0102656502,"1,560.00",CLEAR CHANNEL UK LTD.
Children and Young Peoples Services,Head of Looked After Provision Permanence and Care Leavers,Supplies and Services,336005,Advertising,13/03/2018,3409316-0102657491,780.00,CLEAR CHANNEL UK LTD.
Children and Young Peoples Services,Head of Looked After Provision Permanence and Care Leavers,Supplies and Services,336005,Advertising,13/03/2018,3409316-0102657499,600.00,CLEAR CHANNEL UK LTD.
Children and Young Peoples Services,Head of Early Help Assessment and Safeguarding,Transport,230005,Contract Hire,13/03/2018,3409318-CLUB1805C,597.00,CLUBMAN CABS.
Children and Young Peoples Services,Head of Early Help Assessment and Safeguarding,Transport,230005,Contract Hire,13/03/2018,3409318-CLUB1806B,597.00,CLUBMAN CABS.
Transformation and Partnerships,Partnerships & Community Engagement Div.,Supplies and Services,308011,Furniture,13/03/2018,3409324-DC006,865.00,COUNTY DURHAM FURNITURE HELP SCHEME (CDFHS).
Children and Young Peoples Services,Head of Education,Transport,230008,Contract Hire,13/03/2018,3409328-32,"1,095.20",CUTHBERT CABS.
Children and Young Peoples Services,Head of Education,Transport,230008,Contract Hire,13/03/2018,3409330-06,876.00,D CROOK T/A CK TAXIS.
Children and Young Peoples Services,Head of Education,Transport,230008,Contract Hire,13/03/2018,3409332-261,932.40,DA TRAVEL.
Children and Young Peoples Services,Head of Education,Transport,230008,Contract Hire,13/03/2018,3409334-3258,"1,241.00",DAVES MINIBUSES.
Children and Young Peoples Services,Head of Education,Transport,230008,Contract Hire,13/03/2018,3409334-3259,976.80,DAVES MINIBUSES.
Children and Young Peoples Services,Head of Education,Transport,230008,Contract Hire,13/03/2018,3409334-3261,"1,138.80",DAVES MINIBUSES.
Resources,Legal & Democratic Services,Supplies and Services,338042,Services,13/03/2018,3409339-336219/INVSW569,850.00,DERE STREET BARRISTERS.
Resources,Legal & Democratic Services,Supplies and Services,338042,Services,13/03/2018,3409339-336257/INVCM95,540.00,DERE STREET BARRISTERS.
Children and Young Peoples Services,Head of Early Help Assessment and Safeguarding,Supplies and Services,338044,Services,13/03/2018,3409341-AM-1-220118,567.55,DR URSULA CAWTHORNE T/A CAWTHORNE PSYCHOLOGICAL SERVICES LTD.
Children and Young Peoples Services,Head of Education,Transport,230007,Contract Hire,13/03/2018,3409350-E5124/0218,584.60,ELLIOTTS OF TRIMDON.
Children and Young Peoples Services,Head of Education,Transport,230007,Contract Hire,13/03/2018,3409350-E5182/0218,620.12,ELLIOTTS OF TRIMDON.
Children and Young Peoples Services,Head of Education,Transport,230006,Contract Hire,13/03/2018,3409350-E122/0218,873.20,ELLIOTTS OF TRIMDON.
Children and Young Peoples Services,Head of Education,Transport,230008,Contract Hire,13/03/2018,3409350-E014/0218,"1,525.88",ELLIOTTS OF TRIMDON.
Dedicated Schools Grant,Dedicated Schools Grant,Supplies and Services,384199,Miscellaneous Expenses,13/03/2018,3409352-70,"2,240.00",EMILY BACKES T/A TALKINDALES.
Children and Young Peoples Services,Head of Education,Transport,230007,Contract Hire,13/03/2018,3409353-0743,592.00,EN ROUTE TRAVEL.
Children and Young Peoples Services,Head of Education,Transport,230008,Contract Hire,13/03/2018,3409353-0744,"1,036.00",EN ROUTE TRAVEL.
Regeneration and Local Services,Culture & Sport,Premises,106080,Centrally Controlled Rep and Maint,13/03/2018,3409354-17503345,713.09,ENER-G COMBINED POWER LTD.
Regeneration and Local Services,Culture & Sport,Premises,106080,Centrally Controlled Rep and Maint,13/03/2018,3409354-17503370,884.62,ENER-G COMBINED POWER LTD.
Regeneration and Local Services,Culture & Sport,Premises,106080,Centrally Controlled Rep and Maint,13/03/2018,3409354-18500183,884.62,ENER-G COMBINED POWER LTD.
Regeneration and Local Services,Culture & Sport,Premises,106080,Centrally Controlled Rep and Maint,13/03/2018,3409354-18500190,713.09,ENER-G COMBINED POWER LTD.
Regeneration and Local Services,Culture & Sport,Premises,106080,Centrally Controlled Rep and Maint,13/03/2018,3409354-18500512,884.62,ENER-G COMBINED POWER LTD.
Regeneration and Local Services,Culture & Sport,Premises,106080,Centrally Controlled Rep and Maint,13/03/2018,3409354-18500513,713.09,ENER-G COMBINED POWER LTD.
Adult and Health Services,EnvironmentHealth & Consumer Protection,Supplies and Services,372009,Subscriptions,13/03/2018,3409358-IEX3002000049,"2,500.00",EXPERIAN LTD.
Regeneration and Local Services,Transport and Contracted Services,Third Party Payments,430106,Rendered by Private Contractors,13/03/2018,3409361-JAN-FEB18,"5,734.60",FERRYHILL VILLAGE TRAVEL.
Children and Young Peoples Services,Head of Education,Transport,230008,Contract Hire,13/03/2018,3409365-0412,"1,275.20",FMR SILVA PITA.
Children and Young Peoples Services,Head of Early Help Assessment and Safeguarding,Supplies and Services,338044,Services,13/03/2018,3409367-24886,840.90,FORENSIC TESTING SERVICE LTD.
Children and Young Peoples Services,Head of Early Help Assessment and Safeguarding,Supplies and Services,338044,Services,13/03/2018,3409367-CAS-03-2018-037,840.90,FORENSIC TESTING SERVICE LTD.
Children and Young Peoples Services,Head of Education,Transport,230003,Contract Hire,13/03/2018,3409373-4330,"1,180.00",GEM TRAVEL.
Children and Young Peoples Services,Head of Education,Transport,230003,Contract Hire,13/03/2018,3409376-64466,"2,733.00",GO GATESHEAD LTD.
Children and Young Peoples Services,Head of Education,Transport,230003,Contract Hire,13/03/2018,3409376-64920,"2,733.00",GO GATESHEAD LTD.
Children and Young Peoples Services,Head of Education,Transport,230008,Contract Hire,13/03/2018,3409378-000041,954.00,GP TAXIS.
Children and Young Peoples Services,Head of Education,Transport,230006,Contract Hire,13/03/2018,3409385-06-F652,627.60,GS PEARSON.
Children and Young Peoples Services,Head of Education,Transport,230006,Contract Hire,13/03/2018,3409386-002,606.00,GUY`S TAXIS.
Regeneration and Local Services,Direct Services,Third Party Payments,430119,Rendered by Private Contractors,13/03/2018,3409389-105636,"4,508.82",HARPERS ENVIRONMENTAL LTD.
Children and Young Peoples Services,Head of Education,Transport,230007,Contract Hire,13/03/2018,3409393-495,"1,184.00",HEPWORTHS LUXURY TRAVEL.
Children and Young Peoples Services,Head of Education,Transport,230008,Contract Hire,13/03/2018,3409393-494,"1,606.00",HEPWORTHS LUXURY TRAVEL.
Adult and Health Services,Head of Adults,Third Party Payments,478151,Purchase of Care,13/03/2018,3409394-HCL111,"2,288.12",HIGHLEA CARE LTD.
Regeneration and Local Services,Economic Development and Housing,Supplies and Services,384899,Miscellaneous Expenses,13/03/2018,3409401-PRO2018001,"2,500.00",INNOVATE NE LTD.
Regeneration and Local Services,Direct Services,Third Party Payments,430100,Rendered by Private Contractors,13/03/2018,3409406-36726,"1,190.00",JBL SERVICES LTD.
Adult and Health Services,Head of Adults,Transport,230005,Contract Hire,13/03/2018,3409410-31A,640.00,JOHN CRAKE & SONS MINI BUSES LTD.
Children and Young Peoples Services,Head of Education,Transport,230012,Contract Hire,13/03/2018,3409421-3759,957.56,LINCAB TAXIS.
Regeneration and Local Services,Culture & Sport,Premises,106082,Centrally Controlled Rep and Maint,13/03/2018,3409424-SI171,"5,950.00",LUMLEY ESTATES.
Regeneration and Local Services,Culture & Sport,Premises,106082,Centrally Controlled Rep and Maint,13/03/2018,3409424-SI304,"5,950.00",LUMLEY ESTATES.
Children and Young Peoples Services,Head of Education,Transport,230008,Contract Hire,13/03/2018,3409427-38,"1,120.00",MALCOLM CARR T/A CARLY CABS.
Dedicated Schools Grant,Dedicated Schools Grant,Transport,230010,Contract Hire,13/03/2018,3409429-011803,"2,790.40",MARK & JOHN CHISHOLM T/A (CHEVRON).
Dedicated Schools Grant,Dedicated Schools Grant,Transport,230010,Contract Hire,13/03/2018,3409429-011814,"2,088.80",MARK & JOHN CHISHOLM T/A (CHEVRON).
Children and Young Peoples Services,Head of Education,Transport,230008,Contract Hire,13/03/2018,3409435-0304871,"1,050.00",MR GN ROBBINS T/A GNR MINIBUS HIRE.
Children and Young Peoples Services,Head of Education,Transport,230008,Contract Hire,13/03/2018,3409435-0304872,"1,050.00",MR GN ROBBINS T/A GNR MINIBUS HIRE.
Children and Young Peoples Services,Head of Education,Transport,230006,Contract Hire,13/03/2018,3409436-00251,570.00,MR P GARBUTT.
Adult and Health Services,Head of Adults,Transport,230005,Contract Hire,13/03/2018,3409437-3012,"1,985.60",MR S BOWERS T/A DH7 TAXIS.
Adult and Health Services,Public Health,Third Party Payments,460802,Contract Payments,13/03/2018,3409445-7010500747,"12,917.81",NHS NORTH DURHAM CCG.
Regeneration and Local Services,Economic Development and Housing,Premises,135005,Water Services,13/03/2018,3409454-4656460,848.31,NWG BUSINESS LTD (NORTHUMBRIAN WATER GROUP).
Regeneration and Local Services,Economic Development and Housing,Premises,135005,Water Services,13/03/2018,3409454-4657659,767.21,NWG BUSINESS LTD (NORTHUMBRIAN WATER GROUP).
Regeneration and Local Services,Economic Development and Housing,Premises,135005,Water Services,13/03/2018,3409454-4659194,"1,251.02",NWG BUSINESS LTD (NORTHUMBRIAN WATER GROUP).
Regeneration and Local Services,Economic Development and Housing,Supplies and Services,336005,Advertising,13/03/2018,3409457-12475,798.00,OFFSTONE PUBLISHING.
Regeneration and Local Services,Direct Services,Transport,215005,Running Costs of Vehicles,13/03/2018,3409458-310162,"3,795.98",OIL NRG LTD.
Regeneration and Local Services,Direct Services,Transport,215005,Running Costs of Vehicles,13/03/2018,3409458-310201,"9,651.00",OIL NRG LTD.
Regeneration and Local Services,Direct Services,Transport,215005,Running Costs of Vehicles,13/03/2018,3409458-310202,"1,963.22",OIL NRG LTD.
Regeneration and Local Services,Direct Services,Transport,215005,Running Costs of Vehicles,13/03/2018,3409458-310281,"34,648.09",OIL NRG LTD.
Regeneration and Local Services,Direct Services,Transport,215005,Running Costs of Vehicles,13/03/2018,3409458-310283,"3,878.40",OIL NRG LTD.
Regeneration and Local Services,Direct Services,Transport,215022,Running Costs of Vehicles,13/03/2018,3409458-310077,"2,979.53",OIL NRG LTD.
Regeneration and Local Services,Direct Services,Transport,215022,Running Costs of Vehicles,13/03/2018,3409458-310163,"2,399.28",OIL NRG LTD.
Regeneration and Local Services,Direct Services,Transport,215022,Running Costs of Vehicles,13/03/2018,3409458-310193,"3,470.60",OIL NRG LTD.
Regeneration and Local Services,Direct Services,Transport,215022,Running Costs of Vehicles,13/03/2018,3409458-310195,"2,484.00",OIL NRG LTD.
Regeneration and Local Services,Direct Services,Transport,215022,Running Costs of Vehicles,13/03/2018,3409458-310196,"2,484.00",OIL NRG LTD.
Regeneration and Local Services,Direct Services,Transport,215022,Running Costs of Vehicles,13/03/2018,3409458-310284,"2,004.00",OIL NRG LTD.
Dedicated Schools Grant,Dedicated Schools Grant,Supplies and Services,384906,Miscellaneous Expenses,13/03/2018,3409468-CAS-03-2018-028,"2,400.00",PARK VIEW ACADEMY.
Regeneration and Local Services,Technical Services,Third Party Payments,430128,Rendered by Private Contractors,13/03/2018,3409470-3849,"1,390.00",PETER MONKHOUSE HAULAGE.
Children and Young Peoples Services,Head of Education,Transport,230008,Contract Hire,13/03/2018,3409473-0627,"1,924.00",PETER`S PRIVATE HIRE/PETER BEST.
Dedicated Schools Grant,Dedicated Schools Grant,Transport,230010,Contract Hire,13/03/2018,3409471-573,"1,609.00",PETERLEE EXECUTIVE CARS.
Adult and Health Services,Head of Adults,Supplies and Services,384199,Miscellaneous Expenses,13/03/2018,3409483-08672-DURHAM-1117,"21,487.37",PREPAID FINANCIAL SERVICES LTD.
Resources,Internal Audit and Insurance,Supplies and Services,384199,Miscellaneous Expenses,13/03/2018,3409483-08909-DURHAM-1217,"2,460.18",PREPAID FINANCIAL SERVICES LTD.
Resources,Internal Audit and Insurance,Supplies and Services,384199,Miscellaneous Expenses,13/03/2018,3409483-09259-DURHAM-0118,"2,679.95",PREPAID FINANCIAL SERVICES LTD.
Children and Young Peoples Services,Head of Looked After Provision Permanence and Care Leavers,Premises,108099,Service Repairs and Maintenance,13/03/2018,3409492-195472,"2,688.00",RIELLO UPS LTD.
Dedicated Schools Grant,Dedicated Schools Grant,Supplies and Services,304259,Equipment and Materials,13/03/2018,3409495-SIN206078,"2,671.90",RNIB ENTERPRISES LTD.
Resources,Digital and Customer Services,Supplies and Services,340001,Postages,13/03/2018,3409498-9056074133,"13,969.66",ROYAL MAIL GROUP PLC.
Transformation and Partnerships,Partnerships & Community Engagement Div.,Cap Exp on Grants & Other Financial Assistance (REFCUS),918004,Contributions to other bodies,13/03/2018,3409509-VOUCHER17NB-EDRC013,"4,000.00",SEDGEFIELD YOUTH FC DEVELOPMENT.
Regeneration and Local Services,Economic Development and Housing,Supplies and Services,384700,Miscellaneous Expenses,13/03/2018,3409514-RED-03-2018-083,692.00,SHIFTERS LTD.
Regeneration and Local Services,Direct Services,Third Party Payments,430100,Rendered by Private Contractors,13/03/2018,3409519-105/18/2201,"1,390.00",SOCIETE GENERALE EQUIPMENT FINANCE LTD.
Regeneration and Local Services,Direct Services,Third Party Payments,430100,Rendered by Private Contractors,13/03/2018,3409519-105/18/2202,"11,398.75",SOCIETE GENERALE EQUIPMENT FINANCE LTD.
Transformation and Partnerships,Partnerships & Community Engagement Div.,Cap Exp on Grants & Other Financial Assistance (REFCUS),918004,Contributions to other bodies,13/03/2018,3409523-VOUCHER17AB-DCTY005,"11,000.00",ST MARGARETS CENTRE.
Children and Young Peoples Services,Head of Education,Transport,230008,Contract Hire,13/03/2018,3409533-001,595.00,TAXZ.
Regeneration and Local Services,Technical Services,Stock,926900,Stock in hand-Inventory system,13/03/2018,3409548-N/IN203448,"3,780.97",THOMAS OWEN & SONS (NEWCASTLE) LTD.
Children and Young Peoples Services,Head of Early Help Assessment and Safeguarding,Supplies and Services,338043,Services,13/03/2018,3409550-9568/17,"1,075.79",TILLY BAILEY & IRVINE LLP.
Children and Young Peoples Services,Head of Education,Transport,230008,Contract Hire,13/03/2018,3409552-0001941,"1,332.00",TONY RIDLEY T/A COLORS TAXIS LTD.
Dedicated Schools Grant,Dedicated Schools Grant,Supplies and Services,342051,Computers and Communications,13/03/2018,3409560-25173,849.00,TWINKL EDUCATIONAL PUBLISHING LTD.
Resources,Digital and Customer Services,Vehicles Equipment Furniture and Fittings,912701,Computer equipment,13/03/2018,3409569-KU30375,"4,895.00",VODAFONE LTD.
Transformation and Partnerships,Partnerships & Community Engagement Div.,Supplies and Services,384086,Miscellaneous Expenses,13/03/2018,3409573-VOUCHER17NB-BASH020,"5,500.00",WEAR VALLEY WOMENS AID.
Children and Young Peoples Services,Head of Education,Transport,230007,Contract Hire,13/03/2018,3409574-6036,717.80,WEARDALE PRIVATE HIRE.
Children and Young Peoples Services,Head of Education,Transport,230008,Contract Hire,13/03/2018,3409574-6044,"1,872.20",WEARDALE PRIVATE HIRE.
Transformation and Partnerships,Partnerships & Community Engagement Div.,Cap Exp on Grants & Other Financial Assistance (REFCUS),918004,Contributions to other bodies,13/03/2018,3409576-VOUCHER17AB-3TWN002,"10,250.00",WHEELS TO WORK CIO.
Children and Young Peoples Services,Head of Education,Transport,230012,Contract Hire,14/03/2018,3410319-N13/SS,883.20,AABAT TAXIS.
Children and Young Peoples Services,Head of Education,Transport,230008,Contract Hire,14/03/2018,3410319-N1/SA,"1,596.00",AABAT TAXIS.
Children and Young Peoples Services,Head of Education,Transport,230008,Contract Hire,14/03/2018,3410319-N11/SP,"1,776.00",AABAT TAXIS.
Children and Young Peoples Services,Head of Education,Transport,230008,Contract Hire,14/03/2018,3410319-N12/SQ,"1,387.00",AABAT TAXIS.
Children and Young Peoples Services,Head of Education,Transport,230008,Contract Hire,14/03/2018,3410319-N2/SB,932.40,AABAT TAXIS.
Children and Young Peoples Services,Head of Education,Transport,230008,Contract Hire,14/03/2018,3410319-N5/SG,843.70,AABAT TAXIS.
Children and Young Peoples Services,Head of Education,Transport,230008,Contract Hire,14/03/2018,3410319-N6/SH,"1,384.00",AABAT TAXIS.
Children and Young Peoples Services,Head of Education,Transport,230008,Contract Hire,14/03/2018,3410319-N7/SJ,"1,317.20",AABAT TAXIS.
Children and Young Peoples Services,Head of Education,Transport,230008,Contract Hire,14/03/2018,3410319-N8/SK,"1,110.00",AABAT TAXIS.
Children and Young Peoples Services,Head of Education,Transport,230008,Contract Hire,14/03/2018,3410319-N9/SL,"1,358.50",AABAT TAXIS.
Regeneration and Local Services,Technical Services,Third Party Payments,430100,Rendered by Private Contractors,14/03/2018,3410326-J1530/17/1/19,"1,368.00",AK (LIGHTING & SIGNS) LTD.
Regeneration and Local Services,Technical Services,Third Party Payments,430100,Rendered by Private Contractors,14/03/2018,3410326-J1530/17/K/01,"3,939.00",AK (LIGHTING & SIGNS) LTD.
Regeneration and Local Services,Direct Services,Third Party Payments,430100,Rendered by Private Contractors,14/03/2018,3410331-16477,"1,200.00",AMBIC LTD.
Adult and Health Services,EnvironmentHealth & Consumer Protection,Supplies and Services,304999,Equipment and Materials,14/03/2018,3410332-22688,613.00,AMECAL.
Regeneration and Local Services,Transport and Contracted Services,Third Party Payments,430106,Rendered by Private Contractors,14/03/2018,3410339-113454,"32,108.77",ARRIVA NORTH EAST LTD.
Regeneration and Local Services,Transport and Contracted Services,Third Party Payments,430106,Rendered by Private Contractors,14/03/2018,3410339-113547,"40,007.77",ARRIVA NORTH EAST LTD.
